Department Family,Entity,Date,Expense Type,Expense Area,Supplier,Transaction Number,Amount,Item Description
BEIS,UKRI - AHRC,01/03/2021,T&S UK - Other Charges,International,Unspecified,98838106,391.94,T&S UK - Other Charges
BEIS,UKRI - AHRC,01/03/2021,International Subscriptions,Executive Office,Arma (UK) Ltd,98910290,2635.00,International Subscriptions
BEIS,UKRI - AHRC,01/03/2021,Other Programme Costs,Industrial Strategy Challenge Fund (ISCF) - Creative Clusters,The Institute of Practitioners in Advertising (IPA),98910499,24000.00,Other Programme Costs
BEIS,UKRI - AHRC,01/03/2021,Fees (Including College Members),Health and Environmental Humanities,Unspecified,98911394,170.00,Fees (Including College Members)
BEIS,UKRI - AHRC,02/03/2021,Research Consumables,Living with Environmental Change Programme,UKRI - Natural Environment Research Council,98788727,27110.78,Research Consumables
BEIS,UKRI - AHRC,02/03/2021,Research Consumables,Living with Environmental Change Programme,UKRI - Natural Environment Research Council,98909993,-3527.81,Research Consumables
BEIS,UKRI - AHRC,02/03/2021,Research Consumables,Living with Environmental Change Programme,UKRI - Natural Environment Research Council,98910004,3527.81,Research Consumables
BEIS,UKRI - AHRC,02/03/2021,T&S UK - Other Charges,Operations,Unspecified,98913220,12.08,T&S UK - Other Charges
BEIS,UKRI - AHRC,03/03/2021,Staff Training,Infrastruture Roadmap,Acuity Training Ltd,98913379,594.00,Staff Training
BEIS,UKRI - AHRC,04/03/2021,Research Grant Expenditure,Infrastruture Roadmap,Research Libraries UK (RLUK),98912532,121957.20,Research Grant Expenditure
BEIS,UKRI - AHRC,04/03/2021,Fees (Including College Members),Executive Office,Unspecified,98914893,500.00,Fees (Including College Members)
BEIS,UKRI - AHRC,04/03/2021,Fees (Including College Members),Executive Office,Unspecified,98914894,500.00,Fees (Including College Members)
BEIS,UKRI - AHRC,04/03/2021,Fees (Including College Members),Executive Office,Unspecified,98914895,500.00,Fees (Including College Members)
BEIS,UKRI - AHRC,04/03/2021,Fees (Including College Members),Executive Office,Unspecified,98914896,500.00,Fees (Including College Members)
BEIS,UKRI - AHRC,04/03/2021,Fees (Including College Members),Executive Office,Unspecified,98914897,500.00,Fees (Including College Members)
BEIS,UKRI - AHRC,04/03/2021,Fees (Including College Members),Executive Office,Unspecified,98914898,500.00,Fees (Including College Members)
BEIS,UKRI - AHRC,04/03/2021,Fees (Including College Members),Executive Office,Unspecified,98914899,500.00,Fees (Including College Members)
BEIS,UKRI - AHRC,04/03/2021,Fees (Including College Members),New Programme Development,Unspecified,98914900,170.00,Fees (Including College Members)
BEIS,UKRI - AHRC,04/03/2021,Fees (Including College Members),New Programme Development,Unspecified,98914901,340.00,Fees (Including College Members)
BEIS,UKRI - AHRC,04/03/2021,Fees (Including College Members),New Programme Development,Unspecified,98914902,170.00,Fees (Including College Members)
BEIS,UKRI - AHRC,04/03/2021,Fees (Including College Members),New Programme Development,Unspecified,98914903,170.00,Fees (Including College Members)
BEIS,UKRI - AHRC,05/03/2021,Fees (Including College Members),Executive Office,Unspecified,98919116,500.00,Fees (Including College Members)
BEIS,UKRI - AHRC,05/03/2021,Fees (Including College Members),Executive Office,Unspecified,98919117,500.00,Fees (Including College Members)
BEIS,UKRI - AHRC,05/03/2021,Fees (Including College Members),Executive Office,Unspecified,98919118,500.00,Fees (Including College Members)
BEIS,UKRI - AHRC,05/03/2021,T&S UK - Other Charges,Operations,Unspecified,98919195,3.89,T&S UK - Other Charges
BEIS,UKRI - AHRC,05/03/2021,Education Fees & Study Materials,Executive Office,Unspecified,98919196,43.99,Education Fees & Study Materials
BEIS,UKRI - AHRC,08/03/2021,Recruitment Costs,Corporate Services,Agenda Resource Management Ltd,98918106,153.91,Recruitment Costs
BEIS,UKRI - AHRC,08/03/2021,Fees (Including College Members),Infrastruture Roadmap,Unspecified,98918533,850.00,Fees (Including College Members)
BEIS,UKRI - AHRC,08/03/2021,Fees (Including College Members),Infrastruture Roadmap,Unspecified,98918534,1020.00,Fees (Including College Members)
BEIS,UKRI - AHRC,08/03/2021,T&S UK - Other Charges,"History, Heritage, Languages and Literature",Unspecified,98920429,179.98,T&S UK - Other Charges
BEIS,UKRI - AHRC,09/03/2021,Fees (Including College Members),Executive Office,Unspecified,98919890,170.00,Fees (Including College Members)
BEIS,UKRI - AHRC,09/03/2021,Fees (Including College Members),Executive Office,Unspecified,98919891,170.00,Fees (Including College Members)
BEIS,UKRI - AHRC,09/03/2021,Fees (Including College Members),Executive Office,Unspecified,98919892,500.00,Fees (Including College Members)
BEIS,UKRI - AHRC,09/03/2021,Fees (Including College Members),Executive Office,Unspecified,98919893,500.00,Fees (Including College Members)
BEIS,UKRI - AHRC,09/03/2021,Corporate Events,Digital Arts and Humanities and Creative Industries,The Edinburgh Television Festival Council,98921755,10.00,Corporate Events
BEIS,UKRI - AHRC,09/03/2021,Corporate Events,Digital Arts and Humanities and Creative Industries,The Edinburgh Television Festival Council,98921755,41536.00,Corporate Events
BEIS,UKRI - AHRC,09/03/2021,T&S UK - Other Charges,Operations,Unspecified,98921894,35.00,T&S UK - Other Charges
BEIS,UKRI - AHRC,10/03/2021,Fees (Including College Members),Executive Office,Unspecified,98923082,500.00,Fees (Including College Members)
BEIS,UKRI - AHRC,10/03/2021,T&S UK - Other Charges,SMT,Unspecified,98923404,125.98,T&S UK - Other Charges
BEIS,UKRI - AHRC,10/03/2021,T&S UK - Public Transport,Public and Stakeholder Engagement,Unspecified,98923405,6.80,T&S UK - Public Transport
BEIS,UKRI - AHRC,10/03/2021,T&S UK - Public Transport,Public and Stakeholder Engagement,Unspecified,98923405,20.00,T&S UK - Public Transport
BEIS,UKRI - AHRC,10/03/2021,T&S UK - Subsistence,Public and Stakeholder Engagement,Unspecified,98923405,36.45,T&S UK - Subsistence
BEIS,UKRI - AHRC,10/03/2021,T&S UK - Subsistence,Public and Stakeholder Engagement,Unspecified,98923405,27.12,T&S UK - Subsistence
BEIS,UKRI - AHRC,10/03/2021,T&S UK - Subsistence,Public and Stakeholder Engagement,Unspecified,98923405,26.48,T&S UK - Subsistence
BEIS,UKRI - AHRC,10/03/2021,T&S UK - Subsistence,Public and Stakeholder Engagement,Unspecified,98923405,61.25,T&S UK - Subsistence
BEIS,UKRI - AHRC,10/03/2021,T&S UK - Subsistence,Public and Stakeholder Engagement,Unspecified,98923405,40.00,T&S UK - Subsistence
BEIS,UKRI - AHRC,11/03/2021,Staff Training,Public Engagement,Podcast Awards Ltd,98912651,6000.00,Staff Training
BEIS,UKRI - AHRC,11/03/2021,Fees (Including College Members),Executive Office,Unspecified,98924300,500.00,Fees (Including College Members)
BEIS,UKRI - AHRC,11/03/2021,Fees (Including College Members),Executive Office,Unspecified,98924301,500.00,Fees (Including College Members)
BEIS,UKRI - AHRC,11/03/2021,Financial Services,Corporate Services,CCI Credit Management Ltd,98926152,0.12,Financial Services
BEIS,UKRI - AHRC,12/03/2021,Unspecified,Executive Office,Department for International Trade,98726226,51262.36,Secondments
BEIS,UKRI - AHRC,12/03/2021,Unspecified,Balance Sheet,HM Revenue & Customs,98920380,64208.09,NI Payable Salaries
BEIS,UKRI - AHRC,12/03/2021,Unspecified,Balance Sheet,HM Revenue & Customs,98920381,46015.87,PAYE Payable Salaries
BEIS,UKRI - AHRC,12/03/2021,Unspecified,Balance Sheet,HM Revenue & Customs,98920382,5654.00,Student Loans
BEIS,UKRI - AHRC,12/03/2021,Unspecified,Corporate Services,HM Revenue & Customs,98920383,1648.00,Apprenticeship Levy
BEIS,UKRI - AHRC,12/03/2021,Fees (Including College Members),New Programme Development,Unspecified,98926268,900.00,Fees (Including College Members)
BEIS,UKRI - AHRC,12/03/2021,Unspecified,Infrastruture Roadmap,Human Economics Ltd,98927216,6000.00,Legal & Professional Services
BEIS,UKRI - AHRC,15/03/2021,Voluntary Deductions,Balance Sheet,Swindon Office Sports and Social Club,98920384,30.00,Voluntary Deductions
BEIS,UKRI - AHRC,15/03/2021,Union Deductions,Balance Sheet,PCS Union,98920385,68.59,Union Deductions
BEIS,UKRI - AHRC,15/03/2021,Unspecified,Balance Sheet,Unspecified,98920386,20078.12,Ees Pension Deductions - JSS
BEIS,UKRI - AHRC,15/03/2021,Unspecified,Balance Sheet,Unspecified,98920387,87105.79,Ers Pension Deductions - JSS
BEIS,UKRI - AHRC,15/03/2021,Unspecified,Balance Sheet,Scottish Widows,98920388,376.28,Partnership Pension Deductions
BEIS,UKRI - AHRC,15/03/2021,Unspecified,Balance Sheet,Cabinet Office RM Shared Services,98920389,13.06,Ers Pension Deductions - JSS
BEIS,UKRI - AHRC,15/03/2021,Unspecified,Balance Sheet,Cabinet Office RM Shared Services,98920390,8491.72,Ees Pension Deductions - MyCSP
BEIS,UKRI - AHRC,15/03/2021,Unspecified,Balance Sheet,Cabinet Office RM Shared Services,98920391,43637.60,Ers Pension Deductions - MyCSP
BEIS,UKRI - AHRC,15/03/2021,Ees Pension Deductions - MRC,Balance Sheet,Unspecified,98920392,169.57,Ees Pension Deductions - MRC
BEIS,UKRI - AHRC,15/03/2021,Ers Pension Deductions - MRC,Balance Sheet,Unspecified,98920393,391.31,Ers Pension Deductions - MRC
BEIS,UKRI - AHRC,15/03/2021,Nursery Deductions,Balance Sheet,UKRI - Engineering & Physical Sciences Research Council,98920394,856.00,Nursery Deductions
BEIS,UKRI - AHRC,15/03/2021,Fees (Including College Members),New Programme Development,Unspecified,98926617,170.00,Fees (Including College Members)
BEIS,UKRI - AHRC,15/03/2021,Fees (Including College Members),New Programme Development,Unspecified,98926618,170.00,Fees (Including College Members)
BEIS,UKRI - AHRC,15/03/2021,Fees (Including College Members),New Programme Development,Unspecified,98926619,170.00,Fees (Including College Members)
BEIS,UKRI - AHRC,15/03/2021,Fees (Including College Members),New Programme Development,Unspecified,98926620,170.00,Fees (Including College Members)
BEIS,UKRI - AHRC,15/03/2021,Fees (Including College Members),New Programme Development,Unspecified,98926621,230.00,Fees (Including College Members)
BEIS,UKRI - AHRC,15/03/2021,Fees (Including College Members),New Programme Development,Unspecified,98926622,170.00,Fees (Including College Members)
BEIS,UKRI - AHRC,15/03/2021,Fees (Including College Members),New Programme Development,Unspecified,98926628,170.00,Fees (Including College Members)
BEIS,UKRI - AHRC,15/03/2021,Fees (Including College Members),New Programme Development,Unspecified,98926629,170.00,Fees (Including College Members)
BEIS,UKRI - AHRC,15/03/2021,Fees (Including College Members),New Programme Development,Unspecified,98926630,170.00,Fees (Including College Members)
BEIS,UKRI - AHRC,15/03/2021,Fees (Including College Members),New Programme Development,Unspecified,98926631,170.00,Fees (Including College Members)
BEIS,UKRI - AHRC,15/03/2021,Fees (Including College Members),Infrastruture Roadmap,Unspecified,98926632,230.00,Fees (Including College Members)
BEIS,UKRI - AHRC,15/03/2021,Fees (Including College Members),Infrastruture Roadmap,Unspecified,98926633,170.00,Fees (Including College Members)
BEIS,UKRI - AHRC,15/03/2021,Fees (Including College Members),Infrastruture Roadmap,Unspecified,98926634,170.00,Fees (Including College Members)
BEIS,UKRI - AHRC,15/03/2021,Fees (Including College Members),Infrastruture Roadmap,Unspecified,98926635,170.00,Fees (Including College Members)
BEIS,UKRI - AHRC,15/03/2021,Unspecified,SMT,University of Oxford,98927172,28368.53,Secondments
BEIS,UKRI - AHRC,16/03/2021,Research Grant Expenditure,Commissioned Research,Royal College of Art,98918549,101302.61,Research Grant Expenditure
BEIS,UKRI - AHRC,16/03/2021,Research Grant Expenditure,COVID-19 (AHRC funded),Queen Mary University of London,98918550,67233.69,Research Grant Expenditure
BEIS,UKRI - AHRC,16/03/2021,Research Grant Expenditure,COVID-19,Nottingham Trent University,98918551,30303.26,Research Grant Expenditure
BEIS,UKRI - AHRC,16/03/2021,Research Grant Expenditure,COVID-19 (AHRC funded),Queen Mary University of London,98918552,143089.85,Research Grant Expenditure
BEIS,UKRI - AHRC,16/03/2021,Research Grant Expenditure,COVID-19 (AHRC funded),University of Durham,98918553,47443.68,Research Grant Expenditure
BEIS,UKRI - AHRC,16/03/2021,Research Grant Expenditure,COVID-19 (AHRC funded),University of Strathclyde,98918554,40002.58,Research Grant Expenditure
BEIS,UKRI - AHRC,16/03/2021,Research Grant Expenditure,COVID-19 (AHRC funded),National Centre for Social Research,98918555,38859.74,Research Grant Expenditure
BEIS,UKRI - AHRC,16/03/2021,Research Grant Expenditure,COVID-19 (AHRC funded),University of Exeter,98918556,67203.49,Research Grant Expenditure
BEIS,UKRI - AHRC,16/03/2021,Research Grant Expenditure,COVID-19,British Institute Of International And Comparative Law,98918557,136348.12,Research Grant Expenditure
BEIS,UKRI - AHRC,16/03/2021,Research Grant Expenditure,COVID-19,University of the West of England,98918558,39571.62,Research Grant Expenditure
BEIS,UKRI - AHRC,16/03/2021,Research Grant Expenditure,COVID-19,Royal College of Art,98918559,53759.95,Research Grant Expenditure
BEIS,UKRI - AHRC,16/03/2021,Research Grant Expenditure,COVID-19 (AHRC funded),University of Edinburgh,98918560,124759.46,Research Grant Expenditure
BEIS,UKRI - AHRC,16/03/2021,Research Grant Expenditure,COVID-19 (AHRC funded),Bournemouth University,98918561,93553.21,Research Grant Expenditure
BEIS,UKRI - AHRC,16/03/2021,Research Grant Expenditure,COVID-19 (AHRC funded),University of Glasgow,98918562,96073.11,Research Grant Expenditure
BEIS,UKRI - AHRC,16/03/2021,Research Grant Expenditure,COVID-19 (AHRC funded),University of Salford,98918563,107301.13,Research Grant Expenditure
BEIS,UKRI - AHRC,16/03/2021,Research Grant Expenditure,COVID-19 (AHRC funded),University of Nottingham,98918564,121708.72,Research Grant Expenditure
BEIS,UKRI - AHRC,16/03/2021,Research Grant Expenditure,COVID-19,The Open University,98918565,10714.87,Research Grant Expenditure
BEIS,UKRI - AHRC,16/03/2021,Research Grant Expenditure,COVID-19,University of Leicester,98918566,49354.69,Research Grant Expenditure
BEIS,UKRI - AHRC,16/03/2021,Research Grant Expenditure,COVID-19 (AHRC funded),Queen Mary University of London,98918567,65036.88,Research Grant Expenditure
BEIS,UKRI - AHRC,16/03/2021,Research Grant Expenditure,COVID-19 (AHRC funded),Birkbeck College,98918568,50703.93,Research Grant Expenditure
BEIS,UKRI - AHRC,16/03/2021,Research Grant Expenditure,COVID-19 (AHRC funded),University of Reading,98918569,52030.84,Research Grant Expenditure
BEIS,UKRI - AHRC,16/03/2021,Research Grant Expenditure,COVID-19 (AHRC funded),University of Southampton GRANT,98918570,84582.21,Research Grant Expenditure
BEIS,UKRI - AHRC,16/03/2021,Research Grant Expenditure,COVID-19,University of Newcastle Upon Tyne,98918571,73971.02,Research Grant Expenditure
BEIS,UKRI - AHRC,16/03/2021,Research Grant Expenditure,COVID-19 (AHRC funded),King's College London,98918572,111197.10,Research Grant Expenditure
BEIS,UKRI - AHRC,16/03/2021,Research Grant Expenditure,COVID-19 (AHRC funded),University of Bristol GRANT,98918573,31869.16,Research Grant Expenditure
BEIS,UKRI - AHRC,16/03/2021,Research Grant Expenditure,COVID-19,University of Strathclyde,98918574,44915.18,Research Grant Expenditure
BEIS,UKRI - AHRC,16/03/2021,Research Grant Expenditure,COVID-19,Queen Mary University of London,98918575,22229.73,Research Grant Expenditure
BEIS,UKRI - AHRC,16/03/2021,Research Grant Expenditure,COVID-19 (AHRC funded),University of Oxford,98918576,568805.64,Research Grant Expenditure
BEIS,UKRI - AHRC,16/03/2021,Research Grant Expenditure,COVID-19,Queen Mary University of London,98918577,83111.17,Research Grant Expenditure
BEIS,UKRI - AHRC,16/03/2021,Research Grant Expenditure,COVID-19,University of Brighton,98918578,32514.90,Research Grant Expenditure
BEIS,UKRI - AHRC,16/03/2021,Research Grant Expenditure,COVID-19,Royal College of Music,98918579,66285.46,Research Grant Expenditure
BEIS,UKRI - AHRC,16/03/2021,Research Grant Expenditure,COVID-19,University College London,98918580,53532.64,Research Grant Expenditure
BEIS,UKRI - AHRC,16/03/2021,Research Grant Expenditure,COVID-19,University of St Andrews,98918581,22091.43,Research Grant Expenditure
BEIS,UKRI - AHRC,16/03/2021,Research Grant Expenditure,COVID-19,"SOAS, University of London",98918582,97965.18,Research Grant Expenditure
BEIS,UKRI - AHRC,16/03/2021,Research Grant Expenditure,COVID-19,Northumbria University,98918583,20293.28,Research Grant Expenditure
BEIS,UKRI - AHRC,16/03/2021,Research Grant Expenditure,Global Challenges Research Fund (GCRF),Queen Mary University of London,98918584,93141.76,Research Grant Expenditure
BEIS,UKRI - AHRC,16/03/2021,Research Grant Expenditure,Global Challenges Research Fund (GCRF),King's College London,98918585,95423.56,Research Grant Expenditure
BEIS,UKRI - AHRC,16/03/2021,Research Grant Expenditure,Global Challenges Research Fund (GCRF),London School of Hygiene & Tropical Medicine,98918586,90277.58,Research Grant Expenditure
BEIS,UKRI - AHRC,16/03/2021,Research Grant Expenditure,Global Challenges Research Fund (GCRF),EDINBURGH NAPIER UNIVERSITY,98918587,92605.44,Research Grant Expenditure
BEIS,UKRI - AHRC,16/03/2021,Research Grant Expenditure,COVID-19,University of Exeter,98918588,41883.48,Research Grant Expenditure
BEIS,UKRI - AHRC,16/03/2021,Research Grant Expenditure,Global Challenges Research Fund (GCRF),University College London,98918589,87614.00,Research Grant Expenditure
BEIS,UKRI - AHRC,16/03/2021,Research Grant Expenditure,Global Challenges Research Fund (GCRF),University of Bristol GRANT,98918590,83304.24,Research Grant Expenditure
BEIS,UKRI - AHRC,16/03/2021,Research Grant Expenditure,Commissioned Research,University of Nottingham,98918591,95766.79,Research Grant Expenditure
BEIS,UKRI - AHRC,16/03/2021,Research Grant Expenditure,COVID-19 (AHRC funded),"Royal Holloway, University of London",98918592,131428.01,Research Grant Expenditure
BEIS,UKRI - AHRC,16/03/2021,Research Grant Expenditure,COVID-19,University of Brighton,98918593,26510.04,Research Grant Expenditure
BEIS,UKRI - AHRC,16/03/2021,Research Grant Expenditure,COVID-19,University of Brighton,98918593,26510.04,Research Grant Expenditure
BEIS,UKRI - AHRC,16/03/2021,Research Grant Expenditure,COVID-19 (AHRC funded),University of Strathclyde,98918594,51746.94,Research Grant Expenditure
BEIS,UKRI - AHRC,16/03/2021,Research Grant Expenditure,COVID-19,University of Kent,98918595,40022.22,Research Grant Expenditure
BEIS,UKRI - AHRC,16/03/2021,Research Grant Expenditure,COVID-19,University of Kent,98918595,40022.22,Research Grant Expenditure
BEIS,UKRI - AHRC,16/03/2021,Research Grant Expenditure,COVID-19,UNIVERSITY OF ULSTER,98918596,33535.93,Research Grant Expenditure
BEIS,UKRI - AHRC,16/03/2021,Research Grant Expenditure,COVID-19,University of Glasgow,98918597,44188.67,Research Grant Expenditure
BEIS,UKRI - AHRC,16/03/2021,Research Grant Expenditure,COVID-19,Northumbria University,98918598,65263.36,Research Grant Expenditure
BEIS,UKRI - AHRC,16/03/2021,Research Grant Expenditure,COVID-19,Northumbria University,98918598,88680.66,Research Grant Expenditure
BEIS,UKRI - AHRC,16/03/2021,Research Grant Expenditure,COVID-19,University of Essex,98918599,46137.26,Research Grant Expenditure
BEIS,UKRI - AHRC,16/03/2021,Research Grant Expenditure,COVID-19,University of Essex,98918599,44442.64,Research Grant Expenditure
BEIS,UKRI - AHRC,16/03/2021,Research Grant Expenditure,COVID-19,University of London,98918600,24024.35,Research Grant Expenditure
BEIS,UKRI - AHRC,16/03/2021,Research Grant Expenditure,COVID-19,University of London,98918600,24024.35,Research Grant Expenditure
BEIS,UKRI - AHRC,16/03/2021,Capital Grants & Equipment to HEIs,DEDEFI Capital Grants,National Museum of Wales,98918601,746417.00,Capital Grants & Equipment to HEIs
BEIS,UKRI - AHRC,16/03/2021,Research Grant Expenditure,COVID-19 (AHRC funded),University of Nottingham,98918602,3347.14,Research Grant Expenditure
BEIS,UKRI - AHRC,16/03/2021,Research Grant Expenditure,COVID-19 (AHRC funded),University of Nottingham,98918602,13415.69,Research Grant Expenditure
BEIS,UKRI - AHRC,16/03/2021,Research Grant Expenditure,COVID-19,Birmingham City University,98918603,38612.65,Research Grant Expenditure
BEIS,UKRI - AHRC,16/03/2021,Research Grant Expenditure,COVID-19 (AHRC funded),Bournemouth University,98918604,51680.54,Research Grant Expenditure
BEIS,UKRI - AHRC,16/03/2021,Capital Grants & Equipment to HEIs,DEDEFI Capital Grants,University of Dundee,98918605,241374.40,Capital Grants & Equipment to HEIs
BEIS,UKRI - AHRC,16/03/2021,Research Grant Expenditure,DEDEFI Capital Grants,"SOAS, University of London",98918606,922411.50,Research Grant Expenditure
BEIS,UKRI - AHRC,16/03/2021,Capital Grants & Equipment to HEIs,DEDEFI Capital Grants,Courtauld Institute of Art,98918607,206065.46,Capital Grants & Equipment to HEIs
BEIS,UKRI - AHRC,16/03/2021,Research Grant Expenditure,DEDEFI Capital Grants,Courtauld Institute of Art,98918607,1047754.68,Research Grant Expenditure
BEIS,UKRI - AHRC,16/03/2021,Capital Grants & Equipment to HEIs,DEDEFI Capital Grants,Historic Royal Palaces,98918608,803831.69,Capital Grants & Equipment to HEIs
BEIS,UKRI - AHRC,16/03/2021,Research Grant Expenditure,DEDEFI Capital Grants,Historic Royal Palaces,98918608,172203.64,Research Grant Expenditure
BEIS,UKRI - AHRC,16/03/2021,Capital Grants & Equipment to HEIs,DEDEFI Capital Grants,Nottingham Trent University,98918609,846190.00,Capital Grants & Equipment to HEIs
BEIS,UKRI - AHRC,16/03/2021,Research Grant Expenditure,DEDEFI Capital Grants,Nottingham Trent University,98918609,51945.38,Research Grant Expenditure
BEIS,UKRI - AHRC,16/03/2021,Capital Grants & Equipment to HEIs,DEDEFI Capital Grants,University of Kent,98918610,112318.00,Capital Grants & Equipment to HEIs
BEIS,UKRI - AHRC,16/03/2021,Research Grant Expenditure,Follow-on Fund,University of Bristol GRANT,98918611,90672.16,Research Grant Expenditure
BEIS,UKRI - AHRC,16/03/2021,Capital Grants & Equipment to HEIs,DEDEFI Capital Grants,The British Library,98918612,47666.89,Capital Grants & Equipment to HEIs
BEIS,UKRI - AHRC,16/03/2021,Research Grant Expenditure,DEDEFI Capital Grants,The British Library,98918612,5038.48,Research Grant Expenditure
BEIS,UKRI - AHRC,16/03/2021,Capital Grants & Equipment to HEIs,DEDEFI Capital Grants,British Film Institute,98918614,651696.48,Capital Grants & Equipment to HEIs
BEIS,UKRI - AHRC,16/03/2021,Capital Grants & Equipment to HEIs,DEDEFI Capital Grants,University of Glasgow,98918615,415033.70,Capital Grants & Equipment to HEIs
BEIS,UKRI - AHRC,16/03/2021,Research Grant Expenditure,Follow-on Fund,Queen Mary University of London,98918616,96067.03,Research Grant Expenditure
BEIS,UKRI - AHRC,16/03/2021,Research Grant Expenditure,Follow-on Fund,University of Nottingham,98918617,90200.61,Research Grant Expenditure
BEIS,UKRI - AHRC,16/03/2021,Capital Grants & Equipment to HEIs,DEDEFI Capital Grants,Museum of London Archaeology,98918618,178238.76,Capital Grants & Equipment to HEIs
BEIS,UKRI - AHRC,16/03/2021,Capital Grants & Equipment to HEIs,DEDEFI Capital Grants,The National Gallery,98918619,266855.70,Capital Grants & Equipment to HEIs
BEIS,UKRI - AHRC,16/03/2021,Capital Grants & Equipment to HEIs,DEDEFI Capital Grants,University of Southampton GRANT,98918620,550273.17,Capital Grants & Equipment to HEIs
BEIS,UKRI - AHRC,16/03/2021,Research Grant Expenditure,DEDEFI Capital Grants,University of Southampton GRANT,98918620,160368.74,Research Grant Expenditure
BEIS,UKRI - AHRC,16/03/2021,Capital Grants & Equipment to HEIs,DEDEFI Capital Grants,The University of Manchester,98918621,778351.11,Capital Grants & Equipment to HEIs
BEIS,UKRI - AHRC,16/03/2021,Research Grant Expenditure,Follow-on Fund,University of St Andrews,98918622,98424.48,Research Grant Expenditure
BEIS,UKRI - AHRC,16/03/2021,Capital Grants & Equipment to HEIs,DEDEFI Capital Grants,Science Museum Group,98918623,273280.00,Capital Grants & Equipment to HEIs
BEIS,UKRI - AHRC,16/03/2021,Research Grant Expenditure,DEDEFI Capital Grants,University of Durham,98918624,106852.96,Research Grant Expenditure
BEIS,UKRI - AHRC,16/03/2021,Capital Grants & Equipment to HEIs,DEDEFI Capital Grants,Tate Galleries,98918625,182207.38,Capital Grants & Equipment to HEIs
BEIS,UKRI - AHRC,16/03/2021,Research Grant Expenditure,DEDEFI Capital Grants,Tate Galleries,98918625,771040.13,Research Grant Expenditure
BEIS,UKRI - AHRC,16/03/2021,Capital Grants & Equipment to HEIs,DEDEFI Capital Grants,Victoria and Albert Museum,98918626,1835360.12,Capital Grants & Equipment to HEIs
BEIS,UKRI - AHRC,16/03/2021,Research Grant Expenditure,DEDEFI Capital Grants,Victoria and Albert Museum,98918626,456682.41,Research Grant Expenditure
BEIS,UKRI - AHRC,16/03/2021,Research Grant Expenditure,DEDEFI Capital Grants,National Museums of Scotland,98918627,61112.03,Research Grant Expenditure
BEIS,UKRI - AHRC,16/03/2021,Research Grant Expenditure,Follow-on Fund,University College London,98918628,90414.28,Research Grant Expenditure
BEIS,UKRI - AHRC,16/03/2021,Capital Grants & Equipment to HEIs,DEDEFI Capital Grants,Historic Environment Scotland (GRANT),98918629,501886.47,Capital Grants & Equipment to HEIs
BEIS,UKRI - AHRC,16/03/2021,Capital Grants & Equipment to HEIs,DEDEFI Capital Grants,University of Durham,98918630,252926.00,Capital Grants & Equipment to HEIs
BEIS,UKRI - AHRC,16/03/2021,Capital Grants & Equipment to HEIs,DEDEFI Capital Grants,Imperial War Museum Trading Company Ltd,98918631,448557.00,Capital Grants & Equipment to HEIs
BEIS,UKRI - AHRC,16/03/2021,Capital Grants & Equipment to HEIs,DEDEFI Capital Grants,The National Archives,98918632,234000.00,Capital Grants & Equipment to HEIs
BEIS,UKRI - AHRC,16/03/2021,Research Grant Expenditure,DEDEFI Capital Grants,The National Archives,98918632,30243.00,Research Grant Expenditure
BEIS,UKRI - AHRC,16/03/2021,Capital Grants & Equipment to HEIs,DEDEFI Capital Grants,Birkbeck College,98918633,40907.77,Capital Grants & Equipment to HEIs
BEIS,UKRI - AHRC,16/03/2021,Capital Grants & Equipment to HEIs,DEDEFI Capital Grants,University of Stirling,98918634,196148.40,Capital Grants & Equipment to HEIs
BEIS,UKRI - AHRC,16/03/2021,Capital Grants & Equipment to HEIs,DEDEFI Capital Grants,Manchester Metropolitan University,98918635,116139.00,Capital Grants & Equipment to HEIs
BEIS,UKRI - AHRC,16/03/2021,Research Grant Expenditure,DEDEFI Capital Grants,Manchester Metropolitan University,98918635,7007.30,Research Grant Expenditure
BEIS,UKRI - AHRC,16/03/2021,Capital Grants & Equipment to HEIs,DEDEFI Capital Grants,Heriot Watt University,98918636,363730.08,Capital Grants & Equipment to HEIs
BEIS,UKRI - AHRC,16/03/2021,Capital Grants & Equipment to HEIs,DEDEFI Capital Grants,University of East Anglia,98918637,31595.50,Capital Grants & Equipment to HEIs
BEIS,UKRI - AHRC,16/03/2021,Research Grant Expenditure,DEDEFI Capital Grants,University of East Anglia,98918637,8008.05,Research Grant Expenditure
BEIS,UKRI - AHRC,16/03/2021,Capital Grants & Equipment to HEIs,DEDEFI Capital Grants,University of Oxford,98918638,901564.00,Capital Grants & Equipment to HEIs
BEIS,UKRI - AHRC,16/03/2021,Research Grant Expenditure,DEDEFI Capital Grants,University of Oxford,98918638,7056.70,Research Grant Expenditure
BEIS,UKRI - AHRC,16/03/2021,Capital Grants & Equipment to HEIs,DEDEFI Capital Grants,Courtauld Institute of Art,98918639,958050.65,Capital Grants & Equipment to HEIs
BEIS,UKRI - AHRC,16/03/2021,Capital Grants & Equipment to HEIs,DEDEFI Capital Grants,University of Portsmouth,98918640,94291.00,Capital Grants & Equipment to HEIs
BEIS,UKRI - AHRC,16/03/2021,Capital Grants & Equipment to HEIs,DEDEFI Capital Grants,University of Bristol GRANT,98918641,151421.47,Capital Grants & Equipment to HEIs
BEIS,UKRI - AHRC,16/03/2021,Capital Grants & Equipment to HEIs,DEDEFI Capital Grants,National Museums Liverpool,98918642,271496.00,Capital Grants & Equipment to HEIs
BEIS,UKRI - AHRC,16/03/2021,Research Grant Expenditure,DEDEFI Capital Grants,National Museums Liverpool,98918642,19799.08,Research Grant Expenditure
BEIS,UKRI - AHRC,16/03/2021,Capital Grants & Equipment to HEIs,DEDEFI Capital Grants,Royal Botanic Gardens Kew,98918643,178322.00,Capital Grants & Equipment to HEIs
BEIS,UKRI - AHRC,16/03/2021,Capital Grants & Equipment to HEIs,DEDEFI Capital Grants,The Natural History Museum,98918644,466345.20,Capital Grants & Equipment to HEIs
BEIS,UKRI - AHRC,16/03/2021,Capital Grants & Equipment to HEIs,DEDEFI Capital Grants,The British Museum,98918645,496537.54,Capital Grants & Equipment to HEIs
BEIS,UKRI - AHRC,16/03/2021,Research Grant Expenditure,DEDEFI Capital Grants,The British Museum,98918645,34156.44,Research Grant Expenditure
BEIS,UKRI - AHRC,16/03/2021,Capital Grants & Equipment to HEIs,DEDEFI Capital Grants,University of Cambridge,98918646,2556255.88,Capital Grants & Equipment to HEIs
BEIS,UKRI - AHRC,16/03/2021,Research Grant Expenditure,DEDEFI Capital Grants,University of Cambridge,98918646,430857.95,Research Grant Expenditure
BEIS,UKRI - AHRC,16/03/2021,Capital Grants & Equipment to HEIs,Commissioned Research,Cardiff University,98918647,310268.74,Capital Grants & Equipment to HEIs
BEIS,UKRI - AHRC,16/03/2021,Capital Grants & Equipment to HEIs,DEDEFI Capital Grants,University of Leicester,98918648,42351.60,Capital Grants & Equipment to HEIs
BEIS,UKRI - AHRC,16/03/2021,Capital Grants & Equipment to HEIs,DEDEFI Capital Grants,University of Newcastle Upon Tyne,98918649,738872.08,Capital Grants & Equipment to HEIs
BEIS,UKRI - AHRC,16/03/2021,Capital Grants & Equipment to HEIs,DEDEFI Capital Grants,University of Leicester,98918650,1620484.09,Capital Grants & Equipment to HEIs
BEIS,UKRI - AHRC,16/03/2021,Research Grant Expenditure,DEDEFI Capital Grants,University of Leicester,98918650,129921.61,Research Grant Expenditure
BEIS,UKRI - AHRC,16/03/2021,Research Grant Expenditure,Follow-on Fund,University of Leeds,98918651,92376.72,Research Grant Expenditure
BEIS,UKRI - AHRC,16/03/2021,Capital Grants & Equipment to HEIs,DEDEFI Capital Grants,University College London,98918652,586514.16,Capital Grants & Equipment to HEIs
BEIS,UKRI - AHRC,16/03/2021,Research Grant Expenditure,DEDEFI Capital Grants,University College London,98918652,60844.32,Research Grant Expenditure
BEIS,UKRI - AHRC,16/03/2021,Research Grant Expenditure,COVID-19,University of Birmingham GRANT,98918653,37520.57,Research Grant Expenditure
BEIS,UKRI - AHRC,16/03/2021,Research Grant Expenditure,COVID-19,University of Birmingham GRANT,98918653,37520.57,Research Grant Expenditure
BEIS,UKRI - AHRC,16/03/2021,Capital Grants & Equipment to HEIs,DEDEFI Capital Grants,National Portrait Gallery,98918654,192046.18,Capital Grants & Equipment to HEIs
BEIS,UKRI - AHRC,16/03/2021,Research Grant Expenditure,COVID-19 (AHRC funded),York St John University,98918655,46217.66,Research Grant Expenditure
BEIS,UKRI - AHRC,16/03/2021,Research Grant Expenditure,Commissioned Research,University of Oxford,98918656,90079.90,Research Grant Expenditure
BEIS,UKRI - AHRC,16/03/2021,Research Grant Expenditure,Commissioned Research,University of Exeter,98918657,100910.68,Research Grant Expenditure
BEIS,UKRI - AHRC,16/03/2021,Research Grant Expenditure,Modern Slavery and Human Rights (SPF),University of Nottingham,98918658,94277.19,Research Grant Expenditure
BEIS,UKRI - AHRC,16/03/2021,Research Grant Expenditure,Global Challenges Research Fund (GCRF),The Open University,98918659,84537.38,Research Grant Expenditure
BEIS,UKRI - AHRC,16/03/2021,Research Grant Expenditure,COVID-19 (AHRC funded),University of Leeds,98918660,353132.97,Research Grant Expenditure
BEIS,UKRI - AHRC,16/03/2021,Research Grant Expenditure,COVID-19 (AHRC funded),Goldsmiths College University of London,98918661,41825.49,Research Grant Expenditure
BEIS,UKRI - AHRC,16/03/2021,Research Grant Expenditure,Modern Slavery and Human Rights (SPF),University of Liverpool,98918662,86771.38,Research Grant Expenditure
BEIS,UKRI - AHRC,16/03/2021,Research Grant Expenditure,Funds for International Collaboration (FIC 20 US),Nottingham Trent University,98918663,16797.06,Research Grant Expenditure
BEIS,UKRI - AHRC,16/03/2021,Research Grant Expenditure,Funds for International Collaboration (FIC 20 US),University of Leicester,98918664,33592.89,Research Grant Expenditure
BEIS,UKRI - AHRC,16/03/2021,Research Grant Expenditure,Funds for International Collaboration (FIC 20 US),"City, University of London",98918665,30489.34,Research Grant Expenditure
BEIS,UKRI - AHRC,16/03/2021,Research Grant Expenditure,Funds for International Collaboration (FIC 20 US),University of York,98918666,34594.37,Research Grant Expenditure
BEIS,UKRI - AHRC,16/03/2021,Research Grant Expenditure,Funds for International Collaboration (FIC 20 US),University of Oxford,98918667,24328.77,Research Grant Expenditure
BEIS,UKRI - AHRC,16/03/2021,Research Grant Expenditure,Funds for International Collaboration (FIC 20 US),University of Exeter,98918668,23044.36,Research Grant Expenditure
BEIS,UKRI - AHRC,16/03/2021,Research Grant Expenditure,Funds for International Collaboration (FIC 20 US),Lancaster University,98918669,19261.80,Research Grant Expenditure
BEIS,UKRI - AHRC,16/03/2021,Research Grant Expenditure,Funds for International Collaboration (FIC 20 US),Science Museum Group,98918670,21611.53,Research Grant Expenditure
BEIS,UKRI - AHRC,16/03/2021,Research Grant Expenditure,Funds for International Collaboration (FIC 20 US),University of Cambridge,98918671,24543.85,Research Grant Expenditure
BEIS,UKRI - AHRC,16/03/2021,Research Grant Expenditure,Funds for International Collaboration (FIC 20 US),Loughborough University,98918672,6047.06,Research Grant Expenditure
BEIS,UKRI - AHRC,16/03/2021,Research Grant Expenditure,Funds for International Collaboration (FIC 20 US),The Alan Turing Institute,98918673,20213.13,Research Grant Expenditure
BEIS,UKRI - AHRC,16/03/2021,Research Grant Expenditure,Modern Slavery and Human Rights (SPF),University of Nottingham,98918674,65055.52,Research Grant Expenditure
BEIS,UKRI - AHRC,16/03/2021,Research Grant Expenditure,Modern Slavery and Human Rights (SPF),University of Nottingham,98918674,65055.52,Research Grant Expenditure
BEIS,UKRI - AHRC,16/03/2021,Research Grant Expenditure,Modern Slavery and Human Rights (SPF),University of Edinburgh,98918675,42192.26,Research Grant Expenditure
BEIS,UKRI - AHRC,16/03/2021,Research Grant Expenditure,COVID-19 (AHRC funded),University of the Arts London,98918676,264792.89,Research Grant Expenditure
BEIS,UKRI - AHRC,16/03/2021,Research Grant Expenditure,COVID-19,The University of Manchester,98918677,153995.01,Research Grant Expenditure
BEIS,UKRI - AHRC,16/03/2021,Research Grant Expenditure,COVID-19,University of Oxford,98918678,63793.07,Research Grant Expenditure
BEIS,UKRI - AHRC,16/03/2021,Research Grant Expenditure,COVID-19 (AHRC funded),University of Liverpool,98918679,46756.10,Research Grant Expenditure
BEIS,UKRI - AHRC,16/03/2021,Research Grant Expenditure,COVID-19 (AHRC funded),Manchester Metropolitan University,98918680,52966.61,Research Grant Expenditure
BEIS,UKRI - AHRC,16/03/2021,Research Grant Expenditure,COVID-19,Sheffield Hallam University,98918681,45773.22,Research Grant Expenditure
BEIS,UKRI - AHRC,16/03/2021,Research Grant Expenditure,COVID-19 (AHRC funded),The University of Manchester,98918682,52864.85,Research Grant Expenditure
BEIS,UKRI - AHRC,16/03/2021,Research Grant Expenditure,Global Challenges Research Fund (GCRF),University of Leicester,98918683,77290.53,Research Grant Expenditure
BEIS,UKRI - AHRC,16/03/2021,Research Grant Expenditure,Modern Slavery and Human Rights (SPF),University of Newcastle Upon Tyne,98918684,64006.83,Research Grant Expenditure
BEIS,UKRI - AHRC,16/03/2021,Research Grant Expenditure,COVID-19 (AHRC funded),University of Sheffield,98918685,88753.49,Research Grant Expenditure
BEIS,UKRI - AHRC,16/03/2021,Research Grant Expenditure,Follow-on Fund,University of Bradford,98918686,78410.08,Research Grant Expenditure
BEIS,UKRI - AHRC,16/03/2021,Research Grant Expenditure,COVID-19,University College London,98918687,54259.62,Research Grant Expenditure
BEIS,UKRI - AHRC,16/03/2021,Research Grant Expenditure,Modern Slavery and Human Rights (SPF),University of Sheffield,98918688,72626.76,Research Grant Expenditure
BEIS,UKRI - AHRC,16/03/2021,Research Grant Expenditure,Modern Slavery and Human Rights (SPF),University of Sheffield,98918688,56551.19,Research Grant Expenditure
BEIS,UKRI - AHRC,16/03/2021,Research Grant Expenditure,Modern Slavery and Human Rights (SPF),Keele University,98918689,31598.63,Research Grant Expenditure
BEIS,UKRI - AHRC,16/03/2021,Research Grant Expenditure,Networks & Workshops,Cardiff University,98918690,9069.28,Research Grant Expenditure
BEIS,UKRI - AHRC,16/03/2021,Research Grant Expenditure,Follow-on Fund,University of Newcastle Upon Tyne,98918691,80631.98,Research Grant Expenditure
BEIS,UKRI - AHRC,16/03/2021,Research Grant Expenditure,Global Challenges Research Fund (GCRF),King's College London,98918692,29221.04,Research Grant Expenditure
BEIS,UKRI - AHRC,16/03/2021,Research Grant Expenditure,Global Challenges Research Fund (GCRF),King's College London,98918692,29221.04,Research Grant Expenditure
BEIS,UKRI - AHRC,16/03/2021,Research Grant Expenditure,COVID-19,University of Liverpool,98918693,64703.15,Research Grant Expenditure
BEIS,UKRI - AHRC,16/03/2021,Research Grant Expenditure,Follow-on Fund,"University of Wales, Registry",98918694,68852.89,Research Grant Expenditure
BEIS,UKRI - AHRC,16/03/2021,Research Grant Expenditure,Global Challenges Research Fund (GCRF),London School of Hygiene & Tropical Medicine,98918695,33617.25,Research Grant Expenditure
BEIS,UKRI - AHRC,16/03/2021,Research Grant Expenditure,Global Challenges Research Fund (GCRF),University of Edinburgh,98918696,23264.43,Research Grant Expenditure
BEIS,UKRI - AHRC,16/03/2021,Research Grant Expenditure,Global Challenges Research Fund (GCRF),University of Glasgow,98918697,34761.80,Research Grant Expenditure
BEIS,UKRI - AHRC,16/03/2021,Research Grant Expenditure,Global Challenges Research Fund (GCRF),Heriot Watt University,98918698,31314.88,Research Grant Expenditure
BEIS,UKRI - AHRC,16/03/2021,Research Grant Expenditure,COVID-19,University of West London,98918699,56140.75,Research Grant Expenditure
BEIS,UKRI - AHRC,16/03/2021,Research Grant Expenditure,COVID-19,Keele University,98918700,21312.30,Research Grant Expenditure
BEIS,UKRI - AHRC,16/03/2021,Research Grant Expenditure,COVID-19,University of Plymouth,98918701,22424.66,Research Grant Expenditure
BEIS,UKRI - AHRC,16/03/2021,Research Grant Expenditure,COVID-19,University of Oxford,98918702,30538.01,Research Grant Expenditure
BEIS,UKRI - AHRC,16/03/2021,Research Grant Expenditure,COVID-19,University of Oxford,98918702,30538.01,Research Grant Expenditure
BEIS,UKRI - AHRC,16/03/2021,Research Grant Expenditure,Global Challenges Research Fund (GCRF),Loughborough University,98918703,33800.96,Research Grant Expenditure
BEIS,UKRI - AHRC,16/03/2021,Research Grant Expenditure,Global Challenges Research Fund (GCRF),University of Leicester,98918704,33881.50,Research Grant Expenditure
BEIS,UKRI - AHRC,16/03/2021,Research Grant Expenditure,Follow-on Fund,King's College London,98918705,74333.66,Research Grant Expenditure
BEIS,UKRI - AHRC,16/03/2021,Research Grant Expenditure,Global Challenges Research Fund (GCRF),Queen's University Belfast GRANT,98918706,93052.38,Research Grant Expenditure
BEIS,UKRI - AHRC,16/03/2021,Research Grant Expenditure,Global Challenges Research Fund (GCRF),University of Edinburgh,98918707,26225.17,Research Grant Expenditure
BEIS,UKRI - AHRC,16/03/2021,Research Grant Expenditure,Global Challenges Research Fund (GCRF),University of Warwick,98918708,33922.29,Research Grant Expenditure
BEIS,UKRI - AHRC,16/03/2021,Research Grant Expenditure,Global Challenges Research Fund (GCRF),Queen Mary University of London,98918709,43199.95,Research Grant Expenditure
BEIS,UKRI - AHRC,16/03/2021,Research Grant Expenditure,Follow-on Fund,University of Aberdeen,98918710,80617.61,Research Grant Expenditure
BEIS,UKRI - AHRC,16/03/2021,Research Grant Expenditure,Global Challenges Research Fund (GCRF),University of Salford,98918711,87617.87,Research Grant Expenditure
BEIS,UKRI - AHRC,16/03/2021,Research Grant Expenditure,Global Challenges Research Fund (GCRF),Royal Botanic Gardens Edinburgh,98918712,59808.58,Research Grant Expenditure
BEIS,UKRI - AHRC,16/03/2021,Research Grant Expenditure,Global Challenges Research Fund (GCRF),Nottingham Trent University,98918713,63409.13,Research Grant Expenditure
BEIS,UKRI - AHRC,16/03/2021,Research Grant Expenditure,Global Challenges Research Fund (GCRF),University of Edinburgh,98918714,91495.54,Research Grant Expenditure
BEIS,UKRI - AHRC,16/03/2021,Research Grant Expenditure,Global Challenges Research Fund (GCRF),University of Durham,98918715,68704.40,Research Grant Expenditure
BEIS,UKRI - AHRC,16/03/2021,Research Grant Expenditure,Global Challenges Research Fund (GCRF),Queen Mary University of London,98918716,90870.18,Research Grant Expenditure
BEIS,UKRI - AHRC,16/03/2021,Research Grant Expenditure,Global Challenges Research Fund (GCRF),University of Durham,98918717,89364.96,Research Grant Expenditure
BEIS,UKRI - AHRC,16/03/2021,Research Grant Expenditure,Follow-on Fund,University of Oxford,98918718,62973.25,Research Grant Expenditure
BEIS,UKRI - AHRC,16/03/2021,Research Grant Expenditure,Global Challenges Research Fund (GCRF),"City, University of London",98918719,30207.37,Research Grant Expenditure
BEIS,UKRI - AHRC,16/03/2021,Research Grant Expenditure,Commissioned Research,"Royal Holloway, University of London",98918720,78185.61,Research Grant Expenditure
BEIS,UKRI - AHRC,16/03/2021,Research Grant Expenditure,Commissioned Research,University of Southampton GRANT,98918721,79683.48,Research Grant Expenditure
BEIS,UKRI - AHRC,16/03/2021,Research Grant Expenditure,Commissioned Research,Roehampton University (University of Roehampton),98918722,48437.02,Research Grant Expenditure
BEIS,UKRI - AHRC,16/03/2021,Research Grant Expenditure,Commissioned Research,University of Durham,98918723,78276.42,Research Grant Expenditure
BEIS,UKRI - AHRC,16/03/2021,Research Grant Expenditure,Commissioned Research,Royal College of Art,98918724,78961.69,Research Grant Expenditure
BEIS,UKRI - AHRC,16/03/2021,Research Grant Expenditure,Commissioned Research,University of Sheffield,98918725,79077.74,Research Grant Expenditure
BEIS,UKRI - AHRC,16/03/2021,Research Grant Expenditure,Global Challenges Research Fund (GCRF),Coventry University,98918726,33671.12,Research Grant Expenditure
BEIS,UKRI - AHRC,16/03/2021,Research Grant Expenditure,Follow-on Fund,University of Sussex,98918727,80583.95,Research Grant Expenditure
BEIS,UKRI - AHRC,16/03/2021,Research Grant Expenditure,Research Grants,University of Leeds,98918728,19841.33,Research Grant Expenditure
BEIS,UKRI - AHRC,16/03/2021,Research Grant Expenditure,Follow-on Fund,UNIVERSITY OF ULSTER,98918729,60341.68,Research Grant Expenditure
BEIS,UKRI - AHRC,16/03/2021,Research Grant Expenditure,Follow-on Fund,The Open University,98918730,6044.02,Research Grant Expenditure
BEIS,UKRI - AHRC,16/03/2021,Research Grant Expenditure,Follow-on Fund,The Open University,98918730,18132.06,Research Grant Expenditure
BEIS,UKRI - AHRC,16/03/2021,Research Grant Expenditure,Global Challenges Research Fund (GCRF),University of the West of England,98918731,38035.01,Research Grant Expenditure
BEIS,UKRI - AHRC,16/03/2021,Research Grant Expenditure,Global Challenges Research Fund (GCRF),University of Leeds,98918732,47402.52,Research Grant Expenditure
BEIS,UKRI - AHRC,16/03/2021,Research Grant Expenditure,Research Grants,University College London,98918733,21011.45,Research Grant Expenditure
BEIS,UKRI - AHRC,16/03/2021,Research Grant Expenditure,The Newton Fund Impact Scheme (NFIS),Coventry University,98918734,12434.65,Research Grant Expenditure
BEIS,UKRI - AHRC,16/03/2021,Research Grant Expenditure,Climate Resilience (SPF w1),University of Hull,98918735,44853.82,Research Grant Expenditure
BEIS,UKRI - AHRC,16/03/2021,Research Grant Expenditure,JPI Cultural Heritage,University College London,98918736,11102.19,Research Grant Expenditure
BEIS,UKRI - AHRC,16/03/2021,Research Grant Expenditure,Climate Resilience (SPF w1),University of Liverpool,98918737,40325.12,Research Grant Expenditure
BEIS,UKRI - AHRC,16/03/2021,Research Grant Expenditure,AHRC - DFG Collaborative Research Grant,University College London,98918738,85043.64,Research Grant Expenditure
BEIS,UKRI - AHRC,16/03/2021,Research Grant Expenditure,AHRC - DFG Collaborative Research Grant,University College London,98918739,84849.67,Research Grant Expenditure
BEIS,UKRI - AHRC,16/03/2021,Research Grant Expenditure,AHRC - DFG Collaborative Research Grant,University of Oxford,98918740,83985.46,Research Grant Expenditure
BEIS,UKRI - AHRC,16/03/2021,Research Grant Expenditure,AHRC - DFG Collaborative Research Grant,Birkbeck College,98918741,69757.29,Research Grant Expenditure
BEIS,UKRI - AHRC,16/03/2021,Research Grant Expenditure,AHRC - DFG Collaborative Research Grant,University of Dundee,98918742,85066.13,Research Grant Expenditure
BEIS,UKRI - AHRC,16/03/2021,Research Grant Expenditure,AHRC - DFG Collaborative Research Grant,University of the Arts London,98918743,84852.17,Research Grant Expenditure
BEIS,UKRI - AHRC,16/03/2021,Research Grant Expenditure,AHRC - DFG Collaborative Research Grant,"SOAS, University of London",98918744,85268.37,Research Grant Expenditure
BEIS,UKRI - AHRC,16/03/2021,Research Grant Expenditure,Follow-on Fund,University of Sheffield,98918745,59344.50,Research Grant Expenditure
BEIS,UKRI - AHRC,16/03/2021,Research Grant Expenditure,AHRC - DFG Collaborative Research Grant,University of Stirling,98918746,85271.44,Research Grant Expenditure
BEIS,UKRI - AHRC,16/03/2021,Research Grant Expenditure,Climate Resilience (SPF w1),The University of Manchester,98918747,42221.27,Research Grant Expenditure
BEIS,UKRI - AHRC,16/03/2021,Research Grant Expenditure,AHRC - DFG Collaborative Research Grant,King's College London,98918748,81386.95,Research Grant Expenditure
BEIS,UKRI - AHRC,16/03/2021,Research Grant Expenditure,AHRC - DFG Collaborative Research Grant,University of Bristol GRANT,98918749,84678.09,Research Grant Expenditure
BEIS,UKRI - AHRC,16/03/2021,Research Grant Expenditure,Research Grants,Birmingham City University,98918750,21042.73,Research Grant Expenditure
BEIS,UKRI - AHRC,16/03/2021,Research Grant Expenditure,AHRC - DFG Collaborative Research Grant,University of Oxford,98918751,85250.70,Research Grant Expenditure
BEIS,UKRI - AHRC,16/03/2021,Research Grant Expenditure,AHRC - DFG Collaborative Research Grant,University of Durham,98918752,77176.15,Research Grant Expenditure
BEIS,UKRI - AHRC,16/03/2021,Research Grant Expenditure,AHRC - DFG Collaborative Research Grant,University of Edinburgh,98918753,85416.69,Research Grant Expenditure
BEIS,UKRI - AHRC,16/03/2021,Research Grant Expenditure,AHRC - DFG Collaborative Research Grant,Nottingham Trent University,98918754,61246.26,Research Grant Expenditure
BEIS,UKRI - AHRC,16/03/2021,Research Grant Expenditure,AHRC - DFG Collaborative Research Grant,Loughborough University,98918755,80946.26,Research Grant Expenditure
BEIS,UKRI - AHRC,16/03/2021,Research Grant Expenditure,Research Grants,University of Exeter,98918756,54204.38,Research Grant Expenditure
BEIS,UKRI - AHRC,16/03/2021,Research Grant Expenditure,Funds for International Collaboration (FIC 20 US),Queen's University Belfast GRANT,98918757,6582.66,Research Grant Expenditure
BEIS,UKRI - AHRC,16/03/2021,Research Grant Expenditure,AHRC - DFG Collaborative Research Grant,University of Sheffield,98918758,83940.30,Research Grant Expenditure
BEIS,UKRI - AHRC,16/03/2021,Research Grant Expenditure,Funds for International Collaboration (FIC 20 US),University of London,98918759,12095.85,Research Grant Expenditure
BEIS,UKRI - AHRC,16/03/2021,Research Grant Expenditure,JPI Cultural Heritage,University of Durham,98918760,10741.72,Research Grant Expenditure
BEIS,UKRI - AHRC,16/03/2021,Research Grant Expenditure,AHRC - DFG Collaborative Research Grant,University College London,98918761,85252.35,Research Grant Expenditure
BEIS,UKRI - AHRC,16/03/2021,Research Grant Expenditure,Networks & Workshops,University of the Arts London,98918762,5995.30,Research Grant Expenditure
BEIS,UKRI - AHRC,16/03/2021,Research Grant Expenditure,Global Challenges Research Fund (GCRF),University of York,98918763,31822.90,Research Grant Expenditure
BEIS,UKRI - AHRC,16/03/2021,Research Grant Expenditure,Research Grants,University of Birmingham GRANT,98918764,44827.95,Research Grant Expenditure
BEIS,UKRI - AHRC,16/03/2021,Research Grant Expenditure,Networks & Workshops,Aberystwyth University,98918765,5771.99,Research Grant Expenditure
BEIS,UKRI - AHRC,16/03/2021,Research Grant Expenditure,Follow-on Fund,University of Birmingham GRANT,98918766,45951.22,Research Grant Expenditure
BEIS,UKRI - AHRC,16/03/2021,Research Grant Expenditure,Follow-on Fund,University of Huddersfield,98918767,60444.49,Research Grant Expenditure
BEIS,UKRI - AHRC,16/03/2021,Research Grant Expenditure,Research Grants,University of Edinburgh,98918768,88594.68,Research Grant Expenditure
BEIS,UKRI - AHRC,16/03/2021,Research Grant Expenditure,Follow-on Fund,University of Stirling,98918769,74026.40,Research Grant Expenditure
BEIS,UKRI - AHRC,16/03/2021,Research Grant Expenditure,JPI Cultural Heritage,University of York,98918770,16514.90,Research Grant Expenditure
BEIS,UKRI - AHRC,16/03/2021,Research Grant Expenditure,Networks & Workshops,University of York,98918771,3985.14,Research Grant Expenditure
BEIS,UKRI - AHRC,16/03/2021,Research Grant Expenditure,Research Grants,University of York,98918772,22429.81,Research Grant Expenditure
BEIS,UKRI - AHRC,16/03/2021,Research Grant Expenditure,Towards a National Collection (SPF),Historic Environment Scotland (GRANT),98918773,90312.24,Research Grant Expenditure
BEIS,UKRI - AHRC,16/03/2021,Research Grant Expenditure,Follow-on Fund,University of Newcastle Upon Tyne,98918774,59821.64,Research Grant Expenditure
BEIS,UKRI - AHRC,16/03/2021,Research Grant Expenditure,RCUK Global Challenges Research Fund (RCUK GCRF),University of Liverpool,98918775,25920.34,Research Grant Expenditure
BEIS,UKRI - AHRC,16/03/2021,Research Grant Expenditure,Commissioned Research,Royal Botanic Gardens Kew,98918776,83352.27,Research Grant Expenditure
BEIS,UKRI - AHRC,16/03/2021,Research Grant Expenditure,Commissioned Research,"Royal Holloway, University of London",98918777,93277.87,Research Grant Expenditure
BEIS,UKRI - AHRC,16/03/2021,Research Grant Expenditure,Commissioned Research,Institute of Development Studies,98918778,83404.38,Research Grant Expenditure
BEIS,UKRI - AHRC,16/03/2021,Research Grant Expenditure,RCUK Global Challenges Research Fund (RCUK GCRF),University of Stirling,98918779,30793.62,Research Grant Expenditure
BEIS,UKRI - AHRC,16/03/2021,Research Grant Expenditure,RCUK Global Challenges Research Fund (RCUK GCRF),Institute of Development Studies,98918780,21215.52,Research Grant Expenditure
BEIS,UKRI - AHRC,16/03/2021,Research Grant Expenditure,AHRC - DFG Collaborative Research Grant,University of Leeds,98918781,71139.61,Research Grant Expenditure
BEIS,UKRI - AHRC,16/03/2021,Research Grant Expenditure,AHRC - DFG Collaborative Research Grant,University of Glasgow,98918782,78990.25,Research Grant Expenditure
BEIS,UKRI - AHRC,16/03/2021,Research Grant Expenditure,Creative Economy,Loughborough University,98918783,68035.47,Research Grant Expenditure
BEIS,UKRI - AHRC,16/03/2021,Research Grant Expenditure,Follow-on Fund,The Open University,98918784,78523.94,Research Grant Expenditure
BEIS,UKRI - AHRC,16/03/2021,Research Grant Expenditure,Follow-on Fund,University of Cambridge,98918785,21962.02,Research Grant Expenditure
BEIS,UKRI - AHRC,16/03/2021,Research Grant Expenditure,Research Grants,University of Cambridge,98918786,79498.89,Research Grant Expenditure
BEIS,UKRI - AHRC,16/03/2021,Research Grant Expenditure,AHRC - DFG Collaborative Research Grant,University of Strathclyde,98918787,67504.33,Research Grant Expenditure
BEIS,UKRI - AHRC,16/03/2021,Research Grant Expenditure,Global Challenges Research Fund (GCRF),University of Newcastle Upon Tyne,98918788,32640.83,Research Grant Expenditure
BEIS,UKRI - AHRC,16/03/2021,Research Grant Expenditure,AHRC - DFG Collaborative Research Grant,Bath Spa University,98918789,73010.00,Research Grant Expenditure
BEIS,UKRI - AHRC,16/03/2021,Research Grant Expenditure,AHRC - DFG Collaborative Research Grant,Queen Mary University of London,98918790,71002.88,Research Grant Expenditure
BEIS,UKRI - AHRC,16/03/2021,Research Grant Expenditure,Global Challenges Research Fund (GCRF),University of Newcastle Upon Tyne,98918791,34062.48,Research Grant Expenditure
BEIS,UKRI - AHRC,16/03/2021,Research Grant Expenditure,AHRC - DFG Collaborative Research Grant,University of Oxford,98918792,70959.98,Research Grant Expenditure
BEIS,UKRI - AHRC,16/03/2021,Research Grant Expenditure,Networks & Workshops,University of Lincoln,98918793,4676.43,Research Grant Expenditure
BEIS,UKRI - AHRC,16/03/2021,Research Grant Expenditure,Networks & Workshops,University of Lincoln,98918793,4676.43,Research Grant Expenditure
BEIS,UKRI - AHRC,16/03/2021,Research Grant Expenditure,AHRC - DFG Collaborative Research Grant,University of Oxford,98918794,71078.84,Research Grant Expenditure
BEIS,UKRI - AHRC,16/03/2021,Research Grant Expenditure,AHRC - DFG Collaborative Research Grant,University of Oxford,98918795,71109.90,Research Grant Expenditure
BEIS,UKRI - AHRC,16/03/2021,Research Grant Expenditure,AHRC - DFG Collaborative Research Grant,University of Aberdeen,98918796,71068.31,Research Grant Expenditure
BEIS,UKRI - AHRC,16/03/2021,Research Grant Expenditure,AHRC - DFG Collaborative Research Grant,Roehampton University (University of Roehampton),98918797,71129.28,Research Grant Expenditure
BEIS,UKRI - AHRC,16/03/2021,Research Grant Expenditure,AHRC - DFG Collaborative Research Grant,University of Cambridge,98918798,71139.98,Research Grant Expenditure
BEIS,UKRI - AHRC,16/03/2021,Research Grant Expenditure,AHRC - DFG Collaborative Research Grant,University of Bristol GRANT,98918799,71018.22,Research Grant Expenditure
BEIS,UKRI - AHRC,16/03/2021,Research Grant Expenditure,AHRC - DFG Collaborative Research Grant,University of Oxford,98918800,70890.21,Research Grant Expenditure
BEIS,UKRI - AHRC,16/03/2021,Research Grant Expenditure,AHRC - DFG Collaborative Research Grant,University of Liverpool,98918801,71140.00,Research Grant Expenditure
BEIS,UKRI - AHRC,16/03/2021,Research Grant Expenditure,AHRC - DFG Collaborative Research Grant,The British Museum,98918802,63689.50,Research Grant Expenditure
BEIS,UKRI - AHRC,16/03/2021,Research Grant Expenditure,AHRC - DFG Collaborative Research Grant,University of Cambridge,98918803,71132.30,Research Grant Expenditure
BEIS,UKRI - AHRC,16/03/2021,Research Grant Expenditure,AHRC - DFG Collaborative Research Grant,University College London,98918804,71140.15,Research Grant Expenditure
BEIS,UKRI - AHRC,16/03/2021,Research Grant Expenditure,AHRC - DFG Collaborative Research Grant,University of the Highlands and Islands,98918805,71020.47,Research Grant Expenditure
BEIS,UKRI - AHRC,16/03/2021,Research Grant Expenditure,AHRC - DFG Collaborative Research Grant,University of Birmingham GRANT,98918806,71082.40,Research Grant Expenditure
BEIS,UKRI - AHRC,16/03/2021,Research Grant Expenditure,Modern Slavery and Human Rights (SPF),British Institute Of International And Comparative Law,98918807,216182.64,Research Grant Expenditure
BEIS,UKRI - AHRC,16/03/2021,Research Grant Expenditure,Follow-on Fund,The University of Manchester,98918808,57719.28,Research Grant Expenditure
BEIS,UKRI - AHRC,16/03/2021,Research Grant Expenditure,Networks & Workshops,Coventry University,98918809,5355.20,Research Grant Expenditure
BEIS,UKRI - AHRC,16/03/2021,Research Grant Expenditure,Global Challenges Research Fund (GCRF),Sheffield Hallam University,98918810,32448.87,Research Grant Expenditure
BEIS,UKRI - AHRC,16/03/2021,Research Grant Expenditure,Commissioned Research,University of Newcastle Upon Tyne,98918811,60929.42,Research Grant Expenditure
BEIS,UKRI - AHRC,16/03/2021,Research Grant Expenditure,Global Challenges Research Fund (GCRF),University of Sheffield,98918812,22793.12,Research Grant Expenditure
BEIS,UKRI - AHRC,16/03/2021,Research Grant Expenditure,Funds for International Collaboration (FIC 20 US),Abertay University,98918813,147541.50,Research Grant Expenditure
BEIS,UKRI - AHRC,16/03/2021,Research Grant Expenditure,Funds for International Collaboration (FIC 20 US),Robert Gordon University,98918814,151551.22,Research Grant Expenditure
BEIS,UKRI - AHRC,16/03/2021,Research Grant Expenditure,Funds for International Collaboration (FIC 20 US),University of Liverpool,98918815,203230.34,Research Grant Expenditure
BEIS,UKRI - AHRC,16/03/2021,Research Grant Expenditure,Funds for International Collaboration (FIC 20 US),Goldsmiths College University of London,98918816,155018.38,Research Grant Expenditure
BEIS,UKRI - AHRC,16/03/2021,Research Grant Expenditure,Funds for International Collaboration (FIC 20 US),Brunel University London,98918817,222090.87,Research Grant Expenditure
BEIS,UKRI - AHRC,16/03/2021,Research Grant Expenditure,Funds for International Collaboration (FIC 20 US),University College London,98918818,36234.42,Research Grant Expenditure
BEIS,UKRI - AHRC,16/03/2021,Research Grant Expenditure,Funds for International Collaboration (FIC 20 US),University College London,98918818,36234.42,Research Grant Expenditure
BEIS,UKRI - AHRC,16/03/2021,Research Grant Expenditure,Funds for International Collaboration (FIC 20 US),University College London,98918818,36234.42,Research Grant Expenditure
BEIS,UKRI - AHRC,16/03/2021,Research Grant Expenditure,Funds for International Collaboration (FIC 20 US),University of Leeds,98918819,59972.96,Research Grant Expenditure
BEIS,UKRI - AHRC,16/03/2021,Research Grant Expenditure,Funds for International Collaboration (FIC 20 US),University of Leeds,98918819,151012.71,Research Grant Expenditure
BEIS,UKRI - AHRC,16/03/2021,Research Grant Expenditure,Networks & Workshops,Coventry University,98918820,2968.06,Research Grant Expenditure
BEIS,UKRI - AHRC,16/03/2021,Research Grant Expenditure,Funds for International Collaboration (FIC 20 US),University of Nottingham,98918821,165659.87,Research Grant Expenditure
BEIS,UKRI - AHRC,16/03/2021,Research Grant Expenditure,Towards a National Collection (SPF),Victoria and Albert Museum,98918822,27001.95,Research Grant Expenditure
BEIS,UKRI - AHRC,16/03/2021,Research Grant Expenditure,Towards a National Collection (SPF),The British Library,98918823,20981.12,Research Grant Expenditure
BEIS,UKRI - AHRC,16/03/2021,Research Grant Expenditure,Towards a National Collection (SPF),The National Archives,98918824,21990.38,Research Grant Expenditure
BEIS,UKRI - AHRC,16/03/2021,Research Grant Expenditure,Towards a National Collection (SPF),The National Archives,98918825,64514.20,Research Grant Expenditure
BEIS,UKRI - AHRC,16/03/2021,Research Grant Expenditure,Towards a National Collection (SPF),The British Library,98918826,22660.87,Research Grant Expenditure
BEIS,UKRI - AHRC,16/03/2021,Research Grant Expenditure,Towards a National Collection (SPF),The National Gallery,98918827,25208.80,Research Grant Expenditure
BEIS,UKRI - AHRC,16/03/2021,Research Grant Expenditure,Towards a National Collection (SPF),Tate Galleries,98918828,26751.85,Research Grant Expenditure
BEIS,UKRI - AHRC,16/03/2021,Research Grant Expenditure,Towards a National Collection (SPF),Science Museum Group,98918829,20137.70,Research Grant Expenditure
BEIS,UKRI - AHRC,16/03/2021,Research Grant Expenditure,Research Grants,University of Huddersfield,98918830,16524.16,Research Grant Expenditure
BEIS,UKRI - AHRC,16/03/2021,Research Grant Expenditure,Networks & Workshops,"Royal Holloway, University of London",98918831,5694.75,Research Grant Expenditure
BEIS,UKRI - AHRC,16/03/2021,Research Grant Expenditure,Research Grants,University of Edinburgh,98918832,24943.72,Research Grant Expenditure
BEIS,UKRI - AHRC,16/03/2021,Research Grant Expenditure,Research Grants,University of Newcastle Upon Tyne,98918833,52669.79,Research Grant Expenditure
BEIS,UKRI - AHRC,16/03/2021,Research Grant Expenditure,Networks & Workshops,University of Stirling,98918834,6517.35,Research Grant Expenditure
BEIS,UKRI - AHRC,16/03/2021,Research Grant Expenditure,Research Grants,University of Salford,98918835,17356.65,Research Grant Expenditure
BEIS,UKRI - AHRC,16/03/2021,Research Grant Expenditure,Follow-on Fund,University of Leeds,98918836,80646.14,Research Grant Expenditure
BEIS,UKRI - AHRC,16/03/2021,Research Grant Expenditure,Networks & Workshops,University of Leeds,98918837,6521.63,Research Grant Expenditure
BEIS,UKRI - AHRC,16/03/2021,Research Grant Expenditure,RCUK Global Challenges Research Fund (RCUK GCRF),University of Exeter,98918838,116683.55,Research Grant Expenditure
BEIS,UKRI - AHRC,16/03/2021,Research Grant Expenditure,RCUK Global Challenges Research Fund (RCUK GCRF),University of Lincoln,98918839,116879.65,Research Grant Expenditure
BEIS,UKRI - AHRC,16/03/2021,Research Grant Expenditure,RCUK Global Challenges Research Fund (RCUK GCRF),The Open University,98918840,74846.94,Research Grant Expenditure
BEIS,UKRI - AHRC,16/03/2021,Research Grant Expenditure,RCUK Global Challenges Research Fund (RCUK GCRF),University of Birmingham GRANT,98918841,115318.03,Research Grant Expenditure
BEIS,UKRI - AHRC,16/03/2021,Research Grant Expenditure,RCUK Global Challenges Research Fund (RCUK GCRF),UNIVERSITY OF ULSTER,98918842,130423.69,Research Grant Expenditure
BEIS,UKRI - AHRC,16/03/2021,Research Grant Expenditure,RCUK Global Challenges Research Fund (RCUK GCRF),University of Bath,98918843,113681.32,Research Grant Expenditure
BEIS,UKRI - AHRC,16/03/2021,Research Grant Expenditure,RCUK Global Challenges Research Fund (RCUK GCRF),Aberystwyth University,98918844,115602.02,Research Grant Expenditure
BEIS,UKRI - AHRC,16/03/2021,Research Grant Expenditure,RCUK Global Challenges Research Fund (RCUK GCRF),Keele University,98918845,115567.96,Research Grant Expenditure
BEIS,UKRI - AHRC,16/03/2021,Research Grant Expenditure,RCUK Global Challenges Research Fund (RCUK GCRF),University of Glasgow,98918846,134717.54,Research Grant Expenditure
BEIS,UKRI - AHRC,16/03/2021,Research Grant Expenditure,RCUK Global Challenges Research Fund (RCUK GCRF),University of Bristol GRANT,98918847,114626.54,Research Grant Expenditure
BEIS,UKRI - AHRC,16/03/2021,Research Grant Expenditure,RCUK Global Challenges Research Fund (RCUK GCRF),University of Birmingham GRANT,98918848,298688.19,Research Grant Expenditure
BEIS,UKRI - AHRC,16/03/2021,Research Grant Expenditure,Networks & Workshops,University of Edinburgh,98918849,4943.43,Research Grant Expenditure
BEIS,UKRI - AHRC,16/03/2021,Research Grant Expenditure,DFID Collaborative Humanitarian Protection Research Programme (CHPRP),Queen's University Belfast GRANT,98918850,56271.45,Research Grant Expenditure
BEIS,UKRI - AHRC,16/03/2021,Research Grant Expenditure,DFID Collaborative Humanitarian Protection Research Programme (CHPRP),London School of Economics and Political Science,98918851,61037.41,Research Grant Expenditure
BEIS,UKRI - AHRC,16/03/2021,Research Grant Expenditure,DFID Collaborative Humanitarian Protection Research Programme (CHPRP),University of Warwick,98918852,61340.04,Research Grant Expenditure
BEIS,UKRI - AHRC,16/03/2021,Research Grant Expenditure,DFID Collaborative Humanitarian Protection Research Programme (CHPRP),University of Bath,98918853,86100.39,Research Grant Expenditure
BEIS,UKRI - AHRC,16/03/2021,Research Grant Expenditure,DFID Collaborative Humanitarian Protection Research Programme (CHPRP),Institute of Development Studies,98918854,65049.55,Research Grant Expenditure
BEIS,UKRI - AHRC,16/03/2021,Research Grant Expenditure,DFID Collaborative Humanitarian Protection Research Programme (CHPRP),University of Durham,98918855,49904.09,Research Grant Expenditure
BEIS,UKRI - AHRC,16/03/2021,Research Grant Expenditure,DFID Collaborative Humanitarian Protection Research Programme (CHPRP),University of Oxford,98918856,73917.63,Research Grant Expenditure
BEIS,UKRI - AHRC,16/03/2021,Research Grant Expenditure,DFID Collaborative Humanitarian Protection Research Programme (CHPRP),University of Portsmouth,98918861,64538.89,Research Grant Expenditure
BEIS,UKRI - AHRC,16/03/2021,Research Grant Expenditure,Research Grants,Oxford Brookes University,98918863,75274.94,Research Grant Expenditure
BEIS,UKRI - AHRC,16/03/2021,Research Grant Expenditure,Research Grants,Bangor University,98918864,24853.11,Research Grant Expenditure
BEIS,UKRI - AHRC,16/03/2021,Research Grant Expenditure,Research Grants,University of Glasgow,98918865,64577.67,Research Grant Expenditure
BEIS,UKRI - AHRC,16/03/2021,Research Grant Expenditure,Research Grants,Birmingham City University,98918866,45279.38,Research Grant Expenditure
BEIS,UKRI - AHRC,16/03/2021,Research Grant Expenditure,Networks & Workshops,De Montfort University,98918867,6031.90,Research Grant Expenditure
BEIS,UKRI - AHRC,16/03/2021,Research Grant Expenditure,Research Grants,University of Nottingham,98918868,61118.82,Research Grant Expenditure
BEIS,UKRI - AHRC,16/03/2021,Research Grant Expenditure,Networks & Workshops,University of Portsmouth,98918869,6019.16,Research Grant Expenditure
BEIS,UKRI - AHRC,16/03/2021,Research Grant Expenditure,Research Grants,University of East Anglia,98918870,35798.94,Research Grant Expenditure
BEIS,UKRI - AHRC,16/03/2021,Research Grant Expenditure,Research Grants,Loughborough University,98918871,28878.57,Research Grant Expenditure
BEIS,UKRI - AHRC,16/03/2021,Research Grant Expenditure,Networks & Workshops,University of Leeds,98918872,4626.38,Research Grant Expenditure
BEIS,UKRI - AHRC,16/03/2021,Research Grant Expenditure,Networks & Workshops,University of Exeter,98918873,3993.63,Research Grant Expenditure
BEIS,UKRI - AHRC,16/03/2021,Research Grant Expenditure,Networks & Workshops,University of Leeds,98918874,6024.63,Research Grant Expenditure
BEIS,UKRI - AHRC,16/03/2021,Research Grant Expenditure,Networks & Workshops,University of Hull,98918875,4478.46,Research Grant Expenditure
BEIS,UKRI - AHRC,16/03/2021,Research Grant Expenditure,Follow-on Fund,University College London,98918876,19998.47,Research Grant Expenditure
BEIS,UKRI - AHRC,16/03/2021,Research Grant Expenditure,Networks & Workshops,Leeds Beckett University,98918877,3015.48,Research Grant Expenditure
BEIS,UKRI - AHRC,16/03/2021,Research Grant Expenditure,Research Grants,University of Southampton GRANT,98918878,38285.74,Research Grant Expenditure
BEIS,UKRI - AHRC,16/03/2021,Research Grant Expenditure,Networks & Workshops,Bath Spa University,98918879,3994.41,Research Grant Expenditure
BEIS,UKRI - AHRC,16/03/2021,Research Grant Expenditure,Research Grants,University of Birmingham GRANT,98918880,24221.26,Research Grant Expenditure
BEIS,UKRI - AHRC,16/03/2021,Research Grant Expenditure,Research Grants,University of Bristol GRANT,98918881,64998.01,Research Grant Expenditure
BEIS,UKRI - AHRC,16/03/2021,Research Grant Expenditure,Research Grants,Keele University,98918882,42191.39,Research Grant Expenditure
BEIS,UKRI - AHRC,16/03/2021,Research Grant Expenditure,RCUK Global Challenges Research Fund (RCUK GCRF),University of St Andrews,98918883,44927.21,Research Grant Expenditure
BEIS,UKRI - AHRC,16/03/2021,Research Grant Expenditure,RCUK Global Challenges Research Fund (RCUK GCRF),Queen Mary University of London,98918884,46538.00,Research Grant Expenditure
BEIS,UKRI - AHRC,16/03/2021,Research Grant Expenditure,RCUK Global Challenges Research Fund (RCUK GCRF),University of Sheffield,98918885,333.21,Research Grant Expenditure
BEIS,UKRI - AHRC,16/03/2021,Research Grant Expenditure,RCUK Global Challenges Research Fund (RCUK GCRF),University of Leeds,98918886,52872.91,Research Grant Expenditure
BEIS,UKRI - AHRC,16/03/2021,Research Grant Expenditure,RCUK Global Challenges Research Fund (RCUK GCRF),International Institute For Environment And Development,98918887,43714.36,Research Grant Expenditure
BEIS,UKRI - AHRC,16/03/2021,Research Grant Expenditure,Research Grants,University of Sussex,98918888,65588.32,Research Grant Expenditure
BEIS,UKRI - AHRC,16/03/2021,Research Grant Expenditure,RCUK Global Challenges Research Fund (RCUK GCRF),University of York,98918889,38889.50,Research Grant Expenditure
BEIS,UKRI - AHRC,16/03/2021,Research Grant Expenditure,Networks & Workshops,University of Birmingham GRANT,98918890,5191.87,Research Grant Expenditure
BEIS,UKRI - AHRC,16/03/2021,Research Grant Expenditure,RCUK Global Challenges Research Fund (RCUK GCRF),University of Nottingham,98918891,43784.89,Research Grant Expenditure
BEIS,UKRI - AHRC,16/03/2021,Research Grant Expenditure,Research Grants,University of Stirling,98918892,68324.53,Research Grant Expenditure
BEIS,UKRI - AHRC,16/03/2021,Research Grant Expenditure,Research Grants,University of Durham,98918893,62621.96,Research Grant Expenditure
BEIS,UKRI - AHRC,16/03/2021,Research Grant Expenditure,Commissioned Research,University of Nottingham,98918894,83714.76,Research Grant Expenditure
BEIS,UKRI - AHRC,16/03/2021,Research Grant Expenditure,Research Grants,University of Sussex,98918895,12362.15,Research Grant Expenditure
BEIS,UKRI - AHRC,16/03/2021,Research Grant Expenditure,Networks & Workshops,Oxford Brookes University,98918896,5396.79,Research Grant Expenditure
BEIS,UKRI - AHRC,16/03/2021,Research Grant Expenditure,Research Grants,Liverpool John Moores University,98918897,24453.96,Research Grant Expenditure
BEIS,UKRI - AHRC,16/03/2021,Research Grant Expenditure,Research Grants,University of Kent,98918898,22046.37,Research Grant Expenditure
BEIS,UKRI - AHRC,16/03/2021,Research Grant Expenditure,Research Grants,Loughborough University,98918899,27426.66,Research Grant Expenditure
BEIS,UKRI - AHRC,16/03/2021,Research Grant Expenditure,Research Grants,University of Sheffield,98918900,65645.90,Research Grant Expenditure
BEIS,UKRI - AHRC,16/03/2021,Research Grant Expenditure,Research Grants,Loughborough University,98918901,33436.18,Research Grant Expenditure
BEIS,UKRI - AHRC,16/03/2021,Research Grant Expenditure,Research Grants,University of Stirling,98918902,60982.99,Research Grant Expenditure
BEIS,UKRI - AHRC,16/03/2021,Research Grant Expenditure,Research Grants,University of Leicester,98918903,43058.65,Research Grant Expenditure
BEIS,UKRI - AHRC,16/03/2021,Research Grant Expenditure,Research Grants,University of Leeds,98918904,41610.53,Research Grant Expenditure
BEIS,UKRI - AHRC,16/03/2021,Research Grant Expenditure,Networks & Workshops,"Royal Holloway, University of London",98918905,3073.89,Research Grant Expenditure
BEIS,UKRI - AHRC,16/03/2021,Research Grant Expenditure,Research Grants,The British Museum,98918906,51260.48,Research Grant Expenditure
BEIS,UKRI - AHRC,16/03/2021,Research Grant Expenditure,Research Grants,Manchester Metropolitan University,98918907,62601.22,Research Grant Expenditure
BEIS,UKRI - AHRC,16/03/2021,Research Grant Expenditure,Research Grants,The Open University,98918908,13850.19,Research Grant Expenditure
BEIS,UKRI - AHRC,16/03/2021,Research Grant Expenditure,Research Grants,The Open University,98918908,13850.19,Research Grant Expenditure
BEIS,UKRI - AHRC,16/03/2021,Research Grant Expenditure,Research Grants,The Open University,98918908,13850.19,Research Grant Expenditure
BEIS,UKRI - AHRC,16/03/2021,Research Grant Expenditure,Research Grants,University of Leicester,98918909,76633.44,Research Grant Expenditure
BEIS,UKRI - AHRC,16/03/2021,Research Grant Expenditure,Research Grants,Cardiff University,98918910,25399.49,Research Grant Expenditure
BEIS,UKRI - AHRC,16/03/2021,Research Grant Expenditure,Research Grants,University College London,98918911,20282.77,Research Grant Expenditure
BEIS,UKRI - AHRC,16/03/2021,Research Grant Expenditure,Research Grants,University of Newcastle Upon Tyne,98918912,70267.36,Research Grant Expenditure
BEIS,UKRI - AHRC,16/03/2021,Research Grant Expenditure,Research Grants,University of Oxford,98918913,52850.22,Research Grant Expenditure
BEIS,UKRI - AHRC,16/03/2021,Research Grant Expenditure,Research Grants,University of York,98918914,55350.38,Research Grant Expenditure
BEIS,UKRI - AHRC,16/03/2021,Research Grant Expenditure,Research Grants,University of Leeds,98918915,49183.07,Research Grant Expenditure
BEIS,UKRI - AHRC,16/03/2021,Research Grant Expenditure,Research Grants,University of Birmingham GRANT,98918916,29408.22,Research Grant Expenditure
BEIS,UKRI - AHRC,16/03/2021,Research Grant Expenditure,Research Grants,University of Newcastle Upon Tyne,98918917,62228.59,Research Grant Expenditure
BEIS,UKRI - AHRC,16/03/2021,Research Grant Expenditure,Research Grants,Royal College of Music,98918918,62860.10,Research Grant Expenditure
BEIS,UKRI - AHRC,16/03/2021,Research Grant Expenditure,Research Grants,Royal College of Music,98918918,62860.10,Research Grant Expenditure
BEIS,UKRI - AHRC,16/03/2021,Research Grant Expenditure,Research Grants,Royal College of Music,98918918,63369.27,Research Grant Expenditure
BEIS,UKRI - AHRC,16/03/2021,Research Grant Expenditure,Research Grants,Royal College of Music,98918918,63369.27,Research Grant Expenditure
BEIS,UKRI - AHRC,16/03/2021,Research Grant Expenditure,Research Grants,Cardiff University,98918919,58860.39,Research Grant Expenditure
BEIS,UKRI - AHRC,16/03/2021,Research Grant Expenditure,Networks & Workshops,University of Liverpool,98918920,5894.41,Research Grant Expenditure
BEIS,UKRI - AHRC,16/03/2021,Research Grant Expenditure,Research Grants,The University of Manchester,98918921,30557.07,Research Grant Expenditure
BEIS,UKRI - AHRC,16/03/2021,Research Grant Expenditure,Networks & Workshops,Nottingham Trent University,98918922,4570.60,Research Grant Expenditure
BEIS,UKRI - AHRC,16/03/2021,Research Grant Expenditure,Research Grants,Queen Mary University of London,98918923,38148.89,Research Grant Expenditure
BEIS,UKRI - AHRC,16/03/2021,Research Grant Expenditure,Research Grants,The University of Manchester,98918924,16792.03,Research Grant Expenditure
BEIS,UKRI - AHRC,16/03/2021,Research Grant Expenditure,Cultural Values Project,University of Leeds,98918925,101626.42,Research Grant Expenditure
BEIS,UKRI - AHRC,16/03/2021,Research Grant Expenditure,Living with Machines (SPF),The Alan Turing Institute,98918926,343647.47,Research Grant Expenditure
BEIS,UKRI - AHRC,16/03/2021,Research Grant Expenditure,Research Grants,University of Reading,98918927,64759.36,Research Grant Expenditure
BEIS,UKRI - AHRC,16/03/2021,Research Grant Expenditure,Newton Programme,Oxford Brookes University,98918928,17000.98,Research Grant Expenditure
BEIS,UKRI - AHRC,16/03/2021,Research Grant Expenditure,Research Grants,The Open University,98918929,33736.59,Research Grant Expenditure
BEIS,UKRI - AHRC,16/03/2021,Research Grant Expenditure,Research Grants,University of Glasgow,98918930,57712.93,Research Grant Expenditure
BEIS,UKRI - AHRC,16/03/2021,Research Grant Expenditure,RCUK Global Challenges Research Fund (RCUK GCRF),University of Sussex,98918931,63492.10,Research Grant Expenditure
BEIS,UKRI - AHRC,16/03/2021,Research Grant Expenditure,Networks & Workshops,University of Edinburgh,98918932,4538.41,Research Grant Expenditure
BEIS,UKRI - AHRC,16/03/2021,Research Grant Expenditure,Research Grants,University of Oxford,98918933,45453.12,Research Grant Expenditure
BEIS,UKRI - AHRC,16/03/2021,Research Grant Expenditure,Research Grants,University of Oxford,98918934,31574.90,Research Grant Expenditure
BEIS,UKRI - AHRC,16/03/2021,Research Grant Expenditure,Research Grants,University of Newcastle Upon Tyne,98918935,66587.34,Research Grant Expenditure
BEIS,UKRI - AHRC,16/03/2021,Research Grant Expenditure,Networks & Workshops,University of Warwick,98918936,4571.96,Research Grant Expenditure
BEIS,UKRI - AHRC,16/03/2021,Research Grant Expenditure,Research Grants,University of Southampton GRANT,98918937,55136.32,Research Grant Expenditure
BEIS,UKRI - AHRC,16/03/2021,Research Grant Expenditure,JPI Cultural Heritage,University of Leeds,98918938,13945.59,Research Grant Expenditure
BEIS,UKRI - AHRC,16/03/2021,Research Grant Expenditure,Research Grants,University of Liverpool,98918939,44212.25,Research Grant Expenditure
BEIS,UKRI - AHRC,16/03/2021,Research Grant Expenditure,Networks & Workshops,Nottingham Trent University,98918940,5649.17,Research Grant Expenditure
BEIS,UKRI - AHRC,16/03/2021,Research Grant Expenditure,Research Grants,The University of Manchester,98918941,69634.10,Research Grant Expenditure
BEIS,UKRI - AHRC,16/03/2021,Research Grant Expenditure,Research Grants,University of Liverpool,98918942,70224.18,Research Grant Expenditure
BEIS,UKRI - AHRC,16/03/2021,Research Grant Expenditure,Networks & Workshops,University of Warwick,98918943,4558.56,Research Grant Expenditure
BEIS,UKRI - AHRC,16/03/2021,Research Grant Expenditure,Research Grants,King's College London,98918944,67071.64,Research Grant Expenditure
BEIS,UKRI - AHRC,16/03/2021,Research Grant Expenditure,Research Grants,University of Cambridge,98918945,55703.88,Research Grant Expenditure
BEIS,UKRI - AHRC,16/03/2021,Research Grant Expenditure,JPI Cultural Heritage,University of Lincoln,98918946,9901.63,Research Grant Expenditure
BEIS,UKRI - AHRC,16/03/2021,Research Grant Expenditure,Networks & Workshops,University of Exeter,98918947,3806.37,Research Grant Expenditure
BEIS,UKRI - AHRC,16/03/2021,Research Grant Expenditure,Research Grants,University of Oxford,98918948,55475.76,Research Grant Expenditure
BEIS,UKRI - AHRC,16/03/2021,Research Grant Expenditure,Research Grants,University of Exeter,98918949,30928.90,Research Grant Expenditure
BEIS,UKRI - AHRC,16/03/2021,Research Grant Expenditure,Research Grants,University of York,98918950,63719.19,Research Grant Expenditure
BEIS,UKRI - AHRC,16/03/2021,Research Grant Expenditure,JPI Cultural Heritage,University of Hull,98918951,11373.95,Research Grant Expenditure
BEIS,UKRI - AHRC,16/03/2021,Research Grant Expenditure,Research Grants,Cardiff University,98918952,57063.67,Research Grant Expenditure
BEIS,UKRI - AHRC,16/03/2021,Research Grant Expenditure,Research Grants,Lancaster University,98918953,51246.91,Research Grant Expenditure
BEIS,UKRI - AHRC,16/03/2021,Fellowships,Commissioned Research,University for the Creative Arts,98919260,25107.49,Fellowships
BEIS,UKRI - AHRC,16/03/2021,Fellowships,Commissioned Research,University of Exeter,98919261,25033.64,Fellowships
BEIS,UKRI - AHRC,16/03/2021,Fellowships,Commissioned Research,University of Strathclyde,98919262,24785.60,Fellowships
BEIS,UKRI - AHRC,16/03/2021,Fellowships,Commissioned Research,University of Birmingham GRANT,98919263,25194.89,Fellowships
BEIS,UKRI - AHRC,16/03/2021,Fellowships,Commissioned Research,Keele University,98919264,15363.44,Fellowships
BEIS,UKRI - AHRC,16/03/2021,Fellowships,Research Fellowships,University of Southampton GRANT,98919265,25197.86,Fellowships
BEIS,UKRI - AHRC,16/03/2021,Fellowships,Research Fellowships,Middlesex University,98919266,24024.90,Fellowships
BEIS,UKRI - AHRC,16/03/2021,Fellowships,Research Fellowships,University of Southampton GRANT,98919267,28784.74,Fellowships
BEIS,UKRI - AHRC,16/03/2021,Fellowships,Research Fellowships,University of St Andrews,98919268,22502.96,Fellowships
BEIS,UKRI - AHRC,16/03/2021,Fellowships,Research Fellowships,University of Bristol GRANT,98919269,27479.59,Fellowships
BEIS,UKRI - AHRC,16/03/2021,Fellowships,Research Fellowships,Cardiff University,98919270,33485.33,Fellowships
BEIS,UKRI - AHRC,16/03/2021,Fellowships,Research Fellowships,University of Sheffield,98919271,26349.07,Fellowships
BEIS,UKRI - AHRC,16/03/2021,Fellowships,Commissioned Research,University of Newcastle Upon Tyne,98919272,24813.98,Fellowships
BEIS,UKRI - AHRC,16/03/2021,Fellowships,Research Fellowships,University of Edinburgh,98919273,27202.16,Fellowships
BEIS,UKRI - AHRC,16/03/2021,Fellowships,Research Fellowships,Bangor University,98919274,28257.44,Fellowships
BEIS,UKRI - AHRC,16/03/2021,Fellowships,Research Fellowships,Goldsmiths College University of London,98919275,24294.21,Fellowships
BEIS,UKRI - AHRC,16/03/2021,Fellowships,Research Fellowships,University of Durham,98919276,32661.91,Fellowships
BEIS,UKRI - AHRC,16/03/2021,Fellowships,Research Fellowships,University of the Arts London,98919277,26337.48,Fellowships
BEIS,UKRI - AHRC,16/03/2021,Fellowships,Research Fellowships,Keele University,98919278,40833.40,Fellowships
BEIS,UKRI - AHRC,16/03/2021,Fellowships,Research Fellowships,University of Leeds,98919279,30814.91,Fellowships
BEIS,UKRI - AHRC,16/03/2021,Fellowships,Research Fellowships,University of Central Lancashire,98919280,11543.35,Fellowships
BEIS,UKRI - AHRC,16/03/2021,Fellowships,Research Fellowships,University of Leeds,98919281,22142.56,Fellowships
BEIS,UKRI - AHRC,16/03/2021,Fellowships,Research Fellowships,University of East Anglia,98919282,32979.66,Fellowships
BEIS,UKRI - AHRC,16/03/2021,Fellowships,Research Fellowships,University of Newcastle Upon Tyne,98919283,23686.05,Fellowships
BEIS,UKRI - AHRC,16/03/2021,Fellowships,Research Fellowships,University of Leeds,98919284,42331.92,Fellowships
BEIS,UKRI - AHRC,16/03/2021,Fellowships,Research Fellowships,Edge Hill University College,98919285,29802.36,Fellowships
BEIS,UKRI - AHRC,16/03/2021,Fellowships,Research Fellowships,University of Nottingham,98919286,23538.83,Fellowships
BEIS,UKRI - AHRC,16/03/2021,Fellowships,Research Fellowships,University of Exeter,98919288,25156.50,Fellowships
BEIS,UKRI - AHRC,16/03/2021,Fellowships,Research Fellowships,University of Sheffield,98919289,24956.27,Fellowships
BEIS,UKRI - AHRC,16/03/2021,Fellowships,Research Fellowships,University of Birmingham GRANT,98919290,31469.25,Fellowships
BEIS,UKRI - AHRC,16/03/2021,Fellowships,Research Fellowships,University of Dundee,98919291,32102.34,Fellowships
BEIS,UKRI - AHRC,16/03/2021,Fellowships,Research Fellowships,University of Exeter,98919292,34512.96,Fellowships
BEIS,UKRI - AHRC,16/03/2021,Fellowships,Research Fellowships,University of Birmingham GRANT,98919293,19833.74,Fellowships
BEIS,UKRI - AHRC,16/03/2021,Fellowships,Research Fellowships,The University of Manchester,98919294,27787.81,Fellowships
BEIS,UKRI - AHRC,16/03/2021,Fellowships,Research Fellowships,University of Edinburgh,98919295,23224.01,Fellowships
BEIS,UKRI - AHRC,16/03/2021,Fellowships,Research Fellowships,Queen Mary University of London,98919296,25405.13,Fellowships
BEIS,UKRI - AHRC,16/03/2021,Fellowships,Research Fellowships,University of Nottingham,98919297,22186.90,Fellowships
BEIS,UKRI - AHRC,16/03/2021,Fellowships,Research Fellowships,The University of Manchester,98919298,22577.52,Fellowships
BEIS,UKRI - AHRC,16/03/2021,Fellowships,Research Fellowships,University of Exeter,98919299,27681.71,Fellowships
BEIS,UKRI - AHRC,16/03/2021,Fellowships,Research Fellowships,University of Durham,98919300,28185.07,Fellowships
BEIS,UKRI - AHRC,16/03/2021,Fellowships,Research Fellowships,University of Leicester,98919301,21314.91,Fellowships
BEIS,UKRI - AHRC,16/03/2021,Fellowships,Commissioned Research,University of Sussex,98919302,17339.43,Fellowships
BEIS,UKRI - AHRC,16/03/2021,Fellowships,Commissioned Research,University of Liverpool,98919303,26831.06,Fellowships
BEIS,UKRI - AHRC,16/03/2021,Fellowships,Commissioned Research,University of St Andrews,98919304,26075.25,Fellowships
BEIS,UKRI - AHRC,16/03/2021,Fellowships,Research Fellowships,The Royal Central School of Speech and Drama,98919305,35349.63,Fellowships
BEIS,UKRI - AHRC,16/03/2021,Fellowships,Research Fellowships,University of Leeds,98919306,27666.77,Fellowships
BEIS,UKRI - AHRC,16/03/2021,Fellowships,Research Fellowships,University of Birmingham GRANT,98919307,27431.31,Fellowships
BEIS,UKRI - AHRC,16/03/2021,Fellowships,Research Fellowships,University of Birmingham GRANT,98919307,27431.31,Fellowships
BEIS,UKRI - AHRC,16/03/2021,Fellowships,Research Fellowships,University of Birmingham GRANT,98919307,27653.50,Fellowships
BEIS,UKRI - AHRC,16/03/2021,Fellowships,Research Fellowships,University of Birmingham GRANT,98919307,22995.55,Fellowships
BEIS,UKRI - AHRC,16/03/2021,Fellowships,Research Fellowships,University of Leicester,98919308,24093.77,Fellowships
BEIS,UKRI - AHRC,16/03/2021,Fellowships,Research Fellowships,Queen's University Belfast GRANT,98919309,29045.14,Fellowships
BEIS,UKRI - AHRC,16/03/2021,Fellowships,Research Fellowships,University of Cambridge,98919310,25026.81,Fellowships
BEIS,UKRI - AHRC,16/03/2021,Fellowships,Research Fellowships,University of Durham,98919311,26871.10,Fellowships
BEIS,UKRI - AHRC,16/03/2021,Fellowships,Research Fellowships,Queen Mary University of London,98919312,26500.29,Fellowships
BEIS,UKRI - AHRC,16/03/2021,Fellowships,NPIF Research Talent (RCUK Innovation Fellowships),University of Glasgow,98919313,41322.64,Fellowships
BEIS,UKRI - AHRC,16/03/2021,Fellowships,NPIF Research Talent (RCUK Innovation Fellowships),University of Glasgow,98919313,41322.64,Fellowships
BEIS,UKRI - AHRC,16/03/2021,Fellowships,Research Fellowships,University of St Andrews,98919314,25298.51,Fellowships
BEIS,UKRI - AHRC,16/03/2021,Fellowships,NPIF Research Talent (RCUK Innovation Fellowships),University of Bristol GRANT,98919315,23982.21,Fellowships
BEIS,UKRI - AHRC,16/03/2021,Fellowships,NPIF Research Talent (RCUK Innovation Fellowships),University of Edinburgh,98919316,19351.48,Fellowships
BEIS,UKRI - AHRC,16/03/2021,Fellowships,NPIF Research Talent (RCUK Innovation Fellowships),University of Edinburgh,98919316,19351.48,Fellowships
BEIS,UKRI - AHRC,16/03/2021,Fellowships,NPIF Research Talent (RCUK Innovation Fellowships),University of Edinburgh,98919316,19351.48,Fellowships
BEIS,UKRI - AHRC,16/03/2021,Fellowships,Research Fellowships,University of Brighton,98919317,10808.18,Fellowships
BEIS,UKRI - AHRC,16/03/2021,Fellowships,Research Fellowships,University of Brighton,98919317,10895.73,Fellowships
BEIS,UKRI - AHRC,16/03/2021,Fellowships,Research Fellowships,Brunel University London,98919320,32265.85,Fellowships
BEIS,UKRI - AHRC,16/03/2021,Fellowships,NPIF Research Talent (RCUK Innovation Fellowships),University of Glasgow,98919321,-45973.88,Fellowships
BEIS,UKRI - AHRC,16/03/2021,Fellowships,Research Fellowships,Loughborough University,98919322,19879.79,Fellowships
BEIS,UKRI - AHRC,16/03/2021,Research Grant Expenditure,Networks & Workshops,University College London,98919954,4898.46,Research Grant Expenditure
BEIS,UKRI - AHRC,16/03/2021,Research Grant Expenditure,Research Grants,Anglia Ruskin University,98919955,29255.65,Research Grant Expenditure
BEIS,UKRI - AHRC,16/03/2021,Research Grant Expenditure,Research Grants,Manchester Metropolitan University,98919956,51982.25,Research Grant Expenditure
BEIS,UKRI - AHRC,16/03/2021,Research Grant Expenditure,Research Grants,University of Bristol GRANT,98919957,65067.67,Research Grant Expenditure
BEIS,UKRI - AHRC,16/03/2021,Research Grant Expenditure,Research Grants,University of Oxford,98919958,71990.78,Research Grant Expenditure
BEIS,UKRI - AHRC,16/03/2021,Research Grant Expenditure,Research Grants,Guildhall School of Music & Drama,98919959,69990.93,Research Grant Expenditure
BEIS,UKRI - AHRC,16/03/2021,Research Grant Expenditure,Research Grants,University of Leeds,98919960,29593.77,Research Grant Expenditure
BEIS,UKRI - AHRC,16/03/2021,Research Grant Expenditure,Research Grants,University of Leeds,98919960,29593.77,Research Grant Expenditure
BEIS,UKRI - AHRC,16/03/2021,Research Grant Expenditure,Research Grants,University of Leeds,98919960,29593.77,Research Grant Expenditure
BEIS,UKRI - AHRC,16/03/2021,Research Grant Expenditure,Research Grants,University College London,98919961,60844.27,Research Grant Expenditure
BEIS,UKRI - AHRC,16/03/2021,Research Grant Expenditure,Research Grants,University of Oxford,98919962,72301.30,Research Grant Expenditure
BEIS,UKRI - AHRC,16/03/2021,Research Grant Expenditure,Networks & Workshops,Loughborough University,98919963,4768.82,Research Grant Expenditure
BEIS,UKRI - AHRC,16/03/2021,Research Grant Expenditure,Research Grants,Birmingham City University,98919964,16017.47,Research Grant Expenditure
BEIS,UKRI - AHRC,16/03/2021,Research Grant Expenditure,Research Grants,The University of Manchester,98919965,78150.66,Research Grant Expenditure
BEIS,UKRI - AHRC,16/03/2021,Research Grant Expenditure,Research Grants,Lancaster University,98919966,51078.28,Research Grant Expenditure
BEIS,UKRI - AHRC,16/03/2021,Research Grant Expenditure,Networks & Workshops,University of Northampton,98919967,4051.02,Research Grant Expenditure
BEIS,UKRI - AHRC,16/03/2021,Research Grant Expenditure,Networks & Workshops,University of Kent,98919968,4569.90,Research Grant Expenditure
BEIS,UKRI - AHRC,16/03/2021,Research Grant Expenditure,Research Grants,University of the Arts London,98919969,63810.76,Research Grant Expenditure
BEIS,UKRI - AHRC,16/03/2021,Research Grant Expenditure,Research Grants,University of Oxford,98919970,25403.00,Research Grant Expenditure
BEIS,UKRI - AHRC,16/03/2021,Research Grant Expenditure,Research Grants,University of Kent,98919971,60496.60,Research Grant Expenditure
BEIS,UKRI - AHRC,16/03/2021,Research Grant Expenditure,Audience of the Future (ISCF 2),The National Film & Television School,98919972,2650846.82,Research Grant Expenditure
BEIS,UKRI - AHRC,16/03/2021,Research Grant Expenditure,Research Grants,University of Exeter,98919973,39876.73,Research Grant Expenditure
BEIS,UKRI - AHRC,16/03/2021,Research Grant Expenditure,Newton Programme,Liverpool John Moores University,98919974,16753.57,Research Grant Expenditure
BEIS,UKRI - AHRC,16/03/2021,Research Grant Expenditure,Newton Programme,Brunel University London,98919975,14602.70,Research Grant Expenditure
BEIS,UKRI - AHRC,16/03/2021,Research Grant Expenditure,Newton Programme,Lancaster University,98919976,16711.67,Research Grant Expenditure
BEIS,UKRI - AHRC,16/03/2021,Research Grant Expenditure,Newton Programme,University of Leeds,98919977,16815.19,Research Grant Expenditure
BEIS,UKRI - AHRC,16/03/2021,Research Grant Expenditure,Research Grants,University of Stirling,98919978,35518.15,Research Grant Expenditure
BEIS,UKRI - AHRC,16/03/2021,Research Grant Expenditure,Industrial Strategy Challenge Fund (ISCF) - Creative Clusters,University of the West of England,98919979,421321.24,Research Grant Expenditure
BEIS,UKRI - AHRC,16/03/2021,Research Grant Expenditure,Industrial Strategy Challenge Fund (ISCF) - Creative Clusters,Abertay University,98919980,392132.42,Research Grant Expenditure
BEIS,UKRI - AHRC,16/03/2021,Research Grant Expenditure,Industrial Strategy Challenge Fund (ISCF) - Creative Clusters,UNIVERSITY OF ULSTER,98919981,419691.49,Research Grant Expenditure
BEIS,UKRI - AHRC,16/03/2021,Research Grant Expenditure,Industrial Strategy Challenge Fund (ISCF) - Creative Clusters,University of York,98919982,413964.22,Research Grant Expenditure
BEIS,UKRI - AHRC,16/03/2021,Research Grant Expenditure,Industrial Strategy Challenge Fund (ISCF) - Creative Clusters,University of Leeds,98919983,412598.62,Research Grant Expenditure
BEIS,UKRI - AHRC,16/03/2021,Research Grant Expenditure,Industrial Strategy Challenge Fund (ISCF) - Creative Clusters,University of the Arts London,98919984,416374.41,Research Grant Expenditure
BEIS,UKRI - AHRC,16/03/2021,Research Grant Expenditure,Industrial Strategy Challenge Fund (ISCF) - Creative Clusters,Cardiff University,98919985,402834.25,Research Grant Expenditure
BEIS,UKRI - AHRC,16/03/2021,Research Grant Expenditure,Industrial Strategy Challenge Fund (ISCF) - Creative Clusters,University of Edinburgh,98919986,419514.01,Research Grant Expenditure
BEIS,UKRI - AHRC,16/03/2021,Research Grant Expenditure,Industrial Strategy Challenge Fund (ISCF) - Creative Clusters,"Royal Holloway, University of London",98919987,419979.02,Research Grant Expenditure
BEIS,UKRI - AHRC,16/03/2021,Research Grant Expenditure,Research Grants,Museum of London Archaeology,98919988,18627.24,Research Grant Expenditure
BEIS,UKRI - AHRC,16/03/2021,Research Grant Expenditure,Research Grants,University of Oxford,98919989,50852.86,Research Grant Expenditure
BEIS,UKRI - AHRC,16/03/2021,Research Grant Expenditure,Research Grants,University of Leeds,98919990,68684.16,Research Grant Expenditure
BEIS,UKRI - AHRC,16/03/2021,Research Grant Expenditure,Research Grants,Bournemouth University GRANT,98919991,23558.26,Research Grant Expenditure
BEIS,UKRI - AHRC,16/03/2021,Research Grant Expenditure,Research Grants,University of Newcastle Upon Tyne,98919992,65624.30,Research Grant Expenditure
BEIS,UKRI - AHRC,16/03/2021,Research Grant Expenditure,Research Grants,University of Newcastle Upon Tyne,98919993,50972.03,Research Grant Expenditure
BEIS,UKRI - AHRC,16/03/2021,Research Grant Expenditure,Research Grants,University of Oxford,98919994,57753.01,Research Grant Expenditure
BEIS,UKRI - AHRC,16/03/2021,Research Grant Expenditure,Research Grants,University of Reading,98919995,66583.86,Research Grant Expenditure
BEIS,UKRI - AHRC,16/03/2021,Research Grant Expenditure,Research Grants,University of York,98919996,75496.47,Research Grant Expenditure
BEIS,UKRI - AHRC,16/03/2021,Research Grant Expenditure,Research Grants,The University of Manchester,98919997,49639.04,Research Grant Expenditure
BEIS,UKRI - AHRC,16/03/2021,Research Grant Expenditure,Industrial Strategy Challenge Fund (ISCF) - Creative Clusters,NESTA,98919998,441576.10,Research Grant Expenditure
BEIS,UKRI - AHRC,16/03/2021,Research Grant Expenditure,Research Grants,University of the Arts London,98919999,32447.25,Research Grant Expenditure
BEIS,UKRI - AHRC,16/03/2021,Research Grant Expenditure,Research Grants,University of Kent,98920000,54702.56,Research Grant Expenditure
BEIS,UKRI - AHRC,16/03/2021,Research Grant Expenditure,JPI Cultural Heritage,University College London,98920001,8195.70,Research Grant Expenditure
BEIS,UKRI - AHRC,16/03/2021,Research Grant Expenditure,JPI Cultural Heritage,The Open University,98920002,13364.58,Research Grant Expenditure
BEIS,UKRI - AHRC,16/03/2021,Research Grant Expenditure,Research Grants,University of Exeter,98920003,44099.78,Research Grant Expenditure
BEIS,UKRI - AHRC,16/03/2021,Research Grant Expenditure,JPI Cultural Heritage,University of Oxford,98920004,11182.82,Research Grant Expenditure
BEIS,UKRI - AHRC,16/03/2021,Research Grant Expenditure,JPI Cultural Heritage,University of Warwick,98920005,8957.46,Research Grant Expenditure
BEIS,UKRI - AHRC,16/03/2021,Research Grant Expenditure,JPI Cultural Heritage,De Montfort University,98920006,13437.11,Research Grant Expenditure
BEIS,UKRI - AHRC,16/03/2021,Research Grant Expenditure,Research Grants,University of Oxford,98920007,72593.18,Research Grant Expenditure
BEIS,UKRI - AHRC,16/03/2021,Research Grant Expenditure,Research Grants,University of Chester,98920008,38228.23,Research Grant Expenditure
BEIS,UKRI - AHRC,16/03/2021,Research Grant Expenditure,Research Grants,University of Reading,98920009,47905.23,Research Grant Expenditure
BEIS,UKRI - AHRC,16/03/2021,Research Grant Expenditure,Research Grants,University of East Anglia,98920010,35008.05,Research Grant Expenditure
BEIS,UKRI - AHRC,16/03/2021,Research Grant Expenditure,Research Grants,The University of Manchester,98920011,28487.92,Research Grant Expenditure
BEIS,UKRI - AHRC,16/03/2021,Research Grant Expenditure,Care for the Future,University of Exeter,98920012,23676.32,Research Grant Expenditure
BEIS,UKRI - AHRC,16/03/2021,Research Grant Expenditure,Research Grants,University of Sussex,98920013,49681.71,Research Grant Expenditure
BEIS,UKRI - AHRC,16/03/2021,Research Grant Expenditure,Research Grants,Birkbeck College,98920014,67433.77,Research Grant Expenditure
BEIS,UKRI - AHRC,16/03/2021,Research Grant Expenditure,Research Grants,The Royal Central School of Speech and Drama,98920015,48348.28,Research Grant Expenditure
BEIS,UKRI - AHRC,16/03/2021,Research Grant Expenditure,Research Grants,University of Southampton GRANT,98920016,67352.67,Research Grant Expenditure
BEIS,UKRI - AHRC,16/03/2021,Research Grant Expenditure,Research Grants,King's College London,98920017,66335.93,Research Grant Expenditure
BEIS,UKRI - AHRC,16/03/2021,Research Grant Expenditure,Research Grants,The University of Manchester,98920018,67401.19,Research Grant Expenditure
BEIS,UKRI - AHRC,16/03/2021,Research Grant Expenditure,Newton Programme,Nottingham Trent University,98920019,15030.01,Research Grant Expenditure
BEIS,UKRI - AHRC,16/03/2021,Research Grant Expenditure,Newton Programme,"City, University of London",98920020,17555.31,Research Grant Expenditure
BEIS,UKRI - AHRC,16/03/2021,Research Grant Expenditure,Newton Programme,University of Bedfordshire,98920021,17458.81,Research Grant Expenditure
BEIS,UKRI - AHRC,16/03/2021,Research Grant Expenditure,Research Grants,Queen's University Belfast GRANT,98920022,12109.25,Research Grant Expenditure
BEIS,UKRI - AHRC,16/03/2021,Research Grant Expenditure,Newton Programme,Imperial College London,98920023,17010.71,Research Grant Expenditure
BEIS,UKRI - AHRC,16/03/2021,Research Grant Expenditure,Newton Programme,University of Salford,98920024,15755.23,Research Grant Expenditure
BEIS,UKRI - AHRC,16/03/2021,Research Grant Expenditure,Research Grants,University of Warwick,98920025,57990.53,Research Grant Expenditure
BEIS,UKRI - AHRC,16/03/2021,Research Grant Expenditure,Research Grants,University of Reading,98920026,59163.18,Research Grant Expenditure
BEIS,UKRI - AHRC,16/03/2021,Research Grant Expenditure,Research Grants,The University of Manchester,98920027,58862.46,Research Grant Expenditure
BEIS,UKRI - AHRC,16/03/2021,Research Grant Expenditure,Research Grants,"Royal Holloway, University of London",98920028,33316.02,Research Grant Expenditure
BEIS,UKRI - AHRC,16/03/2021,Research Grant Expenditure,Research Grants,University of Strathclyde,98920029,55428.87,Research Grant Expenditure
BEIS,UKRI - AHRC,16/03/2021,Research Grant Expenditure,Research Grants,University of Newcastle Upon Tyne,98920030,54430.39,Research Grant Expenditure
BEIS,UKRI - AHRC,16/03/2021,Research Grant Expenditure,Research Grants,University of Newcastle Upon Tyne,98920031,71985.26,Research Grant Expenditure
BEIS,UKRI - AHRC,16/03/2021,Research Grant Expenditure,Research Grants,University of Wales Trinity St David,98920032,63841.32,Research Grant Expenditure
BEIS,UKRI - AHRC,16/03/2021,Research Grant Expenditure,Research Grants,University of Westminster,98920033,40662.11,Research Grant Expenditure
BEIS,UKRI - AHRC,16/03/2021,Research Grant Expenditure,Research Grants,University of Surrey,98920034,34888.44,Research Grant Expenditure
BEIS,UKRI - AHRC,16/03/2021,Research Grant Expenditure,Global Challenges Research Fund (GCRF),University of Edinburgh,98920035,220650.83,Research Grant Expenditure
BEIS,UKRI - AHRC,16/03/2021,Research Grant Expenditure,Global Challenges Research Fund (GCRF),University of Edinburgh,98920035,220650.83,Research Grant Expenditure
BEIS,UKRI - AHRC,16/03/2021,Research Grant Expenditure,Global Challenges Research Fund (GCRF),University of Liverpool,98920036,116222.88,Research Grant Expenditure
BEIS,UKRI - AHRC,16/03/2021,Research Grant Expenditure,Global Challenges Research Fund (GCRF),University College London,98920037,117212.63,Research Grant Expenditure
BEIS,UKRI - AHRC,16/03/2021,Research Grant Expenditure,Global Challenges Research Fund (GCRF),University of Leeds,98920038,187808.26,Research Grant Expenditure
BEIS,UKRI - AHRC,16/03/2021,Research Grant Expenditure,Research Grants,University of Glasgow,98920039,56977.45,Research Grant Expenditure
BEIS,UKRI - AHRC,16/03/2021,Research Grant Expenditure,Research Grants,University College London,98920040,34375.74,Research Grant Expenditure
BEIS,UKRI - AHRC,16/03/2021,Research Grant Expenditure,Research Grants,University of Glasgow,98920041,34505.57,Research Grant Expenditure
BEIS,UKRI - AHRC,16/03/2021,Research Grant Expenditure,Research Grants,Cardiff University,98920042,24457.18,Research Grant Expenditure
BEIS,UKRI - AHRC,16/03/2021,Research Grant Expenditure,RCUK Global Challenges Research Fund (RCUK GCRF),University of Huddersfield,98920043,485498.00,Research Grant Expenditure
BEIS,UKRI - AHRC,16/03/2021,Research Grant Expenditure,RCUK Global Challenges Research Fund (RCUK GCRF),Goldsmiths College University of London,98920044,403871.00,Research Grant Expenditure
BEIS,UKRI - AHRC,16/03/2021,Research Grant Expenditure,Research Grants,Birmingham City University,98920045,43250.52,Research Grant Expenditure
BEIS,UKRI - AHRC,16/03/2021,Research Grant Expenditure,Research Grants,University of Sussex,98920046,43858.85,Research Grant Expenditure
BEIS,UKRI - AHRC,16/03/2021,Research Grant Expenditure,Research Grants,University of Glasgow,98920047,41074.17,Research Grant Expenditure
BEIS,UKRI - AHRC,16/03/2021,Research Grant Expenditure,Research Grants,University of Leicester,98920048,51598.22,Research Grant Expenditure
BEIS,UKRI - AHRC,16/03/2021,Research Grant Expenditure,Research Grants,University of Durham,98920049,28214.80,Research Grant Expenditure
BEIS,UKRI - AHRC,16/03/2021,Research Grant Expenditure,Research Grants,University of Liverpool,98920050,40449.77,Research Grant Expenditure
BEIS,UKRI - AHRC,16/03/2021,Research Grant Expenditure,Research Grants,University of Southampton GRANT,98920051,27609.97,Research Grant Expenditure
BEIS,UKRI - AHRC,16/03/2021,Research Grant Expenditure,Research Grants,Historic Environment Scotland (GRANT),98920052,36485.41,Research Grant Expenditure
BEIS,UKRI - AHRC,16/03/2021,Research Grant Expenditure,Follow-on Fund,University of Cambridge,98920053,-1.46,Research Grant Expenditure
BEIS,UKRI - AHRC,16/03/2021,Research Grant Expenditure,Follow-on Fund,University of Nottingham,98920054,-6485.31,Research Grant Expenditure
BEIS,UKRI - AHRC,16/03/2021,Research Grant Expenditure,Global Challenges Research Fund (GCRF),University of Lincoln,98920055,-500.51,Research Grant Expenditure
BEIS,UKRI - AHRC,16/03/2021,Research Grant Expenditure,Research Grants,University of Sheffield,98920056,-50160.13,Research Grant Expenditure
BEIS,UKRI - AHRC,16/03/2021,Research Grant Expenditure,Global Challenges Research Fund (GCRF),Goldsmiths College University of London,98920057,-1763.15,Research Grant Expenditure
BEIS,UKRI - AHRC,16/03/2021,Research Grant Expenditure,Global Challenges Research Fund (GCRF),University of Leeds,98920058,-399.75,Research Grant Expenditure
BEIS,UKRI - AHRC,16/03/2021,Research Grant Expenditure,Global Challenges Research Fund (GCRF),University of Cambridge,98920059,-22864.30,Research Grant Expenditure
BEIS,UKRI - AHRC,16/03/2021,Research Grant Expenditure,Newton Programme,Science Museum Group,98920060,-0.02,Research Grant Expenditure
BEIS,UKRI - AHRC,16/03/2021,Research Grant Expenditure,Newton Programme,Queen Mary University of London,98920061,-18799.93,Research Grant Expenditure
BEIS,UKRI - AHRC,16/03/2021,Research Grant Expenditure,Networks & Workshops,University of Chester,98920062,-2582.35,Research Grant Expenditure
BEIS,UKRI - AHRC,16/03/2021,Research Grant Expenditure,Global Challenges Research Fund (GCRF),University of Nottingham,98920063,-307745.15,Research Grant Expenditure
BEIS,UKRI - AHRC,16/03/2021,Research Grant Expenditure,Global Challenges Research Fund (GCRF),University of Nottingham,98920064,-3125.51,Research Grant Expenditure
BEIS,UKRI - AHRC,16/03/2021,Research Grant Expenditure,Global Challenges Research Fund (GCRF),University of Birmingham GRANT,98920065,-887.02,Research Grant Expenditure
BEIS,UKRI - AHRC,16/03/2021,Research Grant Expenditure,Networks & Workshops,University of Kent,98920066,-4.96,Research Grant Expenditure
BEIS,UKRI - AHRC,16/03/2021,Research Grant Expenditure,Research Grants,The Open University,98920067,2637.85,Research Grant Expenditure
BEIS,UKRI - AHRC,16/03/2021,Research Grant Expenditure,Research Grants,University of the Arts London,98920068,27826.36,Research Grant Expenditure
BEIS,UKRI - AHRC,16/03/2021,Research Grant Expenditure,Research Grants,University of Wolverhampton,98920069,40016.30,Research Grant Expenditure
BEIS,UKRI - AHRC,16/03/2021,Research Grant Expenditure,RCUK Newton Programme,University of Newcastle Upon Tyne,98920070,-3183.19,Research Grant Expenditure
BEIS,UKRI - AHRC,16/03/2021,Research Grant Expenditure,Research Grants,"SOAS, University of London",98920071,26505.49,Research Grant Expenditure
BEIS,UKRI - AHRC,16/03/2021,Research Grant Expenditure,Research Grants,University of Surrey,98920072,36481.56,Research Grant Expenditure
BEIS,UKRI - AHRC,16/03/2021,Research Grant Expenditure,Research Grants,University of Surrey,98920073,470.60,Research Grant Expenditure
BEIS,UKRI - AHRC,16/03/2021,Research Grant Expenditure,Connected Communities Programme,University of East Anglia,98920074,26489.17,Research Grant Expenditure
BEIS,UKRI - AHRC,16/03/2021,Research Grant Expenditure,Networks & Workshops,University of Leeds,98920075,-253.13,Research Grant Expenditure
BEIS,UKRI - AHRC,16/03/2021,Research Grant Expenditure,Care for the Future,University College London,98920076,19271.07,Research Grant Expenditure
BEIS,UKRI - AHRC,16/03/2021,Corporation Tax,Finance,UKRI - Engineering & Physical Sciences Research Council,98926073,1081091.29,Corporation Tax
BEIS,UKRI - AHRC,16/03/2021,Conferences & Seminars,Skills Strategy,Institute for Government,98928210,25293.60,Conferences & Seminars
BEIS,UKRI - AHRC,16/03/2021,Conferences & Seminars,Skills Strategy,Institute for Government,98928221,36573.60,Conferences & Seminars
BEIS,UKRI - AHRC,16/03/2021,Other Programme Costs,Operations,British Fashion Council,98928232,120000.00,Other Programme Costs
BEIS,UKRI - AHRC,17/03/2021,Unspecified,FIC- China,Beyond Conference Ltd,98902566,27000.00,Legal & Professional Services
BEIS,UKRI - AHRC,17/03/2021,Unspecified,FIC- China,Beyond Conference Ltd,98902566,6240.00,Legal & Professional Services
BEIS,UKRI - AHRC,17/03/2021,Prepayments - AP USE ONLY,Balance Sheet,Beyond Conference Ltd,98902566,-27000.00,Prepayments - AP USE ONLY
BEIS,UKRI - AHRC,17/03/2021,Capital Grants & Equipment to HEIs,DEDEFI Capital Grants,Historic Buildings and Monuments Commission for England T/A Historic England,98918613,332843.78,Capital Grants & Equipment to HEIs
BEIS,UKRI - AHRC,17/03/2021,Research Grant Expenditure,DEDEFI Capital Grants,Historic Buildings and Monuments Commission for England T/A Historic England,98918613,290116.06,Research Grant Expenditure
BEIS,UKRI - AHRC,17/03/2021,Research Grant Expenditure,DFID Collaborative Humanitarian Protection Research Programme (CHPRP),SIPRI,98918857,69726.53,Research Grant Expenditure
BEIS,UKRI - AHRC,17/03/2021,Research Grant Expenditure,DFID Collaborative Humanitarian Protection Research Programme (CHPRP),Global Public Policy Institute,98918858,72929.18,Research Grant Expenditure
BEIS,UKRI - AHRC,17/03/2021,Research Grant Expenditure,DFID Collaborative Humanitarian Protection Research Programme (CHPRP),American University of Beirut,98918859,60449.66,Research Grant Expenditure
BEIS,UKRI - AHRC,17/03/2021,Research Grant Expenditure,DFID Collaborative Humanitarian Protection Research Programme (CHPRP),Geneva Academy of International Humanitarian Law and Human Rights,98918860,60397.99,Research Grant Expenditure
BEIS,UKRI - AHRC,17/03/2021,Research Grant Expenditure,DFID Collaborative Humanitarian Protection Research Programme (CHPRP),"National University of Ireland, Galway",98918862,84118.00,Research Grant Expenditure
BEIS,UKRI - AHRC,17/03/2021,Research Grant Expenditure,DFID Collaborative Humanitarian Protection Research Programme (CHPRP),"National University of Ireland, Galway",98918862,84114.78,Research Grant Expenditure
BEIS,UKRI - AHRC,17/03/2021,Fellowships,Research Fellowships,Historic Buildings and Monuments Commission for England T/A Historic England,98919287,29183.57,Fellowships
BEIS,UKRI - AHRC,17/03/2021,Conferences & Seminars,Digital Arts and Humanities and Creative Industries,Westminster Forum Projects Ltd,98928382,228.00,Conferences & Seminars
BEIS,UKRI - AHRC,17/03/2021,Conferences & Seminars,Digital Arts and Humanities and Creative Industries,Westminster Forum Projects Ltd,98928395,228.00,Conferences & Seminars
BEIS,UKRI - AHRC,18/03/2021,Unspecified,Skills Strategy,Careers Research and Advisory Centre (CRAC Ltd),98929956,25140.00,Legal & Professional Services
BEIS,UKRI - AHRC,18/03/2021,Other Programme Costs,Infrastruture Roadmap,University College London,98929977,1800.00,Other Programme Costs
BEIS,UKRI - AHRC,18/03/2021,Education Fees & Study Materials,Skills Strategy,Unspecified,98931388,39.07,Education Fees & Study Materials
BEIS,UKRI - AHRC,19/03/2021,Staff Training,SMT,Civil Service College,98930353,-495.00,Staff Training
BEIS,UKRI - AHRC,19/03/2021,Staff Training,SMT,Civil Service College,98930356,594.00,Staff Training
BEIS,UKRI - AHRC,19/03/2021,Research Grant Expenditure,Skills Strategy,Clore Leadership Programme,98930370,84778.00,Research Grant Expenditure
BEIS,UKRI - AHRC,19/03/2021,Unspecified,"History, Heritage, Languages and Literature",HM Treasury Group,98930399,2520.00,Legal & Professional Services
BEIS,UKRI - AHRC,22/03/2021,Hospitality,Infrastruture Roadmap,Sodexo Ltd,98930814,745.20,Hospitality
BEIS,UKRI - AHRC,22/03/2021,Hospitality,Infrastruture Roadmap,Sodexo Ltd,98930816,-23.40,Hospitality
BEIS,UKRI - AHRC,23/03/2021,Research Grant Expenditure,Public Engagement,UNIVERSITY OF ULSTER,98924099,8400.00,Research Grant Expenditure
BEIS,UKRI - AHRC,23/03/2021,Research Grant Expenditure,RCUK Global Challenges Research Fund (RCUK GCRF),UKRI - Medical Research Council,98928585,33244.88,Research Grant Expenditure
BEIS,UKRI - AHRC,23/03/2021,Research Grant Expenditure,Digital Economy,UKRI - Engineering & Physical Sciences Research Council,98929860,5639.43,Research Grant Expenditure
BEIS,UKRI - AHRC,23/03/2021,Research Grant Expenditure,NPIF Research Talent (RCUK Innovation Fellowships),UKRI - Engineering & Physical Sciences Research Council,98932053,12193.38,Research Grant Expenditure
BEIS,UKRI - AHRC,23/03/2021,Research Grant Expenditure,NPIF Research Talent (RCUK Innovation Fellowships),UKRI - Engineering & Physical Sciences Research Council,98932053,14050.85,Research Grant Expenditure
BEIS,UKRI - AHRC,23/03/2021,Research Grant Expenditure,NPIF Research Talent (RCUK Innovation Fellowships),UKRI - Engineering & Physical Sciences Research Council,98932053,21579.98,Research Grant Expenditure
BEIS,UKRI - AHRC,23/03/2021,Research Grant Expenditure,NPIF Research Talent (RCUK Innovation Fellowships),UKRI - Engineering & Physical Sciences Research Council,98932053,5149.44,Research Grant Expenditure
BEIS,UKRI - AHRC,23/03/2021,Research Grant Expenditure,RCUK Global Challenges Research Fund (RCUK GCRF),UKRI - Natural Environment Research Council,98934213,33174.89,Research Grant Expenditure
BEIS,UKRI - AHRC,23/03/2021,Advertising & Promotion,Public Policy Research,Institute for Government,98934214,5220.00,Advertising & Promotion
BEIS,UKRI - AHRC,23/03/2021,Research Grant Expenditure,Public Engagement,University of Lincoln,98934370,9900.00,Research Grant Expenditure
BEIS,UKRI - AHRC,23/03/2021,International Subscriptions,New Programme Development,The Abbeyfield Research Foundation,98934390,1200.00,International Subscriptions
BEIS,UKRI - AHRC,23/03/2021,Fees (Including College Members),New Programme Development,Unspecified,98934965,230.00,Fees (Including College Members)
BEIS,UKRI - AHRC,23/03/2021,Fees (Including College Members),New Programme Development,Unspecified,98934966,170.00,Fees (Including College Members)
BEIS,UKRI - AHRC,23/03/2021,Fees (Including College Members),New Programme Development,Unspecified,98934967,170.00,Fees (Including College Members)
BEIS,UKRI - AHRC,23/03/2021,Fees (Including College Members),New Programme Development,Unspecified,98934968,170.00,Fees (Including College Members)
BEIS,UKRI - AHRC,24/03/2021,Research Grant Expenditure,Public Engagement,University of Cambridge,98934825,2284.60,Research Grant Expenditure
BEIS,UKRI - AHRC,24/03/2021,Research Grant Expenditure,Public Engagement,University of Brighton,98935072,10000.00,Research Grant Expenditure
BEIS,UKRI - AHRC,24/03/2021,Fees (Including College Members),Infrastruture Roadmap,Unspecified,98935416,170.00,Fees (Including College Members)
BEIS,UKRI - AHRC,24/03/2021,Research Grant Expenditure,Public Engagement,Coventry University,98935678,9040.00,Research Grant Expenditure
BEIS,UKRI - AHRC,25/03/2021,Fees (Including College Members),New Programme Development,Unspecified,98935823,170.00,Fees (Including College Members)
BEIS,UKRI - AHRC,25/03/2021,Fees (Including College Members),Infrastruture Roadmap,Unspecified,98935824,170.00,Fees (Including College Members)
BEIS,UKRI - AHRC,25/03/2021,Fees (Including College Members),Infrastruture Roadmap,Unspecified,98935825,170.00,Fees (Including College Members)
BEIS,UKRI - AHRC,26/03/2021,Staff Training,Corporate Services,Open University,98938239,305.00,Staff Training
BEIS,UKRI - AHRC,26/03/2021,Staff Training,Public Engagement,Unspecified,98938375,650.00,Staff Training
BEIS,UKRI - AHRC,30/03/2021,Research Grant Expenditure,Cross Council Responsive Mode Awards,UKRI - Economic & Social Research Council,98934620,16148.50,Research Grant Expenditure
BEIS,UKRI - AHRC,30/03/2021,Research Grant Expenditure,Cross Council Responsive Mode Awards,UKRI - Economic & Social Research Council,98934620,8879.70,Research Grant Expenditure
BEIS,UKRI - AHRC,30/03/2021,Research Grant Expenditure,Cross Council Responsive Mode Awards,UKRI - Economic & Social Research Council,98934620,14369.74,Research Grant Expenditure
BEIS,UKRI - AHRC,30/03/2021,Research Grant Expenditure,Cross Council Responsive Mode Awards,UKRI - Economic & Social Research Council,98934620,22810.67,Research Grant Expenditure
BEIS,UKRI - AHRC,30/03/2021,Research Grant Expenditure,Cross Council Responsive Mode Awards,UKRI - Economic & Social Research Council,98934620,6645.21,Research Grant Expenditure
BEIS,UKRI - AHRC,30/03/2021,Research Grant Expenditure,Global Uncertainties Programme,UKRI - Economic & Social Research Council,98934625,2041.70,Research Grant Expenditure
BEIS,UKRI - AHRC,30/03/2021,Research Grant Expenditure,Commissioned Research,UKRI - Economic & Social Research Council,98934628,23923.73,Research Grant Expenditure
BEIS,UKRI - AHRC,30/03/2021,Research Grant Expenditure,Commissioned Research,UKRI - Economic & Social Research Council,98934628,9105.40,Research Grant Expenditure
BEIS,UKRI - AHRC,30/03/2021,Research Grant Expenditure,Commissioned Research,UKRI - Economic & Social Research Council,98934628,6056.17,Research Grant Expenditure
BEIS,UKRI - AHRC,30/03/2021,Research Grant Expenditure,Commissioned Research,UKRI - Economic & Social Research Council,98934628,6999.69,Research Grant Expenditure
BEIS,UKRI - AHRC,30/03/2021,Research Grant Expenditure,Commissioned Research,UKRI - Economic & Social Research Council,98934628,6836.95,Research Grant Expenditure
BEIS,UKRI - AHRC,30/03/2021,Research Grant Expenditure,Commissioned Research,UKRI - Economic & Social Research Council,98934628,7514.21,Research Grant Expenditure
BEIS,UKRI - AHRC,30/03/2021,Research Grant Expenditure,Commissioned Research,UKRI - Economic & Social Research Council,98934628,6851.55,Research Grant Expenditure
BEIS,UKRI - AHRC,30/03/2021,Research Grant Expenditure,Commissioned Research,UKRI - Economic & Social Research Council,98934628,32378.32,Research Grant Expenditure
BEIS,UKRI - AHRC,30/03/2021,Research Grant Expenditure,Commissioned Research,UKRI - Economic & Social Research Council,98934628,7230.09,Research Grant Expenditure
BEIS,UKRI - AHRC,30/03/2021,Research Grant Expenditure,Commissioned Research,UKRI - Economic & Social Research Council,98934628,11656.72,Research Grant Expenditure
BEIS,UKRI - AHRC,30/03/2021,Research Grant Expenditure,Urban Living,UKRI - Economic & Social Research Council,98934631,3132.56,Research Grant Expenditure
BEIS,UKRI - AHRC,30/03/2021,Research Grant Expenditure,Urban Living,UKRI - Economic & Social Research Council,98934631,5128.31,Research Grant Expenditure
BEIS,UKRI - AHRC,30/03/2021,Research Grant Expenditure,Urban Living,UKRI - Economic & Social Research Council,98934631,3985.68,Research Grant Expenditure
BEIS,UKRI - AHRC,30/03/2021,Research Grant Expenditure,Urban Living,UKRI - Economic & Social Research Council,98934631,2818.99,Research Grant Expenditure
BEIS,UKRI - AHRC,30/03/2021,Research Grant Expenditure,Urban Living,UKRI - Economic & Social Research Council,98934631,4761.74,Research Grant Expenditure
BEIS,UKRI - AHRC,30/03/2021,Research Grant Expenditure,Global Challenges Research Fund (GCRF),UKRI - Economic & Social Research Council,98934635,14160.51,Research Grant Expenditure
BEIS,UKRI - AHRC,30/03/2021,Research Grant Expenditure,Global Challenges Research Fund (GCRF),UKRI - Economic & Social Research Council,98934635,35610.96,Research Grant Expenditure
BEIS,UKRI - AHRC,30/03/2021,Research Grant Expenditure,Global Challenges Research Fund (GCRF),UKRI - Economic & Social Research Council,98934635,22809.42,Research Grant Expenditure
BEIS,UKRI - AHRC,30/03/2021,Research Grant Expenditure,Global Challenges Research Fund (GCRF),UKRI - Economic & Social Research Council,98934635,17512.92,Research Grant Expenditure
BEIS,UKRI - AHRC,30/03/2021,Research Grant Expenditure,RCUK Global Challenges Research Fund (RCUK GCRF),UKRI - Economic & Social Research Council,98934636,69592.80,Research Grant Expenditure
BEIS,UKRI - AHRC,30/03/2021,Research Grant Expenditure,RCUK Global Challenges Research Fund (RCUK GCRF),UKRI - Economic & Social Research Council,98934636,88171.80,Research Grant Expenditure
BEIS,UKRI - AHRC,30/03/2021,Research Grant Expenditure,RCUK Global Challenges Research Fund (RCUK GCRF),UKRI - Economic & Social Research Council,98934636,43784.25,Research Grant Expenditure
BEIS,UKRI - AHRC,30/03/2021,Research Grant Expenditure,RCUK Global Challenges Research Fund (RCUK GCRF),UKRI - Economic & Social Research Council,98934636,36171.65,Research Grant Expenditure
BEIS,UKRI - AHRC,30/03/2021,Research Grant Expenditure,RCUK Global Challenges Research Fund (RCUK GCRF),UKRI - Economic & Social Research Council,98934636,44329.00,Research Grant Expenditure
BEIS,UKRI - AHRC,30/03/2021,Research Grant Expenditure,RCUK Global Challenges Research Fund (RCUK GCRF),UKRI - Economic & Social Research Council,98934636,90321.60,Research Grant Expenditure
BEIS,UKRI - AHRC,30/03/2021,Research Grant Expenditure,RCUK Global Challenges Research Fund (RCUK GCRF),UKRI - Economic & Social Research Council,98934636,78914.00,Research Grant Expenditure
BEIS,UKRI - AHRC,30/03/2021,Research Grant Expenditure,RCUK Global Challenges Research Fund (RCUK GCRF),UKRI - Economic & Social Research Council,98934636,86060.80,Research Grant Expenditure
BEIS,UKRI - AHRC,30/03/2021,Other Programme Costs,Funds for International Collaboration (FIC 20 US),UKRI - Engineering & Physical Sciences Research Council,98937659,1521.06,Other Programme Costs
BEIS,UKRI - AHRC,30/03/2021,Fees (Including College Members),New Programme Development,Unspecified,98939592,900.00,Fees (Including College Members)
BEIS,UKRI - AHRC,30/03/2021,Unspecified,Public Engagement,Unspecified,98939691,3600.00,Legal & Professional Services
BEIS,UKRI - AHRC,30/03/2021,T&S UK - Other Charges,Operations,Unspecified,98939840,80.00,T&S UK - Other Charges
BEIS,UKRI - AHRC,30/03/2021,Research Grant Expenditure,Commissioned Research,UKRI - Economic & Social Research Council,98940001,-23691.91,Research Grant Expenditure
BEIS,UKRI - AHRC,30/03/2021,Research Grant Expenditure,GCRF - Programme Delivery,UKRI - Economic & Social Research Council,98940004,27856.00,Research Grant Expenditure
BEIS,UKRI - AHRC,30/03/2021,Consultancy Services,Operations,Chi-chi Nwanoku Ltd,98940139,1260.00,Consultancy Services
BEIS,UKRI - AHRC,30/03/2021,Consultancy Services,Operations,Chi-chi Nwanoku Ltd,98940140,1560.00,Consultancy Services
BEIS,UKRI - AHRC,31/03/2021,Fees (Including College Members),DEDEFI Capital Grants,Unspecified,98936871,339.32,Fees (Including College Members)
BEIS,UKRI - AHRC,31/03/2021,Fees (Including College Members),Infrastruture Roadmap,Unspecified,98936872,229.43,Fees (Including College Members)
BEIS,UKRI - AHRC,31/03/2021,Research Grant Expenditure,Public Engagement,University of Central Lancashire,98941258,9992.80,Research Grant Expenditure
BEIS,UKRI - BBSRC,01/03/2021,Conferences & Seminars,Science Group,Unspecified,98911452,102.00,Conferences & Seminars
BEIS,UKRI - BBSRC,02/03/2021,Research Institutes - Capital Grants: Minor Works,Babraham Institute,Babraham Institute,98908513,75069.66,Research Institutes - Capital Grants: Minor Works
BEIS,UKRI - BBSRC,02/03/2021,Research Institutes - Capital Grants: Minor Works,TGAC,Earlham Institute,98909824,25517.60,Research Institutes - Capital Grants: Minor Works
BEIS,UKRI - BBSRC,02/03/2021,Research Institutes - Capital Grants: Minor Works,TGAC,Earlham Institute,98909825,145567.14,Research Institutes - Capital Grants: Minor Works
BEIS,UKRI - BBSRC,02/03/2021,Other Programme Costs,FG - Estates,The Pirbright Institute,98909828,16745.77,Other Programme Costs
BEIS,UKRI - BBSRC,02/03/2021,Research Institutes - Capital Grants: Minor Works,TGAC,Earlham Institute,98909835,62862.88,Research Institutes - Capital Grants: Minor Works
BEIS,UKRI - BBSRC,02/03/2021,Fees (Including College Members),Innovation and Skills Group CDSU,Unspecified,98911870,680.00,Fees (Including College Members)
BEIS,UKRI - BBSRC,02/03/2021,Fees (Including College Members),Innovation and Skills Group CDSU,Unspecified,98911871,340.00,Fees (Including College Members)
BEIS,UKRI - BBSRC,02/03/2021,Fees (Including College Members),Innovation and Skills Group CDSU,Unspecified,98911872,340.00,Fees (Including College Members)
BEIS,UKRI - BBSRC,02/03/2021,Fees (Including College Members),Innovation and Skills Group CDSU,Unspecified,98911873,340.00,Fees (Including College Members)
BEIS,UKRI - BBSRC,02/03/2021,Fees (Including College Members),Innovation and Skills Group CDSU,Unspecified,98911874,800.00,Fees (Including College Members)
BEIS,UKRI - BBSRC,02/03/2021,Fees (Including College Members),Innovation and Skills Group CDSU,Unspecified,98911875,340.00,Fees (Including College Members)
BEIS,UKRI - BBSRC,02/03/2021,Fees (Including College Members),Innovation and Skills Group CDSU,Unspecified,98911876,340.00,Fees (Including College Members)
BEIS,UKRI - BBSRC,02/03/2021,Fees (Including College Members),Innovation and Skills Group CDSU,Unspecified,98911877,800.00,Fees (Including College Members)
BEIS,UKRI - BBSRC,02/03/2021,Fees (Including College Members),Innovation and Skills Group CDSU,Unspecified,98911878,680.00,Fees (Including College Members)
BEIS,UKRI - BBSRC,02/03/2021,Fees (Including College Members),Innovation and Skills Group CDSU,Unspecified,98911879,800.00,Fees (Including College Members)
BEIS,UKRI - BBSRC,02/03/2021,Fees (Including College Members),Innovation and Skills Group CDSU,Unspecified,98911880,340.00,Fees (Including College Members)
BEIS,UKRI - BBSRC,02/03/2021,Fees (Including College Members),Innovation and Skills Group CDSU,Unspecified,98911881,340.00,Fees (Including College Members)
BEIS,UKRI - BBSRC,02/03/2021,Fees (Including College Members),Innovation and Skills Group CDSU,Unspecified,98911882,340.00,Fees (Including College Members)
BEIS,UKRI - BBSRC,02/03/2021,Fees (Including College Members),Innovation and Skills Group CDSU,Unspecified,98911883,340.00,Fees (Including College Members)
BEIS,UKRI - BBSRC,02/03/2021,Fees (Including College Members),Innovation and Skills Group CDSU,Unspecified,98911884,510.00,Fees (Including College Members)
BEIS,UKRI - BBSRC,02/03/2021,Fees (Including College Members),Innovation and Skills Group CDSU,Unspecified,98911885,510.00,Fees (Including College Members)
BEIS,UKRI - BBSRC,02/03/2021,Fees (Including College Members),Innovation and Skills Group CDSU,Unspecified,98911886,510.00,Fees (Including College Members)
BEIS,UKRI - BBSRC,02/03/2021,Fees (Including College Members),Innovation and Skills Group CDSU,Unspecified,98911887,510.00,Fees (Including College Members)
BEIS,UKRI - BBSRC,03/03/2021,Staff Training,PDG - Director,CMIT Learning Ltd,98909900,601.54,Staff Training
BEIS,UKRI - BBSRC,03/03/2021,Computer Software,CE - CPS,Carrot Search s.c.,98912101,6593.44,Computer Software
BEIS,UKRI - BBSRC,04/03/2021,Research Grant Expenditure,NPIF EMBL EBI,EMBL (European Molecular Biology Laboratory),98912586,10000.00,Research Grant Expenditure
BEIS,UKRI - BBSRC,04/03/2021,Research Grant Expenditure,NPIF EMBL EBI,EMBL (European Molecular Biology Laboratory),98915616,12980.00,Research Grant Expenditure
BEIS,UKRI - BBSRC,08/03/2021,Research Institutes - Capital Grants: Minor Works,Pirbright,The Pirbright Institute,98919572,5451.58,Research Institutes - Capital Grants: Minor Works
BEIS,UKRI - BBSRC,08/03/2021,Research Institutes - Capital Grants: Minor Works,Pirbright,The Pirbright Institute,98919573,1221.95,Research Institutes - Capital Grants: Minor Works
BEIS,UKRI - BBSRC,08/03/2021,Research Institutes - Capital Grants: Minor Works,Pirbright,The Pirbright Institute,98920317,13107.00,Research Institutes - Capital Grants: Minor Works
BEIS,UKRI - BBSRC,08/03/2021,Research Institutes - Capital Grants: Minor Works,Pirbright,The Pirbright Institute,98920371,4297.98,Research Institutes - Capital Grants: Minor Works
BEIS,UKRI - BBSRC,09/03/2021,Research Institutes - Capital Grants: Minor Works,Rothamsted Research,Rothamsted Research Ltd,98908473,5893.18,Research Institutes - Capital Grants: Minor Works
BEIS,UKRI - BBSRC,09/03/2021,T&S UK - Other Charges,Science Group,Unspecified,98910983,125.98,T&S UK - Other Charges
BEIS,UKRI - BBSRC,09/03/2021,Research Grant Expenditure,Science Group,UKRI - Medical Research Council,98918545,746875.00,Research Grant Expenditure
BEIS,UKRI - BBSRC,09/03/2021,Research Institutes - Capital Grants: Minor Works,Rothamsted Research,Rothamsted Research Ltd,98919373,-2822.16,Research Institutes - Capital Grants: Minor Works
BEIS,UKRI - BBSRC,09/03/2021,Research Institutes - Capital Grants: Minor Works,Rothamsted Research,Rothamsted Research Ltd,98920192,60412.80,Research Institutes - Capital Grants: Minor Works
BEIS,UKRI - BBSRC,09/03/2021,Research Institutes - Capital Grants: Minor Works,Pirbright,The Pirbright Institute,98920279,21266.28,Research Institutes - Capital Grants: Minor Works
BEIS,UKRI - BBSRC,09/03/2021,Research Institutes - Capital Grants: Minor Works,Pirbright,The Pirbright Institute,98920312,44557.09,Research Institutes - Capital Grants: Minor Works
BEIS,UKRI - BBSRC,09/03/2021,Research Institutes - Capital Grants: Minor Works,Pirbright,The Pirbright Institute,98920369,62177.87,Research Institutes - Capital Grants: Minor Works
BEIS,UKRI - BBSRC,09/03/2021,Other Programme Costs,Innovation and Skills Group CDSU,NNFCC Ltd,98921826,4924.80,Other Programme Costs
BEIS,UKRI - BBSRC,09/03/2021,Fees (Including College Members),Innovation and Skills Group CDSU,Unspecified,98921836,680.00,Fees (Including College Members)
BEIS,UKRI - BBSRC,09/03/2021,Fees (Including College Members),Innovation and Skills Group CDSU,Unspecified,98921837,460.00,Fees (Including College Members)
BEIS,UKRI - BBSRC,10/03/2021,T&S UK - Other Charges,Innovation and Skills Group CDSU,Unspecified,98904824,79.99,T&S UK - Other Charges
BEIS,UKRI - BBSRC,10/03/2021,Fellowships,FG - Accounts & Business Planning,University of Exeter,98913400,45280.03,Fellowships
BEIS,UKRI - BBSRC,10/03/2021,Fellowships,FG - Accounts & Business Planning,University of Sheffield,98913401,25201.50,Fellowships
BEIS,UKRI - BBSRC,10/03/2021,Fellowships,FG - Accounts & Business Planning,Institute of Cancer Research,98913402,25394.71,Fellowships
BEIS,UKRI - BBSRC,10/03/2021,Fellowships,FG - Accounts & Business Planning,Cardiff University,98913403,25405.51,Fellowships
BEIS,UKRI - BBSRC,10/03/2021,Capital Grants & Equipment to HEIs,FG - Accounts & Business Planning,University of Liverpool,98913404,9465.00,Capital Grants & Equipment to HEIs
BEIS,UKRI - BBSRC,10/03/2021,Capital Grants & Equipment to HEIs,FG - Accounts & Business Planning,University of Liverpool,98913404,9465.00,Capital Grants & Equipment to HEIs
BEIS,UKRI - BBSRC,10/03/2021,Capital Grants & Equipment to HEIs,FG - Accounts & Business Planning,University of Liverpool,98913404,9465.00,Capital Grants & Equipment to HEIs
BEIS,UKRI - BBSRC,10/03/2021,Capital Grants & Equipment to HEIs,FG - Accounts & Business Planning,University of Liverpool,98913404,9465.00,Capital Grants & Equipment to HEIs
BEIS,UKRI - BBSRC,10/03/2021,Fellowships,FG - Accounts & Business Planning,University of Liverpool,98913404,54231.10,Fellowships
BEIS,UKRI - BBSRC,10/03/2021,Fellowships,FG - Accounts & Business Planning,University of Liverpool,98913404,54231.10,Fellowships
BEIS,UKRI - BBSRC,10/03/2021,Fellowships,FG - Accounts & Business Planning,University of Liverpool,98913404,54231.10,Fellowships
BEIS,UKRI - BBSRC,10/03/2021,Fellowships,FG - Accounts & Business Planning,University of Liverpool,98913404,54231.10,Fellowships
BEIS,UKRI - BBSRC,10/03/2021,Fellowships,FG - Accounts & Business Planning,University of Newcastle Upon Tyne,98913405,25199.02,Fellowships
BEIS,UKRI - BBSRC,10/03/2021,Fellowships,FG - Accounts & Business Planning,University of Liverpool,98913406,25202.50,Fellowships
BEIS,UKRI - BBSRC,10/03/2021,Fellowships,FG - Accounts & Business Planning,University of Liverpool,98913406,25202.50,Fellowships
BEIS,UKRI - BBSRC,10/03/2021,Fellowships,FG - Accounts & Business Planning,University of Liverpool,98913406,25202.50,Fellowships
BEIS,UKRI - BBSRC,10/03/2021,Fellowships,FG - Accounts & Business Planning,University of Liverpool,98913406,25202.50,Fellowships
BEIS,UKRI - BBSRC,10/03/2021,Fellowships,FG - Accounts & Business Planning,University of Cambridge,98913407,53995.04,Fellowships
BEIS,UKRI - BBSRC,10/03/2021,Fellowships,FG - Accounts & Business Planning,University of Durham,98913408,25194.73,Fellowships
BEIS,UKRI - BBSRC,10/03/2021,Fellowships,FG - Accounts & Business Planning,University of Sheffield,98913409,25160.42,Fellowships
BEIS,UKRI - BBSRC,10/03/2021,Fellowships,FG - Accounts & Business Planning,University of Cambridge,98913410,25202.44,Fellowships
BEIS,UKRI - BBSRC,10/03/2021,Fellowships,FG - Accounts & Business Planning,University of Oxford,98913411,25202.50,Fellowships
BEIS,UKRI - BBSRC,10/03/2021,Fellowships,FG - Accounts & Business Planning,University of Nottingham,98913412,25400.27,Fellowships
BEIS,UKRI - BBSRC,10/03/2021,Fellowships,FG - Accounts & Business Planning,John Innes Centre,98913413,25078.73,Fellowships
BEIS,UKRI - BBSRC,10/03/2021,Fellowships,FG - Accounts & Business Planning,The University of Manchester,98913414,25612.44,Fellowships
BEIS,UKRI - BBSRC,10/03/2021,Fellowships,FG - Accounts & Business Planning,University of Edinburgh,98913415,23319.93,Fellowships
BEIS,UKRI - BBSRC,10/03/2021,Fellowships,FG - Accounts & Business Planning,University College London,98913416,25177.45,Fellowships
BEIS,UKRI - BBSRC,10/03/2021,Fellowships,FG - Accounts & Business Planning,University College London,98913417,25402.91,Fellowships
BEIS,UKRI - BBSRC,10/03/2021,Fellowships,FG - Accounts & Business Planning,University of Liverpool,98913418,46255.74,Fellowships
BEIS,UKRI - BBSRC,10/03/2021,Fellowships,FG - Accounts & Business Planning,University College London,98913419,43981.51,Fellowships
BEIS,UKRI - BBSRC,10/03/2021,Fellowships,FG - Accounts & Business Planning,University of Edinburgh,98913420,18981.87,Fellowships
BEIS,UKRI - BBSRC,10/03/2021,Fellowships,FG - Accounts & Business Planning,University of St Andrews,98913421,24186.32,Fellowships
BEIS,UKRI - BBSRC,10/03/2021,Fellowships,FG - Accounts & Business Planning,University of Birmingham GRANT,98913422,45324.99,Fellowships
BEIS,UKRI - BBSRC,10/03/2021,Fellowships,FG - Accounts & Business Planning,University of Newcastle Upon Tyne,98913423,49884.46,Fellowships
BEIS,UKRI - BBSRC,10/03/2021,Fellowships,FG - Accounts & Business Planning,University of Oxford,98913424,24977.02,Fellowships
BEIS,UKRI - BBSRC,10/03/2021,Fellowships,FG - Accounts & Business Planning,University of Glasgow,98913425,25465.11,Fellowships
BEIS,UKRI - BBSRC,10/03/2021,Fellowships,FG - Accounts & Business Planning,University of Cambridge,98913426,50739.23,Fellowships
BEIS,UKRI - BBSRC,10/03/2021,Fellowships,FG - Accounts & Business Planning,Imperial College London,98913427,42545.10,Fellowships
BEIS,UKRI - BBSRC,10/03/2021,Fellowships,FG - Accounts & Business Planning,Imperial College London,98913428,54911.93,Fellowships
BEIS,UKRI - BBSRC,10/03/2021,Fellowships,FG - Accounts & Business Planning,University of Cambridge,98913429,52802.73,Fellowships
BEIS,UKRI - BBSRC,10/03/2021,Fellowships,FG - Accounts & Business Planning,University of Cambridge,98913430,25483.70,Fellowships
BEIS,UKRI - BBSRC,10/03/2021,Fellowships,FG - Accounts & Business Planning,University of Exeter,98913431,25608.61,Fellowships
BEIS,UKRI - BBSRC,10/03/2021,Fellowships,FG - Accounts & Business Planning,University of Oxford,98913432,25612.31,Fellowships
BEIS,UKRI - BBSRC,10/03/2021,Fellowships,FG - Accounts & Business Planning,University of Exeter,98913433,19163.80,Fellowships
BEIS,UKRI - BBSRC,10/03/2021,Fellowships,FG - Accounts & Business Planning,University of Exeter,98913433,19163.82,Fellowships
BEIS,UKRI - BBSRC,10/03/2021,Fellowships,FG - Accounts & Business Planning,University of Birmingham GRANT,98913434,59049.04,Fellowships
BEIS,UKRI - BBSRC,10/03/2021,Fellowships,FG - Accounts & Business Planning,University of Birmingham GRANT,98913434,59049.04,Fellowships
BEIS,UKRI - BBSRC,10/03/2021,Fellowships,FG - Accounts & Business Planning,University of Birmingham GRANT,98913434,59049.04,Fellowships
BEIS,UKRI - BBSRC,10/03/2021,Fellowships,FG - Accounts & Business Planning,Bangor University,98913435,26831.91,Fellowships
BEIS,UKRI - BBSRC,10/03/2021,Fellowships,FG - Accounts & Business Planning,Royal Veterinary College,98913436,7682.02,Fellowships
BEIS,UKRI - BBSRC,10/03/2021,Fellowships,FG - Accounts & Business Planning,University of Cambridge,98913437,40085.98,Fellowships
BEIS,UKRI - BBSRC,10/03/2021,Fellowships,FG - Accounts & Business Planning,John Innes Centre,98913438,43842.10,Fellowships
BEIS,UKRI - BBSRC,10/03/2021,Fellowships,FG - Accounts & Business Planning,University College London,98913439,40212.98,Fellowships
BEIS,UKRI - BBSRC,10/03/2021,Fellowships,FG - Accounts & Business Planning,University of Exeter,98913440,44029.86,Fellowships
BEIS,UKRI - BBSRC,10/03/2021,Fellowships,FG - Accounts & Business Planning,The University of Manchester,98913441,50211.17,Fellowships
BEIS,UKRI - BBSRC,10/03/2021,Fellowships,FG - Accounts & Business Planning,University of Leeds,98913442,52246.43,Fellowships
BEIS,UKRI - BBSRC,10/03/2021,Fellowships,FG - Accounts & Business Planning,University of Oxford,98913443,52700.50,Fellowships
BEIS,UKRI - BBSRC,10/03/2021,Fellowships,FG - Accounts & Business Planning,University of Oxford,98913444,44251.25,Fellowships
BEIS,UKRI - BBSRC,10/03/2021,Fellowships,FG - Accounts & Business Planning,University of Bristol GRANT,98913445,10636.24,Fellowships
BEIS,UKRI - BBSRC,10/03/2021,Fellowships,FG - Accounts & Business Planning,The University of Manchester,98913446,25370.90,Fellowships
BEIS,UKRI - BBSRC,10/03/2021,Research Grant Expenditure,FG - Accounts & Business Planning,University of Dundee,98913459,83630.79,Research Grant Expenditure
BEIS,UKRI - BBSRC,10/03/2021,Research Grant Expenditure,FG - Accounts & Business Planning,University of Oxford,98913460,9961.71,Research Grant Expenditure
BEIS,UKRI - BBSRC,10/03/2021,Capital Grants & Equipment to HEIs,FG - Accounts & Business Planning,University of Birmingham GRANT,98913461,4423.33,Capital Grants & Equipment to HEIs
BEIS,UKRI - BBSRC,10/03/2021,Research Grant Expenditure,FG - Accounts & Business Planning,University of Birmingham GRANT,98913461,36712.06,Research Grant Expenditure
BEIS,UKRI - BBSRC,10/03/2021,Research Grant Expenditure,FG - Accounts & Business Planning,University of Birmingham GRANT,98913462,71124.19,Research Grant Expenditure
BEIS,UKRI - BBSRC,10/03/2021,Research Grant Expenditure,FG - Accounts & Business Planning,Liverpool School of Tropical Medicine,98913463,25872.95,Research Grant Expenditure
BEIS,UKRI - BBSRC,10/03/2021,Research Grant Expenditure,FG - Accounts & Business Planning,University of Portsmouth,98913464,78910.68,Research Grant Expenditure
BEIS,UKRI - BBSRC,10/03/2021,Research Grant Expenditure,FG - Accounts & Business Planning,Imperial College London,98913465,80094.54,Research Grant Expenditure
BEIS,UKRI - BBSRC,10/03/2021,Research Grant Expenditure,FG - Accounts & Business Planning,Imperial College London,98913466,50557.13,Research Grant Expenditure
BEIS,UKRI - BBSRC,10/03/2021,Research Grant Expenditure,FG - Accounts & Business Planning,Imperial College London,98913466,50557.13,Research Grant Expenditure
BEIS,UKRI - BBSRC,10/03/2021,Research Grant Expenditure,FG - Accounts & Business Planning,European Bioinformatics Institute,98913467,46709.09,Research Grant Expenditure
BEIS,UKRI - BBSRC,10/03/2021,Research Grant Expenditure,FG - Accounts & Business Planning,University of Cambridge,98913468,79381.82,Research Grant Expenditure
BEIS,UKRI - BBSRC,10/03/2021,Research Grant Expenditure,FG - Accounts & Business Planning,University of Nottingham,98913469,24531.48,Research Grant Expenditure
BEIS,UKRI - BBSRC,10/03/2021,Research Grant Expenditure,FG - Accounts & Business Planning,University of Newcastle Upon Tyne,98913470,32493.77,Research Grant Expenditure
BEIS,UKRI - BBSRC,10/03/2021,Research Grant Expenditure,FG - Accounts & Business Planning,University College London,98913471,91513.64,Research Grant Expenditure
BEIS,UKRI - BBSRC,10/03/2021,Research Grant Expenditure,FG - Accounts & Business Planning,Queen's University Belfast GRANT,98913472,80747.51,Research Grant Expenditure
BEIS,UKRI - BBSRC,10/03/2021,Research Grant Expenditure,FG - Accounts & Business Planning,University of Sheffield,98913473,280477.07,Research Grant Expenditure
BEIS,UKRI - BBSRC,10/03/2021,Research Grant Expenditure,FG - Accounts & Business Planning,European Bioinformatics Institute,98913474,31321.01,Research Grant Expenditure
BEIS,UKRI - BBSRC,10/03/2021,Research Grant Expenditure,FG - Accounts & Business Planning,University of Liverpool,98913475,42775.12,Research Grant Expenditure
BEIS,UKRI - BBSRC,10/03/2021,Research Grant Expenditure,FG - Accounts & Business Planning,University of Nottingham,98913476,3150.28,Research Grant Expenditure
BEIS,UKRI - BBSRC,10/03/2021,Research Grant Expenditure,FG - Accounts & Business Planning,University of Nottingham,98913477,60100.31,Research Grant Expenditure
BEIS,UKRI - BBSRC,10/03/2021,Capital Grants & Equipment to HEIs,FG - Accounts & Business Planning,University of Leeds,98913478,23580.25,Capital Grants & Equipment to HEIs
BEIS,UKRI - BBSRC,10/03/2021,Research Grant Expenditure,FG - Accounts & Business Planning,University of Leeds,98913478,191080.74,Research Grant Expenditure
BEIS,UKRI - BBSRC,10/03/2021,Research Grant Expenditure,FG - Accounts & Business Planning,University of Edinburgh,98913479,31501.84,Research Grant Expenditure
BEIS,UKRI - BBSRC,10/03/2021,Research Grant Expenditure,FG - Accounts & Business Planning,Rothamsted Research Ltd,98913480,25528.95,Research Grant Expenditure
BEIS,UKRI - BBSRC,10/03/2021,Research Grant Expenditure,FG - Accounts & Business Planning,University of Liverpool,98913481,41958.43,Research Grant Expenditure
BEIS,UKRI - BBSRC,10/03/2021,Capital Grants & Equipment to HEIs,FG - Accounts & Business Planning,University of Sheffield,98913482,3866.88,Capital Grants & Equipment to HEIs
BEIS,UKRI - BBSRC,10/03/2021,Research Grant Expenditure,FG - Accounts & Business Planning,University of Sheffield,98913482,38614.58,Research Grant Expenditure
BEIS,UKRI - BBSRC,10/03/2021,Research Grant Expenditure,FG - Accounts & Business Planning,University of Bristol GRANT,98913483,35710.97,Research Grant Expenditure
BEIS,UKRI - BBSRC,10/03/2021,Research Grant Expenditure,FG - Accounts & Business Planning,Lancaster University,98913484,1890.19,Research Grant Expenditure
BEIS,UKRI - BBSRC,10/03/2021,Research Grant Expenditure,FG - Accounts & Business Planning,University College London,98913485,2520.25,Research Grant Expenditure
BEIS,UKRI - BBSRC,10/03/2021,Research Grant Expenditure,FG - Accounts & Business Planning,John Innes Centre,98913486,10599.47,Research Grant Expenditure
BEIS,UKRI - BBSRC,10/03/2021,Research Grant Expenditure,FG - Accounts & Business Planning,University of Leeds,98913487,4200.42,Research Grant Expenditure
BEIS,UKRI - BBSRC,10/03/2021,Research Grant Expenditure,FG - Accounts & Business Planning,National Institute For Agricultural Botany (NIAB),98913488,2835.28,Research Grant Expenditure
BEIS,UKRI - BBSRC,10/03/2021,Research Grant Expenditure,FG - Accounts & Business Planning,University of Liverpool,98913489,27143.83,Research Grant Expenditure
BEIS,UKRI - BBSRC,10/03/2021,Research Grant Expenditure,FG - Accounts & Business Planning,SRUC,98913490,14708.16,Research Grant Expenditure
BEIS,UKRI - BBSRC,10/03/2021,Research Grant Expenditure,FG - Accounts & Business Planning,Goldsmiths College University of London,98913491,5598.70,Research Grant Expenditure
BEIS,UKRI - BBSRC,10/03/2021,Research Grant Expenditure,FG - Accounts & Business Planning,University of Edinburgh,98913492,19367.82,Research Grant Expenditure
BEIS,UKRI - BBSRC,10/03/2021,Research Grant Expenditure,FG - Accounts & Business Planning,University of Edinburgh,98913492,19367.82,Research Grant Expenditure
BEIS,UKRI - BBSRC,10/03/2021,Research Grant Expenditure,FG - Accounts & Business Planning,University of Bristol GRANT,98913493,5063.18,Research Grant Expenditure
BEIS,UKRI - BBSRC,10/03/2021,Capital Grants & Equipment to HEIs,FG - Accounts & Business Planning,The Francis Crick Institute,98913494,84866.79,Capital Grants & Equipment to HEIs
BEIS,UKRI - BBSRC,10/03/2021,Capital Grants & Equipment to HEIs,FG - Accounts & Business Planning,University of Exeter,98913495,163459.25,Capital Grants & Equipment to HEIs
BEIS,UKRI - BBSRC,10/03/2021,Capital Grants & Equipment to HEIs,FG - Accounts & Business Planning,University of Birmingham GRANT,98913496,45630.50,Capital Grants & Equipment to HEIs
BEIS,UKRI - BBSRC,10/03/2021,Capital Grants & Equipment to HEIs,FG - Accounts & Business Planning,University of York,98913497,187500.00,Capital Grants & Equipment to HEIs
BEIS,UKRI - BBSRC,10/03/2021,Capital Grants & Equipment to HEIs,FG - Accounts & Business Planning,University of St Andrews,98913498,88092.60,Capital Grants & Equipment to HEIs
BEIS,UKRI - BBSRC,10/03/2021,Capital Grants & Equipment to HEIs,FG - Accounts & Business Planning,University of St Andrews,98913499,172945.00,Capital Grants & Equipment to HEIs
BEIS,UKRI - BBSRC,10/03/2021,Capital Grants & Equipment to HEIs,FG - Accounts & Business Planning,University of Newcastle Upon Tyne,98913500,99388.62,Capital Grants & Equipment to HEIs
BEIS,UKRI - BBSRC,10/03/2021,Capital Grants & Equipment to HEIs,FG - Accounts & Business Planning,University of Bristol GRANT,98913501,142498.50,Capital Grants & Equipment to HEIs
BEIS,UKRI - BBSRC,10/03/2021,Capital Grants & Equipment to HEIs,FG - Accounts & Business Planning,King's College London,98913502,48424.50,Capital Grants & Equipment to HEIs
BEIS,UKRI - BBSRC,10/03/2021,Capital Grants & Equipment to HEIs,FG - Accounts & Business Planning,University of Liverpool,98913503,71750.00,Capital Grants & Equipment to HEIs
BEIS,UKRI - BBSRC,10/03/2021,Research Grant Expenditure,FG - Accounts & Business Planning,University of Edinburgh,98913504,28802.75,Research Grant Expenditure
BEIS,UKRI - BBSRC,10/03/2021,Research Grant Expenditure,FG - Accounts & Business Planning,University of Nottingham,98913505,33577.77,Research Grant Expenditure
BEIS,UKRI - BBSRC,10/03/2021,Capital Grants & Equipment to HEIs,FG - Accounts & Business Planning,Imperial College London,98913506,2025.00,Capital Grants & Equipment to HEIs
BEIS,UKRI - BBSRC,10/03/2021,Research Grant Expenditure,FG - Accounts & Business Planning,Imperial College London,98913506,35495.33,Research Grant Expenditure
BEIS,UKRI - BBSRC,10/03/2021,Research Grant Expenditure,FG - Accounts & Business Planning,University of Bristol GRANT,98913507,38692.62,Research Grant Expenditure
BEIS,UKRI - BBSRC,10/03/2021,Research Grant Expenditure,FG - Accounts & Business Planning,University of Bristol GRANT,98913508,21829.04,Research Grant Expenditure
BEIS,UKRI - BBSRC,10/03/2021,Research Grant Expenditure,FG - Accounts & Business Planning,Rothamsted Research Ltd,98913509,41033.58,Research Grant Expenditure
BEIS,UKRI - BBSRC,10/03/2021,Research Grant Expenditure,FG - Accounts & Business Planning,University of York,98913510,33038.25,Research Grant Expenditure
BEIS,UKRI - BBSRC,10/03/2021,Research Grant Expenditure,FG - Accounts & Business Planning,University of Warwick,98913511,41982.38,Research Grant Expenditure
BEIS,UKRI - BBSRC,10/03/2021,Research Grant Expenditure,FG - Accounts & Business Planning,Queen's University Belfast GRANT,98913512,37933.01,Research Grant Expenditure
BEIS,UKRI - BBSRC,10/03/2021,Research Grant Expenditure,FG - Accounts & Business Planning,The Rosalind Franklin Institute,98913513,69295.05,Research Grant Expenditure
BEIS,UKRI - BBSRC,10/03/2021,Research Grant Expenditure,FG - Accounts & Business Planning,Rothamsted Research Ltd,98913514,36526.21,Research Grant Expenditure
BEIS,UKRI - BBSRC,10/03/2021,Research Grant Expenditure,FG - Accounts & Business Planning,University of Bristol GRANT,98913515,39033.41,Research Grant Expenditure
BEIS,UKRI - BBSRC,10/03/2021,Research Grant Expenditure,FG - Accounts & Business Planning,National Institute For Agricultural Botany (NIAB),98913516,9800.31,Research Grant Expenditure
BEIS,UKRI - BBSRC,10/03/2021,Research Grant Expenditure,FG - Accounts & Business Planning,National Institute For Agricultural Botany (NIAB),98913516,9800.31,Research Grant Expenditure
BEIS,UKRI - BBSRC,10/03/2021,Research Grant Expenditure,FG - Accounts & Business Planning,University of Exeter,98913517,37208.83,Research Grant Expenditure
BEIS,UKRI - BBSRC,10/03/2021,Capital Grants & Equipment to HEIs,FG - Accounts & Business Planning,University of Leeds,98913518,13950.00,Capital Grants & Equipment to HEIs
BEIS,UKRI - BBSRC,10/03/2021,Research Grant Expenditure,FG - Accounts & Business Planning,University of Leeds,98913518,46990.84,Research Grant Expenditure
BEIS,UKRI - BBSRC,10/03/2021,Research Grant Expenditure,FG - Accounts & Business Planning,University of Liverpool,98913519,42451.73,Research Grant Expenditure
BEIS,UKRI - BBSRC,10/03/2021,Research Grant Expenditure,FG - Accounts & Business Planning,John Innes Centre,98913520,40978.24,Research Grant Expenditure
BEIS,UKRI - BBSRC,10/03/2021,Research Grant Expenditure,FG - Accounts & Business Planning,European Bioinformatics Institute,98913521,25999.56,Research Grant Expenditure
BEIS,UKRI - BBSRC,10/03/2021,Research Grant Expenditure,FG - Accounts & Business Planning,University of Bristol GRANT,98913522,48133.79,Research Grant Expenditure
BEIS,UKRI - BBSRC,10/03/2021,Research Grant Expenditure,FG - Accounts & Business Planning,University of Cambridge,98913523,36853.32,Research Grant Expenditure
BEIS,UKRI - BBSRC,10/03/2021,Research Grant Expenditure,FG - Accounts & Business Planning,John Innes Centre,98913524,40753.45,Research Grant Expenditure
BEIS,UKRI - BBSRC,10/03/2021,Capital Grants & Equipment to HEIs,FG - Accounts & Business Planning,University of Edinburgh,98913525,6064.25,Capital Grants & Equipment to HEIs
BEIS,UKRI - BBSRC,10/03/2021,Research Grant Expenditure,FG - Accounts & Business Planning,University of Edinburgh,98913525,58077.49,Research Grant Expenditure
BEIS,UKRI - BBSRC,10/03/2021,Research Grant Expenditure,FG - Accounts & Business Planning,John Innes Centre,98913526,37751.96,Research Grant Expenditure
BEIS,UKRI - BBSRC,10/03/2021,Research Grant Expenditure,FG - Accounts & Business Planning,Quadram Institute Bioscience,98913527,50471.73,Research Grant Expenditure
BEIS,UKRI - BBSRC,10/03/2021,Research Grant Expenditure,FG - Accounts & Business Planning,The Francis Crick Institute,98913528,23792.55,Research Grant Expenditure
BEIS,UKRI - BBSRC,10/03/2021,Research Grant Expenditure,FG - Accounts & Business Planning,The University of Manchester,98913529,39871.96,Research Grant Expenditure
BEIS,UKRI - BBSRC,10/03/2021,Research Grant Expenditure,FG - Accounts & Business Planning,John Innes Centre,98913530,6552.65,Research Grant Expenditure
BEIS,UKRI - BBSRC,10/03/2021,Capital Grants & Equipment to HEIs,FG - Accounts & Business Planning,Royal Botanic Gardens Kew,98913531,2310.00,Capital Grants & Equipment to HEIs
BEIS,UKRI - BBSRC,10/03/2021,Capital Grants & Equipment to HEIs,FG - Accounts & Business Planning,Royal Botanic Gardens Kew,98913531,2310.00,Capital Grants & Equipment to HEIs
BEIS,UKRI - BBSRC,10/03/2021,Research Grant Expenditure,FG - Accounts & Business Planning,Royal Botanic Gardens Kew,98913531,25993.04,Research Grant Expenditure
BEIS,UKRI - BBSRC,10/03/2021,Research Grant Expenditure,FG - Accounts & Business Planning,Royal Botanic Gardens Kew,98913531,25993.04,Research Grant Expenditure
BEIS,UKRI - BBSRC,10/03/2021,Research Grant Expenditure,FG - Accounts & Business Planning,University of Nottingham,98913532,35915.21,Research Grant Expenditure
BEIS,UKRI - BBSRC,10/03/2021,Research Grant Expenditure,FG - Accounts & Business Planning,The James Hutton Institute,98913533,1232.95,Research Grant Expenditure
BEIS,UKRI - BBSRC,10/03/2021,Research Grant Expenditure,FG - Accounts & Business Planning,King's College London,98913534,40550.01,Research Grant Expenditure
BEIS,UKRI - BBSRC,10/03/2021,Research Grant Expenditure,FG - Accounts & Business Planning,King's College London,98913535,38642.39,Research Grant Expenditure
BEIS,UKRI - BBSRC,10/03/2021,Research Grant Expenditure,FG - Accounts & Business Planning,University of Nottingham,98913536,54317.12,Research Grant Expenditure
BEIS,UKRI - BBSRC,10/03/2021,Research Grant Expenditure,FG - Accounts & Business Planning,The Pirbright Institute,98913537,58592.37,Research Grant Expenditure
BEIS,UKRI - BBSRC,10/03/2021,Research Grant Expenditure,FG - Accounts & Business Planning,University of Cambridge,98913538,62204.30,Research Grant Expenditure
BEIS,UKRI - BBSRC,10/03/2021,Research Grant Expenditure,FG - Accounts & Business Planning,University College London,98913539,32969.70,Research Grant Expenditure
BEIS,UKRI - BBSRC,10/03/2021,Research Grant Expenditure,FG - Accounts & Business Planning,Moredun Research Institute,98913540,47478.54,Research Grant Expenditure
BEIS,UKRI - BBSRC,10/03/2021,Research Grant Expenditure,FG - Accounts & Business Planning,University College London,98913541,42012.97,Research Grant Expenditure
BEIS,UKRI - BBSRC,10/03/2021,Research Grant Expenditure,FG - Accounts & Business Planning,University College London,98913542,23978.72,Research Grant Expenditure
BEIS,UKRI - BBSRC,10/03/2021,Research Grant Expenditure,FG - Accounts & Business Planning,Queen Mary University of London,98913543,10388.86,Research Grant Expenditure
BEIS,UKRI - BBSRC,10/03/2021,Research Grant Expenditure,FG - Accounts & Business Planning,Lancaster University,98913544,33503.28,Research Grant Expenditure
BEIS,UKRI - BBSRC,10/03/2021,Research Grant Expenditure,FG - Accounts & Business Planning,University of Liverpool,98913545,37730.04,Research Grant Expenditure
BEIS,UKRI - BBSRC,10/03/2021,Research Grant Expenditure,FG - Accounts & Business Planning,University of Exeter,98913546,36276.22,Research Grant Expenditure
BEIS,UKRI - BBSRC,10/03/2021,Research Grant Expenditure,FG - Accounts & Business Planning,University of Edinburgh,98913547,35967.84,Research Grant Expenditure
BEIS,UKRI - BBSRC,10/03/2021,Research Grant Expenditure,FG - Accounts & Business Planning,Queen's University Belfast GRANT,98913548,32435.97,Research Grant Expenditure
BEIS,UKRI - BBSRC,10/03/2021,Research Grant Expenditure,FG - Accounts & Business Planning,National Institute For Agricultural Botany (NIAB),98913549,40109.88,Research Grant Expenditure
BEIS,UKRI - BBSRC,10/03/2021,Research Grant Expenditure,FG - Accounts & Business Planning,University of Reading,98913550,35338.49,Research Grant Expenditure
BEIS,UKRI - BBSRC,10/03/2021,Research Grant Expenditure,FG - Accounts & Business Planning,University of Nottingham,98913551,25486.24,Research Grant Expenditure
BEIS,UKRI - BBSRC,10/03/2021,Research Grant Expenditure,FG - Accounts & Business Planning,University of Nottingham,98913552,34962.78,Research Grant Expenditure
BEIS,UKRI - BBSRC,10/03/2021,Research Grant Expenditure,FG - Accounts & Business Planning,Loughborough University,98913553,39335.90,Research Grant Expenditure
BEIS,UKRI - BBSRC,10/03/2021,Research Grant Expenditure,FG - Accounts & Business Planning,The University of Manchester,98913554,31488.13,Research Grant Expenditure
BEIS,UKRI - BBSRC,10/03/2021,Research Grant Expenditure,FG - Accounts & Business Planning,University of Warwick,98913555,25186.88,Research Grant Expenditure
BEIS,UKRI - BBSRC,10/03/2021,Research Grant Expenditure,FG - Accounts & Business Planning,University of Bristol GRANT,98913556,31971.22,Research Grant Expenditure
BEIS,UKRI - BBSRC,10/03/2021,Research Grant Expenditure,FG - Accounts & Business Planning,University of Strathclyde,98913557,27512.53,Research Grant Expenditure
BEIS,UKRI - BBSRC,10/03/2021,Research Grant Expenditure,FG - Accounts & Business Planning,Cardiff University,98913558,37543.06,Research Grant Expenditure
BEIS,UKRI - BBSRC,10/03/2021,Research Grant Expenditure,FG - Accounts & Business Planning,Bangor University,98913559,43334.37,Research Grant Expenditure
BEIS,UKRI - BBSRC,10/03/2021,Capital Grants & Equipment to HEIs,FG - Accounts & Business Planning,University of Warwick,98913560,3222.00,Capital Grants & Equipment to HEIs
BEIS,UKRI - BBSRC,10/03/2021,Research Grant Expenditure,FG - Accounts & Business Planning,University of Warwick,98913560,78289.82,Research Grant Expenditure
BEIS,UKRI - BBSRC,10/03/2021,Research Grant Expenditure,FG - Accounts & Business Planning,FERA SCIENCE LTD (FERA),98913561,20069.55,Research Grant Expenditure
BEIS,UKRI - BBSRC,10/03/2021,Research Grant Expenditure,FG - Accounts & Business Planning,FERA SCIENCE LTD (FERA),98913562,148724.73,Research Grant Expenditure
BEIS,UKRI - BBSRC,10/03/2021,Research Grant Expenditure,FG - Accounts & Business Planning,Cranfield University,98913563,31308.91,Research Grant Expenditure
BEIS,UKRI - BBSRC,10/03/2021,Research Grant Expenditure,FG - Accounts & Business Planning,University of Sheffield,98913564,134425.26,Research Grant Expenditure
BEIS,UKRI - BBSRC,10/03/2021,Research Grant Expenditure,FG - Accounts & Business Planning,University of Edinburgh,98913565,61704.54,Research Grant Expenditure
BEIS,UKRI - BBSRC,10/03/2021,Research Grant Expenditure,FG - Accounts & Business Planning,Rothamsted Research Ltd,98913566,7516.09,Research Grant Expenditure
BEIS,UKRI - BBSRC,10/03/2021,Research Grant Expenditure,FG - Accounts & Business Planning,University of Bristol GRANT,98913567,44517.33,Research Grant Expenditure
BEIS,UKRI - BBSRC,10/03/2021,Research Grant Expenditure,FG - Accounts & Business Planning,University of Bath,98913568,10998.89,Research Grant Expenditure
BEIS,UKRI - BBSRC,10/03/2021,Research Grant Expenditure,FG - Accounts & Business Planning,University of Birmingham GRANT,98913569,47899.34,Research Grant Expenditure
BEIS,UKRI - BBSRC,10/03/2021,Research Grant Expenditure,FG - Accounts & Business Planning,University of Glasgow,98913570,58197.47,Research Grant Expenditure
BEIS,UKRI - BBSRC,10/03/2021,Research Grant Expenditure,FG - Accounts & Business Planning,University of Warwick,98913571,45197.41,Research Grant Expenditure
BEIS,UKRI - BBSRC,10/03/2021,Research Grant Expenditure,FG - Accounts & Business Planning,Imperial College London,98913572,43469.61,Research Grant Expenditure
BEIS,UKRI - BBSRC,10/03/2021,Research Grant Expenditure,FG - Accounts & Business Planning,University of Cambridge,98913573,61452.77,Research Grant Expenditure
BEIS,UKRI - BBSRC,10/03/2021,Capital Grants & Equipment to HEIs,FG - Accounts & Business Planning,University of Cambridge,98913574,4002.00,Capital Grants & Equipment to HEIs
BEIS,UKRI - BBSRC,10/03/2021,Research Grant Expenditure,FG - Accounts & Business Planning,University of Cambridge,98913574,49332.57,Research Grant Expenditure
BEIS,UKRI - BBSRC,10/03/2021,Research Grant Expenditure,FG - Accounts & Business Planning,University of York,98913575,26755.07,Research Grant Expenditure
BEIS,UKRI - BBSRC,10/03/2021,Research Grant Expenditure,FG - Accounts & Business Planning,University of York,98913575,26755.07,Research Grant Expenditure
BEIS,UKRI - BBSRC,10/03/2021,Research Grant Expenditure,FG - Accounts & Business Planning,University of York,98913575,26755.07,Research Grant Expenditure
BEIS,UKRI - BBSRC,10/03/2021,Capital Grants & Equipment to HEIs,FG - Accounts & Business Planning,Imperial College London,98913576,4747.75,Capital Grants & Equipment to HEIs
BEIS,UKRI - BBSRC,10/03/2021,Research Grant Expenditure,FG - Accounts & Business Planning,Imperial College London,98913576,68244.93,Research Grant Expenditure
BEIS,UKRI - BBSRC,10/03/2021,Research Grant Expenditure,FG - Accounts & Business Planning,University of Bristol GRANT,98913577,3252.67,Research Grant Expenditure
BEIS,UKRI - BBSRC,10/03/2021,Research Grant Expenditure,FG - Accounts & Business Planning,National Institute For Agricultural Botany (NIAB),98913578,36228.35,Research Grant Expenditure
BEIS,UKRI - BBSRC,10/03/2021,Research Grant Expenditure,FG - Accounts & Business Planning,University of Plymouth,98913579,31572.62,Research Grant Expenditure
BEIS,UKRI - BBSRC,10/03/2021,Research Grant Expenditure,FG - Accounts & Business Planning,University of Glasgow,98913580,43377.78,Research Grant Expenditure
BEIS,UKRI - BBSRC,10/03/2021,Research Grant Expenditure,FG - Accounts & Business Planning,University of Newcastle Upon Tyne,98913581,37720.68,Research Grant Expenditure
BEIS,UKRI - BBSRC,10/03/2021,Research Grant Expenditure,FG - Accounts & Business Planning,University of Cambridge,98913582,43943.97,Research Grant Expenditure
BEIS,UKRI - BBSRC,10/03/2021,Research Grant Expenditure,FG - Accounts & Business Planning,University of Glasgow,98913583,17214.99,Research Grant Expenditure
BEIS,UKRI - BBSRC,10/03/2021,Research Grant Expenditure,FG - Accounts & Business Planning,University of Bristol GRANT,98913584,24625.51,Research Grant Expenditure
BEIS,UKRI - BBSRC,10/03/2021,Research Grant Expenditure,FG - Accounts & Business Planning,University of Bristol GRANT,98913584,24625.51,Research Grant Expenditure
BEIS,UKRI - BBSRC,10/03/2021,Research Grant Expenditure,FG - Accounts & Business Planning,University of Strathclyde,98913585,36138.37,Research Grant Expenditure
BEIS,UKRI - BBSRC,10/03/2021,Research Grant Expenditure,FG - Accounts & Business Planning,University of York,98913586,25757.75,Research Grant Expenditure
BEIS,UKRI - BBSRC,10/03/2021,Research Grant Expenditure,FG - Accounts & Business Planning,Earlham Institute,98913587,22836.53,Research Grant Expenditure
BEIS,UKRI - BBSRC,10/03/2021,Research Grant Expenditure,FG - Accounts & Business Planning,University of Exeter,98913588,38905.42,Research Grant Expenditure
BEIS,UKRI - BBSRC,10/03/2021,Research Grant Expenditure,FG - Accounts & Business Planning,The Scottish Association for Marine Science (SAMS Group),98913589,26447.03,Research Grant Expenditure
BEIS,UKRI - BBSRC,10/03/2021,Research Grant Expenditure,FG - Accounts & Business Planning,Cardiff University,98913590,28424.16,Research Grant Expenditure
BEIS,UKRI - BBSRC,10/03/2021,Research Grant Expenditure,FG - Accounts & Business Planning,Imperial College London,98913591,50926.06,Research Grant Expenditure
BEIS,UKRI - BBSRC,10/03/2021,Research Grant Expenditure,FG - Accounts & Business Planning,National Institute For Agricultural Botany (NIAB),98913592,9624.82,Research Grant Expenditure
BEIS,UKRI - BBSRC,10/03/2021,Research Grant Expenditure,FG - Accounts & Business Planning,University of Exeter,98913593,31112.56,Research Grant Expenditure
BEIS,UKRI - BBSRC,10/03/2021,Research Grant Expenditure,FG - Accounts & Business Planning,Forest Research GRANT,98913594,170605.40,Research Grant Expenditure
BEIS,UKRI - BBSRC,10/03/2021,Research Grant Expenditure,FG - Accounts & Business Planning,University of Newcastle Upon Tyne,98913595,1754.57,Research Grant Expenditure
BEIS,UKRI - BBSRC,10/03/2021,Research Grant Expenditure,FG - Accounts & Business Planning,University of Reading,98913596,10869.01,Research Grant Expenditure
BEIS,UKRI - BBSRC,10/03/2021,Research Grant Expenditure,FG - Accounts & Business Planning,National Institute For Agricultural Botany (NIAB),98913597,120579.88,Research Grant Expenditure
BEIS,UKRI - BBSRC,10/03/2021,Research Grant Expenditure,FG - Accounts & Business Planning,Bangor University,98913598,115180.11,Research Grant Expenditure
BEIS,UKRI - BBSRC,10/03/2021,Research Grant Expenditure,FG - Accounts & Business Planning,University of Glasgow,98913599,32873.89,Research Grant Expenditure
BEIS,UKRI - BBSRC,10/03/2021,Research Grant Expenditure,FG - Accounts & Business Planning,University of Warwick,98913600,30526.87,Research Grant Expenditure
BEIS,UKRI - BBSRC,10/03/2021,Research Grant Expenditure,FG - Accounts & Business Planning,University of Birmingham GRANT,98913601,30905.26,Research Grant Expenditure
BEIS,UKRI - BBSRC,10/03/2021,Research Grant Expenditure,FG - Accounts & Business Planning,University of Durham,98913602,26376.32,Research Grant Expenditure
BEIS,UKRI - BBSRC,10/03/2021,Research Grant Expenditure,FG - Accounts & Business Planning,University of Edinburgh,98913603,48152.93,Research Grant Expenditure
BEIS,UKRI - BBSRC,10/03/2021,Research Grant Expenditure,FG - Accounts & Business Planning,University of Warwick,98913604,51599.54,Research Grant Expenditure
BEIS,UKRI - BBSRC,10/03/2021,Research Grant Expenditure,FG - Accounts & Business Planning,Rothamsted Research Ltd,98913605,71969.71,Research Grant Expenditure
BEIS,UKRI - BBSRC,10/03/2021,Research Grant Expenditure,FG - Accounts & Business Planning,Imperial College London,98913606,62445.40,Research Grant Expenditure
BEIS,UKRI - BBSRC,10/03/2021,Research Grant Expenditure,FG - Accounts & Business Planning,"Royal Holloway, University of London",98913607,83047.85,Research Grant Expenditure
BEIS,UKRI - BBSRC,10/03/2021,Research Grant Expenditure,FG - Accounts & Business Planning,The James Hutton Institute,98913608,88035.04,Research Grant Expenditure
BEIS,UKRI - BBSRC,10/03/2021,Research Grant Expenditure,FG - Accounts & Business Planning,Queen's University Belfast GRANT,98913609,78891.27,Research Grant Expenditure
BEIS,UKRI - BBSRC,10/03/2021,Research Grant Expenditure,FG - Accounts & Business Planning,University of Edinburgh,98913610,54137.26,Research Grant Expenditure
BEIS,UKRI - BBSRC,10/03/2021,Capital Grants & Equipment to HEIs,FG - Accounts & Business Planning,University of Nottingham,98913611,2743.43,Capital Grants & Equipment to HEIs
BEIS,UKRI - BBSRC,10/03/2021,Research Grant Expenditure,FG - Accounts & Business Planning,University of Nottingham,98913611,42662.38,Research Grant Expenditure
BEIS,UKRI - BBSRC,10/03/2021,Research Grant Expenditure,FG - Accounts & Business Planning,University of Reading,98913612,44062.76,Research Grant Expenditure
BEIS,UKRI - BBSRC,10/03/2021,Research Grant Expenditure,FG - Accounts & Business Planning,University of Newcastle Upon Tyne,98913613,35976.92,Research Grant Expenditure
BEIS,UKRI - BBSRC,10/03/2021,Capital Grants & Equipment to HEIs,FG - Accounts & Business Planning,University of Leeds,98913614,4250.00,Capital Grants & Equipment to HEIs
BEIS,UKRI - BBSRC,10/03/2021,Research Grant Expenditure,FG - Accounts & Business Planning,University of Leeds,98913614,37581.24,Research Grant Expenditure
BEIS,UKRI - BBSRC,10/03/2021,Research Grant Expenditure,FG - Accounts & Business Planning,University of Edinburgh,98913615,48500.97,Research Grant Expenditure
BEIS,UKRI - BBSRC,10/03/2021,Research Grant Expenditure,FG - Accounts & Business Planning,University of Surrey,98913616,40027.80,Research Grant Expenditure
BEIS,UKRI - BBSRC,10/03/2021,Research Grant Expenditure,FG - Accounts & Business Planning,Diamond Light Source Ltd,98913617,1414.51,Research Grant Expenditure
BEIS,UKRI - BBSRC,10/03/2021,Research Grant Expenditure,FG - Accounts & Business Planning,University of Edinburgh,98913618,31191.56,Research Grant Expenditure
BEIS,UKRI - BBSRC,10/03/2021,Research Grant Expenditure,FG - Accounts & Business Planning,King's College London,98913619,23647.77,Research Grant Expenditure
BEIS,UKRI - BBSRC,10/03/2021,Capital Grants & Equipment to HEIs,FG - Accounts & Business Planning,University of Oxford,98913620,3920.50,Capital Grants & Equipment to HEIs
BEIS,UKRI - BBSRC,10/03/2021,Research Grant Expenditure,FG - Accounts & Business Planning,University of Oxford,98913620,35205.46,Research Grant Expenditure
BEIS,UKRI - BBSRC,10/03/2021,Capital Grants & Equipment to HEIs,FG - Accounts & Business Planning,University of Cambridge,98913621,14063.06,Capital Grants & Equipment to HEIs
BEIS,UKRI - BBSRC,10/03/2021,Research Grant Expenditure,FG - Accounts & Business Planning,University of Cambridge,98913621,36771.48,Research Grant Expenditure
BEIS,UKRI - BBSRC,10/03/2021,Research Grant Expenditure,FG - Accounts & Business Planning,University of Glasgow,98913622,53338.71,Research Grant Expenditure
BEIS,UKRI - BBSRC,10/03/2021,Research Grant Expenditure,FG - Accounts & Business Planning,European Bioinformatics Institute,98913623,21533.77,Research Grant Expenditure
BEIS,UKRI - BBSRC,10/03/2021,Research Grant Expenditure,FG - Accounts & Business Planning,Cardiff University,98913624,46380.61,Research Grant Expenditure
BEIS,UKRI - BBSRC,10/03/2021,Research Grant Expenditure,FG - Accounts & Business Planning,University of East Anglia,98913625,49830.12,Research Grant Expenditure
BEIS,UKRI - BBSRC,10/03/2021,Research Grant Expenditure,FG - Accounts & Business Planning,University of Cambridge,98913626,46917.61,Research Grant Expenditure
BEIS,UKRI - BBSRC,10/03/2021,Research Grant Expenditure,FG - Accounts & Business Planning,Cardiff University,98913627,59669.61,Research Grant Expenditure
BEIS,UKRI - BBSRC,10/03/2021,Research Grant Expenditure,FG - Accounts & Business Planning,University of Bristol GRANT,98913628,34336.79,Research Grant Expenditure
BEIS,UKRI - BBSRC,10/03/2021,Research Grant Expenditure,FG - Accounts & Business Planning,University of Oxford,98913629,55992.07,Research Grant Expenditure
BEIS,UKRI - BBSRC,10/03/2021,Capital Grants & Equipment to HEIs,FG - Accounts & Business Planning,University of St Andrews,98913630,22512.34,Capital Grants & Equipment to HEIs
BEIS,UKRI - BBSRC,10/03/2021,Research Grant Expenditure,FG - Accounts & Business Planning,University of St Andrews,98913630,51183.26,Research Grant Expenditure
BEIS,UKRI - BBSRC,10/03/2021,Research Grant Expenditure,FG - Accounts & Business Planning,University of Nottingham,98913631,30924.16,Research Grant Expenditure
BEIS,UKRI - BBSRC,10/03/2021,Research Grant Expenditure,FG - Accounts & Business Planning,University of Kent,98913632,39345.13,Research Grant Expenditure
BEIS,UKRI - BBSRC,10/03/2021,Capital Grants & Equipment to HEIs,FG - Accounts & Business Planning,Cardiff University,98913633,9796.62,Capital Grants & Equipment to HEIs
BEIS,UKRI - BBSRC,10/03/2021,Research Grant Expenditure,FG - Accounts & Business Planning,Cardiff University,98913633,38377.76,Research Grant Expenditure
BEIS,UKRI - BBSRC,10/03/2021,Research Grant Expenditure,FG - Accounts & Business Planning,University of Glasgow,98913634,56803.48,Research Grant Expenditure
BEIS,UKRI - BBSRC,10/03/2021,Research Grant Expenditure,FG - Accounts & Business Planning,Imperial College London,98913635,38830.51,Research Grant Expenditure
BEIS,UKRI - BBSRC,10/03/2021,Capital Grants & Equipment to HEIs,FG - Accounts & Business Planning,University of Oxford,98913636,7650.00,Capital Grants & Equipment to HEIs
BEIS,UKRI - BBSRC,10/03/2021,Research Grant Expenditure,FG - Accounts & Business Planning,University of Oxford,98913636,97511.36,Research Grant Expenditure
BEIS,UKRI - BBSRC,10/03/2021,Research Grant Expenditure,FG - Accounts & Business Planning,University of Edinburgh,98913637,17336.62,Research Grant Expenditure
BEIS,UKRI - BBSRC,10/03/2021,Research Grant Expenditure,FG - Accounts & Business Planning,University of Edinburgh,98913637,17336.62,Research Grant Expenditure
BEIS,UKRI - BBSRC,10/03/2021,Research Grant Expenditure,FG - Accounts & Business Planning,University of Edinburgh,98913637,17336.62,Research Grant Expenditure
BEIS,UKRI - BBSRC,10/03/2021,Research Grant Expenditure,FG - Accounts & Business Planning,University of Edinburgh,98913637,17336.62,Research Grant Expenditure
BEIS,UKRI - BBSRC,10/03/2021,Research Grant Expenditure,FG - Accounts & Business Planning,University of Edinburgh,98913637,17477.05,Research Grant Expenditure
BEIS,UKRI - BBSRC,10/03/2021,Research Grant Expenditure,FG - Accounts & Business Planning,The University of Manchester,98913638,33996.44,Research Grant Expenditure
BEIS,UKRI - BBSRC,10/03/2021,Research Grant Expenditure,FG - Accounts & Business Planning,University College London,98913639,41325.55,Research Grant Expenditure
BEIS,UKRI - BBSRC,10/03/2021,Research Grant Expenditure,FG - Accounts & Business Planning,University of Edinburgh,98913640,30353.00,Research Grant Expenditure
BEIS,UKRI - BBSRC,10/03/2021,Research Grant Expenditure,FG - Accounts & Business Planning,University College London,98913641,43971.05,Research Grant Expenditure
BEIS,UKRI - BBSRC,10/03/2021,Research Grant Expenditure,FG - Accounts & Business Planning,The Pirbright Institute,98913642,45285.38,Research Grant Expenditure
BEIS,UKRI - BBSRC,10/03/2021,Research Grant Expenditure,FG - Accounts & Business Planning,Aberystwyth University,98913643,8703.53,Research Grant Expenditure
BEIS,UKRI - BBSRC,10/03/2021,Research Grant Expenditure,FG - Accounts & Business Planning,University of Sheffield,98913644,37395.13,Research Grant Expenditure
BEIS,UKRI - BBSRC,10/03/2021,Research Grant Expenditure,FG - Accounts & Business Planning,University of York,98913645,38522.13,Research Grant Expenditure
BEIS,UKRI - BBSRC,10/03/2021,Research Grant Expenditure,FG - Accounts & Business Planning,University of Liverpool,98913646,47403.60,Research Grant Expenditure
BEIS,UKRI - BBSRC,10/03/2021,Research Grant Expenditure,FG - Accounts & Business Planning,University of Bristol GRANT,98913647,58710.01,Research Grant Expenditure
BEIS,UKRI - BBSRC,10/03/2021,Capital Grants & Equipment to HEIs,FG - Accounts & Business Planning,University of Leeds,98913648,9125.00,Capital Grants & Equipment to HEIs
BEIS,UKRI - BBSRC,10/03/2021,Research Grant Expenditure,FG - Accounts & Business Planning,University of Leeds,98913648,47950.79,Research Grant Expenditure
BEIS,UKRI - BBSRC,10/03/2021,Research Grant Expenditure,FG - Accounts & Business Planning,University of Exeter,98913649,4996.88,Research Grant Expenditure
BEIS,UKRI - BBSRC,10/03/2021,Research Grant Expenditure,FG - Accounts & Business Planning,University of Exeter,98913649,4996.88,Research Grant Expenditure
BEIS,UKRI - BBSRC,10/03/2021,Research Grant Expenditure,FG - Accounts & Business Planning,University of Exeter,98913649,63846.71,Research Grant Expenditure
BEIS,UKRI - BBSRC,10/03/2021,Research Grant Expenditure,FG - Accounts & Business Planning,University of Edinburgh,98913650,27829.36,Research Grant Expenditure
BEIS,UKRI - BBSRC,10/03/2021,Research Grant Expenditure,FG - Accounts & Business Planning,University of Warwick,98913651,31955.24,Research Grant Expenditure
BEIS,UKRI - BBSRC,10/03/2021,Research Grant Expenditure,FG - Accounts & Business Planning,University of Cambridge,98913652,12351.68,Research Grant Expenditure
BEIS,UKRI - BBSRC,10/03/2021,Capital Grants & Equipment to HEIs,FG - Accounts & Business Planning,University of Leeds,98913653,5390.85,Capital Grants & Equipment to HEIs
BEIS,UKRI - BBSRC,10/03/2021,Research Grant Expenditure,FG - Accounts & Business Planning,University of Leeds,98913653,40210.27,Research Grant Expenditure
BEIS,UKRI - BBSRC,10/03/2021,Research Grant Expenditure,FG - Accounts & Business Planning,University of Warwick,98913654,25197.65,Research Grant Expenditure
BEIS,UKRI - BBSRC,10/03/2021,Research Grant Expenditure,FG - Accounts & Business Planning,University of Warwick,98913655,26781.64,Research Grant Expenditure
BEIS,UKRI - BBSRC,10/03/2021,Research Grant Expenditure,FG - Accounts & Business Planning,University of Strathclyde,98913656,45095.19,Research Grant Expenditure
BEIS,UKRI - BBSRC,10/03/2021,Capital Grants & Equipment to HEIs,FG - Accounts & Business Planning,Coventry University,98913657,2928.73,Capital Grants & Equipment to HEIs
BEIS,UKRI - BBSRC,10/03/2021,Research Grant Expenditure,FG - Accounts & Business Planning,Coventry University,98913657,27555.95,Research Grant Expenditure
BEIS,UKRI - BBSRC,10/03/2021,Research Grant Expenditure,FG - Accounts & Business Planning,University of Glasgow,98913658,63602.45,Research Grant Expenditure
BEIS,UKRI - BBSRC,10/03/2021,Research Grant Expenditure,FG - Accounts & Business Planning,University of Oxford,98913659,95049.89,Research Grant Expenditure
BEIS,UKRI - BBSRC,10/03/2021,Research Grant Expenditure,FG - Accounts & Business Planning,University of Cambridge,98913660,32731.70,Research Grant Expenditure
BEIS,UKRI - BBSRC,10/03/2021,Research Grant Expenditure,FG - Accounts & Business Planning,University of Cambridge,98913661,39637.46,Research Grant Expenditure
BEIS,UKRI - BBSRC,10/03/2021,Research Grant Expenditure,FG - Accounts & Business Planning,University of Bristol GRANT,98913662,55903.53,Research Grant Expenditure
BEIS,UKRI - BBSRC,10/03/2021,Research Grant Expenditure,FG - Accounts & Business Planning,University of St Andrews,98913663,36423.76,Research Grant Expenditure
BEIS,UKRI - BBSRC,10/03/2021,Research Grant Expenditure,FG - Accounts & Business Planning,John Innes Centre,98913664,44272.88,Research Grant Expenditure
BEIS,UKRI - BBSRC,10/03/2021,Research Grant Expenditure,FG - Accounts & Business Planning,University of Oxford,98913665,32690.25,Research Grant Expenditure
BEIS,UKRI - BBSRC,10/03/2021,Research Grant Expenditure,FG - Accounts & Business Planning,National Institute For Agricultural Botany (NIAB),98913666,36006.60,Research Grant Expenditure
BEIS,UKRI - BBSRC,10/03/2021,Capital Grants & Equipment to HEIs,FG - Accounts & Business Planning,University of Aberdeen,98913667,8670.25,Capital Grants & Equipment to HEIs
BEIS,UKRI - BBSRC,10/03/2021,Research Grant Expenditure,FG - Accounts & Business Planning,University of Aberdeen,98913667,46136.50,Research Grant Expenditure
BEIS,UKRI - BBSRC,10/03/2021,Research Grant Expenditure,FG - Accounts & Business Planning,The James Hutton Institute,98913668,7793.24,Research Grant Expenditure
BEIS,UKRI - BBSRC,10/03/2021,Research Grant Expenditure,FG - Accounts & Business Planning,University of Edinburgh,98913669,34572.34,Research Grant Expenditure
BEIS,UKRI - BBSRC,10/03/2021,Research Grant Expenditure,FG - Accounts & Business Planning,Queen's University Belfast GRANT,98913670,32412.65,Research Grant Expenditure
BEIS,UKRI - BBSRC,10/03/2021,Research Grant Expenditure,FG - Accounts & Business Planning,University of Cambridge,98913671,31581.15,Research Grant Expenditure
BEIS,UKRI - BBSRC,10/03/2021,Research Grant Expenditure,FG - Accounts & Business Planning,Birkbeck College,98913672,43767.95,Research Grant Expenditure
BEIS,UKRI - BBSRC,10/03/2021,Research Grant Expenditure,FG - Accounts & Business Planning,University of Bristol GRANT,98913673,44447.64,Research Grant Expenditure
BEIS,UKRI - BBSRC,10/03/2021,Research Grant Expenditure,FG - Accounts & Business Planning,University College London,98913674,53106.39,Research Grant Expenditure
BEIS,UKRI - BBSRC,10/03/2021,Research Grant Expenditure,FG - Accounts & Business Planning,Babraham Institute,98913675,37496.28,Research Grant Expenditure
BEIS,UKRI - BBSRC,10/03/2021,Research Grant Expenditure,FG - Accounts & Business Planning,University of Exeter,98913676,37459.19,Research Grant Expenditure
BEIS,UKRI - BBSRC,10/03/2021,Research Grant Expenditure,FG - Accounts & Business Planning,University of Newcastle Upon Tyne,98913677,30994.61,Research Grant Expenditure
BEIS,UKRI - BBSRC,10/03/2021,Research Grant Expenditure,FG - Accounts & Business Planning,University of Exeter,98913678,26936.14,Research Grant Expenditure
BEIS,UKRI - BBSRC,10/03/2021,Research Grant Expenditure,FG - Accounts & Business Planning,University of Exeter,98913679,45147.60,Research Grant Expenditure
BEIS,UKRI - BBSRC,10/03/2021,Research Grant Expenditure,FG - Accounts & Business Planning,University of Glasgow,98913680,67571.11,Research Grant Expenditure
BEIS,UKRI - BBSRC,10/03/2021,Research Grant Expenditure,FG - Accounts & Business Planning,King's College London,98913681,139576.26,Research Grant Expenditure
BEIS,UKRI - BBSRC,10/03/2021,Research Grant Expenditure,FG - Accounts & Business Planning,Rothamsted Research Ltd,98913682,164466.73,Research Grant Expenditure
BEIS,UKRI - BBSRC,10/03/2021,Research Grant Expenditure,FG - Accounts & Business Planning,The University of Manchester,98913683,15745.82,Research Grant Expenditure
BEIS,UKRI - BBSRC,10/03/2021,Research Grant Expenditure,FG - Accounts & Business Planning,University of Liverpool,98913684,32091.71,Research Grant Expenditure
BEIS,UKRI - BBSRC,10/03/2021,Research Grant Expenditure,FG - Accounts & Business Planning,University of Cambridge,98913685,39940.01,Research Grant Expenditure
BEIS,UKRI - BBSRC,10/03/2021,Research Grant Expenditure,FG - Accounts & Business Planning,University of Oxford,98913686,69471.13,Research Grant Expenditure
BEIS,UKRI - BBSRC,10/03/2021,Research Grant Expenditure,FG - Accounts & Business Planning,The University of Manchester,98913687,186303.73,Research Grant Expenditure
BEIS,UKRI - BBSRC,10/03/2021,Research Grant Expenditure,FG - Accounts & Business Planning,Queen's University Belfast GRANT,98913688,43362.46,Research Grant Expenditure
BEIS,UKRI - BBSRC,10/03/2021,Research Grant Expenditure,FG - Accounts & Business Planning,University of Bristol GRANT,98913689,64178.04,Research Grant Expenditure
BEIS,UKRI - BBSRC,10/03/2021,Research Grant Expenditure,FG - Accounts & Business Planning,University of Nottingham,98913690,44402.41,Research Grant Expenditure
BEIS,UKRI - BBSRC,10/03/2021,Research Grant Expenditure,FG - Accounts & Business Planning,University of Bristol GRANT,98913691,33161.74,Research Grant Expenditure
BEIS,UKRI - BBSRC,10/03/2021,Research Grant Expenditure,FG - Accounts & Business Planning,University of Birmingham GRANT,98913692,42807.82,Research Grant Expenditure
BEIS,UKRI - BBSRC,10/03/2021,Research Grant Expenditure,FG - Accounts & Business Planning,University College London,98913693,44479.24,Research Grant Expenditure
BEIS,UKRI - BBSRC,10/03/2021,Research Grant Expenditure,FG - Accounts & Business Planning,University of Oxford,98913694,55727.43,Research Grant Expenditure
BEIS,UKRI - BBSRC,10/03/2021,Research Grant Expenditure,FG - Accounts & Business Planning,University of Newcastle Upon Tyne,98913695,44394.98,Research Grant Expenditure
BEIS,UKRI - BBSRC,10/03/2021,Research Grant Expenditure,FG - Accounts & Business Planning,University of Leeds,98913696,30588.34,Research Grant Expenditure
BEIS,UKRI - BBSRC,10/03/2021,Research Grant Expenditure,FG - Accounts & Business Planning,The University of Manchester,98913697,37726.58,Research Grant Expenditure
BEIS,UKRI - BBSRC,10/03/2021,Research Grant Expenditure,FG - Accounts & Business Planning,University of York,98913698,49313.32,Research Grant Expenditure
BEIS,UKRI - BBSRC,10/03/2021,Research Grant Expenditure,FG - Accounts & Business Planning,Aston University,98913699,34542.71,Research Grant Expenditure
BEIS,UKRI - BBSRC,10/03/2021,Research Grant Expenditure,FG - Accounts & Business Planning,University of Oxford,98913700,37871.40,Research Grant Expenditure
BEIS,UKRI - BBSRC,10/03/2021,Research Grant Expenditure,FG - Accounts & Business Planning,University of Nottingham,98913701,35075.11,Research Grant Expenditure
BEIS,UKRI - BBSRC,10/03/2021,Research Grant Expenditure,FG - Accounts & Business Planning,University of Oxford,98913702,31314.15,Research Grant Expenditure
BEIS,UKRI - BBSRC,10/03/2021,Research Grant Expenditure,FG - Accounts & Business Planning,University of Leicester,98913703,36743.62,Research Grant Expenditure
BEIS,UKRI - BBSRC,10/03/2021,Research Grant Expenditure,FG - Accounts & Business Planning,Liverpool School of Tropical Medicine,98913704,39683.75,Research Grant Expenditure
BEIS,UKRI - BBSRC,10/03/2021,Research Grant Expenditure,FG - Accounts & Business Planning,University of Leeds,98913705,53205.93,Research Grant Expenditure
BEIS,UKRI - BBSRC,10/03/2021,Research Grant Expenditure,FG - Accounts & Business Planning,University of Leeds,98913706,13246.37,Research Grant Expenditure
BEIS,UKRI - BBSRC,10/03/2021,Research Grant Expenditure,FG - Accounts & Business Planning,SRUC,98913707,37898.03,Research Grant Expenditure
BEIS,UKRI - BBSRC,10/03/2021,Research Grant Expenditure,FG - Accounts & Business Planning,University of Strathclyde,98913708,41495.58,Research Grant Expenditure
BEIS,UKRI - BBSRC,10/03/2021,Research Grant Expenditure,FG - Accounts & Business Planning,The University of Manchester,98913709,44073.64,Research Grant Expenditure
BEIS,UKRI - BBSRC,10/03/2021,Research Grant Expenditure,FG - Accounts & Business Planning,European Bioinformatics Institute,98913710,26975.44,Research Grant Expenditure
BEIS,UKRI - BBSRC,10/03/2021,Research Grant Expenditure,FG - Accounts & Business Planning,The University of Manchester,98913711,32934.70,Research Grant Expenditure
BEIS,UKRI - BBSRC,10/03/2021,Research Grant Expenditure,FG - Accounts & Business Planning,University of Edinburgh,98913712,57192.10,Research Grant Expenditure
BEIS,UKRI - BBSRC,10/03/2021,Research Grant Expenditure,FG - Accounts & Business Planning,Queen's University Belfast GRANT,98913713,35733.81,Research Grant Expenditure
BEIS,UKRI - BBSRC,10/03/2021,Research Grant Expenditure,FG - Accounts & Business Planning,University of York,98913714,29251.39,Research Grant Expenditure
BEIS,UKRI - BBSRC,10/03/2021,Research Grant Expenditure,FG - Accounts & Business Planning,University of St Andrews,98913715,1091.94,Research Grant Expenditure
BEIS,UKRI - BBSRC,10/03/2021,Research Grant Expenditure,FG - Accounts & Business Planning,Queen's University Belfast GRANT,98913716,2392.59,Research Grant Expenditure
BEIS,UKRI - BBSRC,10/03/2021,Research Grant Expenditure,FG - Accounts & Business Planning,University of Leeds,98913717,46200.52,Research Grant Expenditure
BEIS,UKRI - BBSRC,10/03/2021,Capital Grants & Equipment to HEIs,FG - Accounts & Business Planning,University of Leicester,98913718,57254.61,Capital Grants & Equipment to HEIs
BEIS,UKRI - BBSRC,10/03/2021,Research Grant Expenditure,FG - Accounts & Business Planning,University of Leicester,98913718,183411.06,Research Grant Expenditure
BEIS,UKRI - BBSRC,10/03/2021,Research Grant Expenditure,FG - Accounts & Business Planning,University of Glasgow,98913719,51090.04,Research Grant Expenditure
BEIS,UKRI - BBSRC,10/03/2021,Research Grant Expenditure,FG - Accounts & Business Planning,University of Leeds,98913720,37403.81,Research Grant Expenditure
BEIS,UKRI - BBSRC,10/03/2021,Research Grant Expenditure,FG - Accounts & Business Planning,King's College London,98913721,34079.13,Research Grant Expenditure
BEIS,UKRI - BBSRC,10/03/2021,Research Grant Expenditure,FG - Accounts & Business Planning,Oxford Brookes University,98913722,42527.38,Research Grant Expenditure
BEIS,UKRI - BBSRC,10/03/2021,Research Grant Expenditure,FG - Accounts & Business Planning,University of Leeds,98913723,52331.44,Research Grant Expenditure
BEIS,UKRI - BBSRC,10/03/2021,Research Grant Expenditure,FG - Accounts & Business Planning,University of Leeds,98913724,5237.10,Research Grant Expenditure
BEIS,UKRI - BBSRC,10/03/2021,Research Grant Expenditure,FG - Accounts & Business Planning,Queen Mary University of London,98913725,40269.74,Research Grant Expenditure
BEIS,UKRI - BBSRC,10/03/2021,Research Grant Expenditure,FG - Accounts & Business Planning,Queen Mary University of London,98913726,28686.07,Research Grant Expenditure
BEIS,UKRI - BBSRC,10/03/2021,Research Grant Expenditure,FG - Accounts & Business Planning,The University of Manchester,98913727,6465.51,Research Grant Expenditure
BEIS,UKRI - BBSRC,10/03/2021,Research Grant Expenditure,FG - Accounts & Business Planning,The University of Manchester,98913728,6551.72,Research Grant Expenditure
BEIS,UKRI - BBSRC,10/03/2021,Research Grant Expenditure,FG - Accounts & Business Planning,University of Bristol GRANT,98913729,13523.70,Research Grant Expenditure
BEIS,UKRI - BBSRC,10/03/2021,Research Grant Expenditure,FG - Accounts & Business Planning,University of Edinburgh,98913730,57784.90,Research Grant Expenditure
BEIS,UKRI - BBSRC,10/03/2021,Research Grant Expenditure,FG - Accounts & Business Planning,Sheffield Hallam University,98913731,65528.83,Research Grant Expenditure
BEIS,UKRI - BBSRC,10/03/2021,Research Grant Expenditure,FG - Accounts & Business Planning,Sheffield Hallam University,98913731,65528.83,Research Grant Expenditure
BEIS,UKRI - BBSRC,10/03/2021,Research Grant Expenditure,FG - Accounts & Business Planning,University of Newcastle Upon Tyne,98913732,42340.68,Research Grant Expenditure
BEIS,UKRI - BBSRC,10/03/2021,Research Grant Expenditure,FG - Accounts & Business Planning,University of Newcastle Upon Tyne,98913732,42340.68,Research Grant Expenditure
BEIS,UKRI - BBSRC,10/03/2021,Research Grant Expenditure,FG - Accounts & Business Planning,University of Newcastle Upon Tyne,98913732,42683.62,Research Grant Expenditure
BEIS,UKRI - BBSRC,10/03/2021,Research Grant Expenditure,FG - Accounts & Business Planning,King's College London,98913733,17777.42,Research Grant Expenditure
BEIS,UKRI - BBSRC,10/03/2021,Research Grant Expenditure,FG - Accounts & Business Planning,King's College London,98913733,17777.42,Research Grant Expenditure
BEIS,UKRI - BBSRC,10/03/2021,Research Grant Expenditure,FG - Accounts & Business Planning,King's College London,98913733,17921.41,Research Grant Expenditure
BEIS,UKRI - BBSRC,10/03/2021,Research Grant Expenditure,FG - Accounts & Business Planning,Manchester Metropolitan University,98913734,42569.49,Research Grant Expenditure
BEIS,UKRI - BBSRC,10/03/2021,Research Grant Expenditure,FG - Accounts & Business Planning,Manchester Metropolitan University,98913734,42569.49,Research Grant Expenditure
BEIS,UKRI - BBSRC,10/03/2021,Research Grant Expenditure,FG - Accounts & Business Planning,Manchester Metropolitan University,98913734,42914.32,Research Grant Expenditure
BEIS,UKRI - BBSRC,10/03/2021,Research Grant Expenditure,FG - Accounts & Business Planning,University of Surrey,98913735,44410.43,Research Grant Expenditure
BEIS,UKRI - BBSRC,10/03/2021,Research Grant Expenditure,FG - Accounts & Business Planning,University of Surrey,98913735,44410.43,Research Grant Expenditure
BEIS,UKRI - BBSRC,10/03/2021,Research Grant Expenditure,FG - Accounts & Business Planning,University of Surrey,98913735,44770.15,Research Grant Expenditure
BEIS,UKRI - BBSRC,10/03/2021,Research Grant Expenditure,FG - Accounts & Business Planning,University of Greenwich,98913736,34767.74,Research Grant Expenditure
BEIS,UKRI - BBSRC,10/03/2021,Research Grant Expenditure,FG - Accounts & Business Planning,University of Greenwich,98913736,34767.74,Research Grant Expenditure
BEIS,UKRI - BBSRC,10/03/2021,Research Grant Expenditure,FG - Accounts & Business Planning,University of Greenwich,98913736,35049.35,Research Grant Expenditure
BEIS,UKRI - BBSRC,10/03/2021,Research Grant Expenditure,FG - Accounts & Business Planning,Bangor University,98913737,33228.56,Research Grant Expenditure
BEIS,UKRI - BBSRC,10/03/2021,Research Grant Expenditure,FG - Accounts & Business Planning,Bangor University,98913737,33228.56,Research Grant Expenditure
BEIS,UKRI - BBSRC,10/03/2021,Research Grant Expenditure,FG - Accounts & Business Planning,Bangor University,98913737,33497.73,Research Grant Expenditure
BEIS,UKRI - BBSRC,10/03/2021,Research Grant Expenditure,FG - Accounts & Business Planning,King's College London,98913738,25641.02,Research Grant Expenditure
BEIS,UKRI - BBSRC,10/03/2021,Research Grant Expenditure,FG - Accounts & Business Planning,Royal Veterinary College,98913739,22213.73,Research Grant Expenditure
BEIS,UKRI - BBSRC,10/03/2021,Research Grant Expenditure,FG - Accounts & Business Planning,Royal Veterinary College,98913739,22213.73,Research Grant Expenditure
BEIS,UKRI - BBSRC,10/03/2021,Research Grant Expenditure,FG - Accounts & Business Planning,Royal Veterinary College,98913739,22393.68,Research Grant Expenditure
BEIS,UKRI - BBSRC,10/03/2021,Research Grant Expenditure,FG - Accounts & Business Planning,University of Leicester,98913740,1080.12,Research Grant Expenditure
BEIS,UKRI - BBSRC,10/03/2021,Research Grant Expenditure,FG - Accounts & Business Planning,University of Liverpool,98913741,3159.32,Research Grant Expenditure
BEIS,UKRI - BBSRC,10/03/2021,Research Grant Expenditure,FG - Accounts & Business Planning,University of Warwick,98913742,2506.79,Research Grant Expenditure
BEIS,UKRI - BBSRC,10/03/2021,Research Grant Expenditure,FG - Accounts & Business Planning,Rothamsted Research Ltd,98913743,2041.00,Research Grant Expenditure
BEIS,UKRI - BBSRC,10/03/2021,Research Grant Expenditure,FG - Accounts & Business Planning,National Institute For Agricultural Botany (NIAB),98913744,1905.50,Research Grant Expenditure
BEIS,UKRI - BBSRC,10/03/2021,Research Grant Expenditure,FG - Accounts & Business Planning,University of Birmingham GRANT,98913745,2489.85,Research Grant Expenditure
BEIS,UKRI - BBSRC,10/03/2021,Research Grant Expenditure,FG - Accounts & Business Planning,University of Aberdeen,98913746,1010.37,Research Grant Expenditure
BEIS,UKRI - BBSRC,10/03/2021,Research Grant Expenditure,FG - Accounts & Business Planning,University of Exeter,98913747,4231.48,Research Grant Expenditure
BEIS,UKRI - BBSRC,10/03/2021,Research Grant Expenditure,FG - Accounts & Business Planning,The Pirbright Institute,98913748,2096.05,Research Grant Expenditure
BEIS,UKRI - BBSRC,10/03/2021,Research Grant Expenditure,FG - Accounts & Business Planning,Quadram Institute Bioscience,98913749,1905.50,Research Grant Expenditure
BEIS,UKRI - BBSRC,10/03/2021,Research Grant Expenditure,FG - Accounts & Business Planning,University of Leicester,98913750,3048.79,Research Grant Expenditure
BEIS,UKRI - BBSRC,10/03/2021,Research Grant Expenditure,FG - Accounts & Business Planning,University of Nottingham,98913751,3175.83,Research Grant Expenditure
BEIS,UKRI - BBSRC,10/03/2021,Research Grant Expenditure,FG - Accounts & Business Planning,Imperial College London,98913752,3112.31,Research Grant Expenditure
BEIS,UKRI - BBSRC,10/03/2021,Research Grant Expenditure,FG - Accounts & Business Planning,European Bioinformatics Institute,98913753,42619.95,Research Grant Expenditure
BEIS,UKRI - BBSRC,10/03/2021,Research Grant Expenditure,FG - Accounts & Business Planning,Imperial College London,98913754,2506.79,Research Grant Expenditure
BEIS,UKRI - BBSRC,10/03/2021,Research Grant Expenditure,FG - Accounts & Business Planning,European Bioinformatics Institute,98913755,50778.38,Research Grant Expenditure
BEIS,UKRI - BBSRC,10/03/2021,Research Grant Expenditure,FG - Accounts & Business Planning,University of East Anglia,98913756,23166.34,Research Grant Expenditure
BEIS,UKRI - BBSRC,10/03/2021,Research Grant Expenditure,FG - Accounts & Business Planning,University of Stirling,98913757,3808.46,Research Grant Expenditure
BEIS,UKRI - BBSRC,10/03/2021,Research Grant Expenditure,FG - Accounts & Business Planning,UNIVERSITY OF ULSTER,98913758,17378.00,Research Grant Expenditure
BEIS,UKRI - BBSRC,10/03/2021,Research Grant Expenditure,FG - Accounts & Business Planning,The University of Manchester,98913759,14357.01,Research Grant Expenditure
BEIS,UKRI - BBSRC,10/03/2021,Research Grant Expenditure,FG - Accounts & Business Planning,The University of Manchester,98913760,25664.83,Research Grant Expenditure
BEIS,UKRI - BBSRC,10/03/2021,Research Grant Expenditure,FG - Accounts & Business Planning,University of Liverpool,98913761,34431.60,Research Grant Expenditure
BEIS,UKRI - BBSRC,10/03/2021,Research Grant Expenditure,FG - Accounts & Business Planning,The James Hutton Institute,98913762,39776.75,Research Grant Expenditure
BEIS,UKRI - BBSRC,10/03/2021,Research Grant Expenditure,FG - Accounts & Business Planning,European Bioinformatics Institute,98913763,31534.73,Research Grant Expenditure
BEIS,UKRI - BBSRC,10/03/2021,Research Grant Expenditure,FG - Accounts & Business Planning,University College London,98913764,25970.73,Research Grant Expenditure
BEIS,UKRI - BBSRC,10/03/2021,Research Grant Expenditure,FG - Accounts & Business Planning,University of Edinburgh,98913765,41209.73,Research Grant Expenditure
BEIS,UKRI - BBSRC,10/03/2021,Research Grant Expenditure,FG - Accounts & Business Planning,European Bioinformatics Institute,98913766,9821.70,Research Grant Expenditure
BEIS,UKRI - BBSRC,10/03/2021,Research Grant Expenditure,FG - Accounts & Business Planning,Rothamsted Research Ltd,98913767,2540.66,Research Grant Expenditure
BEIS,UKRI - BBSRC,10/03/2021,Research Grant Expenditure,FG - Accounts & Business Planning,University of Edinburgh,98913768,30737.31,Research Grant Expenditure
BEIS,UKRI - BBSRC,10/03/2021,Research Grant Expenditure,FG - Accounts & Business Planning,European Bioinformatics Institute,98913769,51052.97,Research Grant Expenditure
BEIS,UKRI - BBSRC,10/03/2021,Research Grant Expenditure,FG - Accounts & Business Planning,University of Liverpool,98913770,3123.81,Research Grant Expenditure
BEIS,UKRI - BBSRC,10/03/2021,Research Grant Expenditure,FG - Accounts & Business Planning,University College London,98913771,1038.76,Research Grant Expenditure
BEIS,UKRI - BBSRC,10/03/2021,Research Grant Expenditure,FG - Accounts & Business Planning,Rothamsted Research Ltd,98913772,52698.19,Research Grant Expenditure
BEIS,UKRI - BBSRC,10/03/2021,Research Grant Expenditure,FG - Accounts & Business Planning,University of Cambridge,98913773,1417.69,Research Grant Expenditure
BEIS,UKRI - BBSRC,10/03/2021,Research Grant Expenditure,FG - Accounts & Business Planning,King's College London,98913774,3150.42,Research Grant Expenditure
BEIS,UKRI - BBSRC,10/03/2021,Research Grant Expenditure,FG - Accounts & Business Planning,University of Reading,98913775,36572.44,Research Grant Expenditure
